{"text_format":"1","workbook":"xlsx","n_sheets":11,"sheets":["Cover","Instructions","Hazard Glossary","Risk Matrix","Information","Assumptions","Hazard Data Entry","Data Scores","Risk Summary","Vulnerability Report","Contacts"],"not_rendered":{"charts":6,"images":9,"macros":1,"external_links":0,"defined_names":16,"comments":0,"pivot_tables":0},"unopened":[],"bounds":{"document_bytes":16777216,"sheet_cells":100000,"rows_first":2000,"rows_last":500,"rows_between":2000,"halvings":0,"cell_chars":16384,"cell_head_chars":4096},"cells_cut":0,"cells_raw":0,"read":"whole","date_system":"1900"}

{"sheet":"Cover","index":0,"n_rows":28,"n_cols":13,"rows_kept":28,"cut":false,"hidden":false,"merged":[[27,12,27,16]]}
[]
[]
[]
[]
[]
[]
[null,null,"Quick Risk Estimation (QRE) Tool"]
[]
[]
[]
[]
[]
[]
[]
[]
[]
[]
[]
[]
[]
[]
[]
[]
[]
[]
[]
[]
[null,null,null,null,null,null,null,null,null,null,null,null,"Note: Compatibility and functionality of the tool can be impacted by using excel versions dating prior to 2010, and in isolated cases, certain versions (e.g. student) of Excel 2010."]

{"sheet":"Instructions","index":1,"n_rows":196,"n_cols":2,"rows_kept":196,"cut":false,"hidden":false,"merged":[]}
[{"$f":"MdlTle","v":"Quick Risk Estimation (QRE) Tool"}]
[{"$f":"MID(CELL(\"filename\",A1),FIND(\"]\",CELL(\"filename\",A1))+1,255)","v":"Instructions"}]
[]
[]
[null,"A resilient city is one that is able to reduce, resist, absorb, accommodate, and recover from the impacts of hazards in a prompt and efficient manner, by preserving and restoring essential basic structures and services."]
[]
[null,"Purpose of Decision Making Framework"]
[]
[null,"The Quick Risk Estimation (QRE) tool has been designed for the purposes of identifying and understanding current and future risks / stress / shocks and exposure threats to both human and physical assets. The QRE Tool is not a full scale risk assessment, rather a multi-stakeholder engagement process to establish a common understanding. Taking into account the actions or corrective measures already undertaken, the QRE will produce a dashboard-style risk assessment advising the risks and hazards to human and physical assets, impacts of identified main risks and associated hazard events on the specified location and/or particular asset."]
[null,"The QRE tool uses the hazards classification outlined by the United Nations Office for Disaster Risk Reduction (UNDRR). The hazard indicators included in the QRE tool are aligned to the 10 Essentials for Making Cities Resilient Scorecard in the context of the Sendai Framework for Disaster Risk Reduction 2015 - 2030 and the Sustainable Development Goals. "]
[null,"Underpinning the QRE tool, a Decision Making Framework (DMF) has been developed for the purposes of providing the user with the necessary guidance to assess and subsequently score the exposure and vulnerability of the relevant hazards, as well as the level of current response or actions undertaken with respect to those hazards. The DMF, which is incorporated into this QRE Tool, includes a set of instructions, definitions (i.e. Glossary) and an underpinning Risk Matrix that guides the user in entering data into the QRE tool, providing the user with indicative scoring criteria and measurement scales as described in the Assumptions section."]
[]
[null,"Who can use this"]
[]
[null,"The QRE tool is available for deployment in the cities participating in the 10 Essentials Campaign."]
[null,"Potential users include: "]
[null,"    - city authorities, including city planners, risk officers, flood managers, and emergency response officials"]
[null,"    - Stakeholders in the 10 Essentials Campaign and the Essentials Campaign Funded Project."]
[null,"The QRE Tool is only to be used in a workshop environment in a multi stakeholder approach and not by an individual accessor."]
[]
[null,"Instructions for User"]
[]
[null,"The QRE tool will provide you with a simple risk assessment on your specified location, asset and/or productive sector. This exercise will be based on your self-assessment, to be informed by your previous experience, evidence, research, and consultation with relevant stakeholders as you progress through the QRE tool.  The consultation process will also help to engage and build understanding, ownership and alignment with relevant stakeholders."]
[]
[null,"A set of instructions on how to use the QRE tool has been provided below, together with a step-by-step case study."]
[]
[null,"Step 1. Provide Location, Region and/or Asset Information"]
[null,"To begin using the QRE Tool use the 'Information' tab to enter the location, region and/or asset specific information that identifies and defines the scope of this risk assessment. "]
[]
[null,"Step 2. Identify hazard families and sub-families"]
[null,"Refer to Column B in the 'Hazard Data Entry' tab."]
[null,"> Identify the hazard families and sub-families relevant to the location being assessed. "]
[]
[null,"Please note hazard families and sub-families are based on the hazard classification adopted by the UNDRR for the Sendai Framework. A complete glossary containing hazard definitions has been included in tab 'Hazard Glossary'. Additionally, a summary of the Sendai Framework hazard families, sub-families, main hazards and hazard events can be found in tab 'Assumptions'. This summary, together with the hazard glossary will guide your data entry across steps 2, 3 and 4. Please note that the association of hazards with families and sub-families is solely a suggestion, and intended only for clarity purposes; some hazards may change their family association based on the actual event and loss trigger."]
[]
[null,"Case study:"]
[null,"The location being assessed in this case study is the City of Mackay, Queensland, Australia in relation to Severe Tropical Cyclone Debbie (March 2017)."]
[null,"Mackay is situated in North Queensland on Australia's east coast. The city of Mackay is situated on the Pioneer River and the Clarke Range lies to the west of the city. A large farming region, Mackay is known as being one of Australia's largest cane farming regions. Mackay's population exceeds 120,000 with residents spread across a range of living opportunities from costal, to small rural and rural residential areas."]
[null,"Based on Mackay's subtropical climate and disaster history, the city is prone to the following events: flooding, landslides, severe storms with hail and damaging winds, bushfires, heat waves, cyclones, earthquakes and wave action."]
[null,"For the purpose of this case study, the assessment will focus on understanding the risk level of the following hazards to enable prioritisation of action: flood, landslide, wave action and tropical cyclone."]
[null,"All the selected hazards above belong to the hazard family \"Natural hazards\" as per the UNDRR classification for the Sendai Framework."]
[null,"The identification of relevant hazard sub-families is based on these classifications and the 'Hazard glossary' tab, resulting in the following selection:"]
[null," - Geophysical hazards"]
[null," - Hydrological hazards"]
[null," - Meteorological hazards"]
[null," - Climatological hazard"]
[null," - Biological hazards"]
[null," - Anthropogenic hazards."]
[null,"As a result, we will position ourselves in the selected areas above in the 'Hazard Data Entry' tab."]
[]
[null,"Step 3. Identify main hazards"]
[null,"Refer to Columns B and C in the 'Hazard Data Entry' tab."]
[null,"> Within each hazard family / sub-family identified in Step 2, select the main hazards relevant to the location being assessed. "]
[null,"> An identifier is automatically attached to each selected main hazard."]
[]
[null,"Case study:"]
[null,"Based on the areas selected for study and informed by the 'Data Fields' tab and the 'Hazard glossary' tab, the following main hazards are selected per each hazard sub-family using the dropdown menu in Colum A:"]
[null," - Hydrological hazards: Flood; Landslide; Wave action. Please note one row is to be used per each selected hazard."]
[null," - Meteorological hazards: Tropical Cyclone; Tropical Cyclone. Please note one row is to be used per each selected hazard."]
[]
[null,"Step 4. Select hazard events"]
[null,"Refer to Column C in the 'Hazard Data Entry' tab."]
[null,"> For each main hazard identified, select associated event relevant to the given location. Use one row per hazard event. "]
[]
[null,"Please note the QRE tool contains 5 rows per hazard sub-family to help the user limit the scope of the assessment. An additional block of 5 rows is provided at the bottom of the 'Hazard Data Entry' tab for the user to complete if required."]
[]
[null,"Case study:"]
[null,"The selection of hazard events is based on current understanding of the City of Mackay, historical data regarding main risks as a result of past events, targeted research and consultations with relevant stakeholders. Informed by the 'Hazard glossary' tab and the 'Assumptions' tab, the following hazard events are selected per each main hazard using the dropdown menu in Colum C:"]
[null," - Flood: Riverine Flood; Flash Flood. Please note one row is to be used per each selected hazard."]
[null," - Landslide: Landslide following event"]
[null," - Wave action: Costal Flood"]
[null," - Tropical Cyclone: Wind; Storm Surge. Please note one row is to be used per each selected hazard event."]
[null," - Flood: Riverine flood"]
[null," - Convective Storm: Hail; Wind. Please note one row is to be used per each selected hazard event."]
[null," - Wildfire: Land Fire of Brush/Bush/Pasture"]
[null," - Earthquake: Ground movement; Landslide following event. Please note one row is to be used per each selected hazard event."]
[]
[null,"Step 5. Assess exposure"]
[null,"Refer to Column D in the 'Hazard Data Entry' tab."]
[null,"> For each selected hazard event, assess and score the exposure of the location being assessed using values from \"Unlikely to Inevitable\" (refer to the 'Assumptions' tab for a full scale listing). "]
[null,"> Record your justification for each evaluation score in Column N ('Comments'). This will enable validation as well as future revisions and tracking progress."]
[]
[null,"Exposure refers to people, property, assets, systems, or other elements present in hazard zones that are thereby subject to potential losses (UNISDR Terminology, 2009). This includes population, building stock, essential facilities and critical infrastructure. Critical facilities are the primary physical structures, technical facilities and systems which are socially, economically or operationally essential to the functioning of a society or community, both in routine circumstances and in the extreme circumstances of an emergency (UNISDR Terminology, 2009)."]
[]
[null,"Case study:"]
[null,"Based on current understanding of the City of Mackay (including population, building stock, essential facilities and critical infrastructure), learnings from past events, targeted research and consultations with relevant stakeholders, the exposure of the city of Mackay to each of the identified hazard events is assessed and scored in Column D as follows:"]
[null," - Flood: Riverine Flood; Flash Flood: Exposure is deemed to be Extremely Likely. Please note one row is to be used per each selected hazard."]
[null," - Landslide: Landslide following event: Exposure is deemed to be Likely."]
[null," - Wave action: Costal Flood: Exposure is deemed to be Extremely Likely."]
[null," - Tropical Cyclone: Wind: Exposure is deemed to be Inevitable. Storm Surge: Exposure is deemed to be Extremely Likely. Please note one row is to be used per each selected hazard event."]
[null,"The reasoning behind each given score is to be recorded in Column K (i.e. Comments and Justification)."]
[]
[null,"Step 6. Assess vulnerability"]
[null,"Refer to Column E - H in the 'Hazard Data Entry' tab."]
[null,"> For each selected hazard event, assess and score the vulnerability in each of the four categories using values from \"Unlikely\" to \"Inevitable\" (refer to the 'Assumptions' tab for a full scale listing).\n>The four vulnerability categories to assess include:\na. Infrastructure (all types - road, transport, rails, ports, bridges, housing, etc.)\nb. Productive Sectors (specifically livelihood/job market indirectly)\nc. Essential or Basic Services (health, telecom, water, energy etc.)\nd. Human and social aspects (displacement, safety, etc.)"]
[null,"> Record your justification for each evaluation score in Column N. This will enable validation as well as future revisions and tracking progress."]
[]
[null,"Vulnerability refers to the characteristics and circumstances of a community, system or asset that make it susceptible to the damaging effects of a hazard (UNISDR Terminology, 2009). There are many aspects of vulnerability, arising from various physical, social, economic, and environmental factors. Examples may include poor design and construction of buildings, inadequate protection of assets, lack of public information and awareness, limited official recognition of risks and preparedness measures, and disregard for wise environmental management. Vulnerability varies significantly within a community and over time. This definition identifies vulnerability as a characteristic of the element of interest (community, system or asset) which is independent of its exposure. "]
[]
[null,"Case study:"]
[null,"After assessing the city of Mackay's physical, social, economic and environmental vulnerability to each of the selected hazard events, the relevant score is entered in Column E - H as follows:"]
[null," - Flood: Riverine Flood: vulnerability in each of the four categories is deemed to be: Infrastructure: Very Likely; Productive Sectors: Very Likely; Essential or basic services: Very Likely; Human and social aspects: Very Likely."]
[null," - Flood: Flash Flood: vulnerability in each of the four categories is deemed to be: Infrastructure: Extremely Likely; Productive Sectors: Extremely Likely; Essential or basic services: Very Likely; Human and social aspects: Extremely Likely."]
[null," - Landslide: Landslide following event: vulnerability in each of the four categories is deemed to be: Infrastructure: Likely; Productive Sectors: Probable; Essential or basic services: Possible; Human and social aspects: Possible."]
[null," - Wave action: Costal Flood: vulnerability in each of the four categories is deemed to be: Infrastructure: Very Likely; Productive Sectors: Probable; Essential or basic services: Possible; Human and social aspects: Possible."]
[null," - Tropical Cyclone: Wind: vulnerability in each of the four categories is deemed to be: Infrastructure: Extremely Likely; Productive Sectors: Extremely Likely; Essential or basic services: Extremely Likely; Human and social aspects: Extremely Likely."]
[null," - Tropical Cyclone: Storm Surge: vulnerability in each of the four categories is deemed to be: Infrastructure: Extremely Likely; Productive Sectors: Extremely Likely; Essential or basic services: Inevitable; Human and social aspects: Extremely Likely."]
[null,"The reasoning behind each given score is to be recorded in Column N."]
[]
[null,"Step 7. Assess the level of current actions or measures undertaken"]
[null,"Refer to Column J in the 'Hazard Data Entry' tab."]
[null,"> For each selected hazard event, assess and score the level of current actions and measures in place to address and mitigate the hazard event in the location being assessed using values from \"No measures in place\" to \"Complete control of disaster\" (refer to the 'Assumptions' tab for a full scale listing)."]
[null,"> Record your justification for each evaluation score in Column N. This will enable validation as well as future revisions and tracking progress."]
[]
[null,"Current actions or measures undertaken: activities and measures to avoid and/or address existing and new disaster risks (UNISDR Terminology, 2009). It indicates the current level of disaster-resilience of the specified location."]
[]
[null,"Case study:"]
[null,"In Mackay, the City Council has a number of Disaster Management Plans and Disaster Recovery strategies in place to manage the impacts of specific potential disasters within its boundaries. They also have local programs, specific initiatives and tools to raise awareness and educate population and businesses in responding to those disaster scenarios. Upon reviewing this information, assessing their current effectiveness, consulting with relevant stakeholders, and understanding actions and measures yet to be undertaken to improve the city's preparedness, the relevant score was entered in Column H as follows:"]
[null," - Flood: Riverine Flood: Level of current actions and measures undertaken is deemed to be \"Some measures in place\"."]
[null," - Flood: Flash Flood: Level of current actions and measures undertaken is deemed to be \"Some measures in place\"."]
[null," - Landslide: Landslide following event: Level of current actions and measures undertaken is deemed to be \"Few measures in place\"."]
[null," - Wave action: Costal Flood: Level of current actions and measures undertaken is deemed to be \"Extremely few measures in place\"."]
[null," - Tropical Cyclone: Wind: Level of current actions and measures undertaken is deemed to be \"Reasonable measures in place\"."]
[null," - Tropical Cyclone: Storm Surge: Level of current actions and measures undertaken is deemed to be \"Very few measures in place\"."]
[null,"The reasoning behind each given score is to be recorded in Column N."]
[]
[null,"Step 8. Analyse results"]
[null,"Refer to Columns K, L and M in the 'Hazard Data Entry' tab."]
[null,"> Based on your assessment across steps 5 to 7, the QRE tool will auto-populate two final numerical values: A Likelihood Ranking Score and Severity Rating; and, identify the Risk Rating for the Hazard based upon the ratings identified in the 'Risk Matrix' tab. "]
[null,"  a) Likelihood ranking score: refers to the likelihood of the event occurring in comparison to the other assessed events in the specified location, based on the location's exposure and vulnerability to that event, and the current actions and measures undertaken. The lower the ranking score the lower the potential requirement for action. The higher the ranking score the higher potential requirement for action. Please note this score is not a statistical measure of probability but a ranking score to enable prioritisation of hazards/hazard events across all assessed hazards/hazard events."]
[null,"  b) Severity rating: refers to the impact and consequence level that a hazard would have on the location under study and its community, ranging from 1 to 100, being 1 the lowest severity and 100 the highest."]
[null,"  c) Risk Rating: refers to the allocation of a risk rating ranging from Very Low to Catastrophic aligned to the 'Risk Matrix', which is dependent upon the likelihood ranking and severity rating calculated."]
[]
[null,"Notes:"]
[null," - A (negative) severity rating indicates you are outside the threshold of a material risk to invest in a response to."]
[null," - Obtaining a severity rating of zero or (negative) may indicate unrealistic scoring of the level of current actions and measures in place to respond to the specific hazard."]
[null," - You must complete all data input columns for an associated hazard event in a Hazard Family for the Likelihood ranking severity rating and risk rating to populate."]
[]
[null,"Reporting"]
[null,"> A data overview per each hazard sub-family will be auto-populated in the 'Data Scores' tab to allow individualised analysis of results. This tab includes a summary of the criteria scores obtained as a result of the assessment that will be unlocked for the user to use as required.\n> The QRE Tool also provides two combined Reports in two consecutive tabs: Risk Summary and Vulnerability Report. \na) The Risk Summary maps the Disaster Likelihood and Severity in the first table compared against all hazards/hazard events assessed. The second table maps the Disaster Exposure and Vulnerability compared against all hazards/hazard events assessed.\nb) The Vulnerability Report maps the four Vulnerability Categories exposure and vulnerability ratings individually.\nThese Reports provide a visual representation or 'Dashboard' of the results of the assessment, assisting you in analysing the outcomes of your exercise and in developing potential current and future risk scenarios.\nNote: The size of the 'points' in the tables within each reports correspond to the numerical value of the Likelihood Ranking (Risk Summary)  and Severity Rating (Risk Summary and Vulnerability Reports)."]
[]
[null,"Case study"]
[null,"Based on the scoring decisions made above, the QRE tool provides the following likelihood ranking scores, severity ratings and risk rating per hazard event. This is represented in the 'Data Scores' tab, allowing comparison against other main hazards being assessed."]
[null," - Flood: Riverine Flood: Total vulnerability ranking: 80 out of 100; Likelihood ranking score: 8 out of 100; Severity rating: 40 out of 100 ; Risk Rating: M6"]
[null," - Flood: Flash Flood: Total vulnerability ranking: 88 out of 100; Likelihood ranking score: 8 out of 100; Severity rating: 40 out of 100 ; Risk Rating: M6"]
[null," - Landslide: Landslide following event: Total vulnerability ranking: 58 out of 100; Likelihood ranking score: 5 out of 100; Severity rating: 20 out of 100; Risk Rating: L4"]
[null," - Wave action: Costal Flood: Total vulnerability ranking: 88 out of 100; Likelihood ranking score: 8 out of 100; Severity rating: 70 out of 100 ; Risk Rating: H7"]
[null," - Tropical Cyclone: Wind: Total vulnerability ranking: 90 out of 100; Likelihood ranking score: 9 out of 100; Severity rating: 40 out of 100 ; Risk Rating: H7"]
[null," - Tropical Cyclone: Storm Surge: Total vulnerability ranking: 93 out of 100; Likelihood ranking score: 8 out of 100; Severity rating: 60 out of 100 ; Risk Rating: H7"]
[]
[]
[null,"Risk Matrix Scenarios"]
[null,"The QRE tool will assist you in developing and understanding current and future risk scenarios based on the results of your self-assessment. A risk scenario is a comprehensive assessment of the severity and likelihood of a hazard and its total impact, based on the exposure and vulnerability of the city to loss of life, damage or other adverse impact in the resulting disaster. Identifying scenarios is critical to understanding the risk level of each potential disaster and its impact on the specified location. This will enable cities to establish a baseline measurement of their current level of disaster-resilience, to identify priorities for investment and action, and to track their progress in improving their disaster resilience over time."]
[null,"The QRE tool can be applied to the development of different risk scenarios built upon either:"]
[null," 1) a single main hazard within a selected hazard family. For example, an earthquake (main hazard within the geophysical hazard family) in a coastal environment causing ground movement followed by a tsunami."]
[null," 2) A compound risk as a result of a combination of two or more main hazards within the same hazard family. For example, a risk scenario resulting from the combination of a drought event (main hazard within the climatological hazard family) and a wildfire event (main hazard within the climatological hazard family) causing forest and bush fires (hazard event) enhanced by dry conditions."]
[null," 3) A combination of main hazards across different hazard families. For example, a risk scenario in which there is volcanic activity (main hazard within the geophysical hazard family), and landslide (main hazard within the hydrological hazard family), causing ground movement, lava flow and expansive soil (hazard event) that have combined effects in the urban / rural environment of study. "]
[null,"Notes:"]
[null,"  - Within hazard families cumulative severity representing a number of main hazards and associated hazard events can be assessed by using the totals calculated and shown in the Criteria Scores & Family Plots tab. For example, in the current example Cell H9 in the 'Criteria Scores & Family Plots' tab indicates a Total Severity Score across the Hazard Family of 215. This total severity score can be used to quickly identify the Hazard Family with the most severe combination of hazards/hazard events for the purposes of prioritising response measures."]
[]
[null,"The risk level for each scenario identified can be determined using the Risk Matrix provided in the 'Risk Matrix' tab. Each scenario is assigned a priority based on the risk level determined. This will assist you in identifying the risks that require priority action and the ones that just require ongoing monitoring and review. There is also a 'Guide to Likelihood' table provided on the Risk Matrix tab. This Guide is designed to assist the user to understand likelihood and the definitions aligned to rating categories."]
[]
[null,"Case study:"]
[null,"A number of risk scenarios can be developed as a result of the city of Mackay's assessment. As explained above, scenarios can be built within or across Hazard Families and Main Hazards, hazard events or a combination of these. In this case study, three potential scenarios have been developed below:"]
[]
[null,"1) Scenario #1: A riverine flood."]
[null,"2) Scenario #2: A convective storm with hail and damaging winds."]
[null,"3) Scenario #3: An earthquake causing ground movement, followed by landslide and riverine flooding."]
[]
[null,"Key Data and formulas to use in scenarios calculations:"]
[null,"  - A Riverine flood has a Likelihood Ranking of 8.5 and a Severity Rating of 65.0."]
[null,"  - A Convective storm as a Likelihood Ranking of 4.0 (with hail) and 7.0 (with wind) and a Severity Rating of 5.0 (with hail) and 40.0 (with wind)."]
[null,"  - Earthquake causing Ground Movement has a Likelihood Ranking of 6.5 and a Severity Rating of 45.0."]
[null,"  - Earthquake causing landslide following event has a Likelihood Ranking of 7.5 and a Severity Rating of 60.0."]
[]
[null,"  - Average Likelihood Ranking (LR): LR1 + LR2 + LR3 divided by Total Number of LR Assessed"]
[null,"  - Weighted Average Severity Rating (ASR): (LR1 x SR1) + (LR2 x SR2) divided by 10, where SR is the Severity Rating for each hazard event assessed."]
[]
[null,"To determine the risk level of each scenario, we refer to the provided Risk Matrix."]
[]
[null,"1) Scenario #1: "]
[null,"     - Based on the likelihood ranking score obtained, i.e. 8.5, the scenario's likelihood ranking based on exposure and vulnerability, when compared with other potential scenarios in the city of Mackay, is classified as \"Very High\"."]
[null,"     - Based on the severity rating obtained, i.e. 65.0, the event's severity is classified as \"Major\"."]
[null,"     - As a result, a final risk level of \"H8\" is obtained."]
[null,"2) Scenario #2:"]
[null,"     - As this scenario is built upon two hazard events within the same hazard sub-family, the average likelihood ranking score is calculated using the likelihood ranking score for each hazard event. In this case, the average likelihood ranking score equals 5.5 (i.e. 4.0 + 7.0 / 2), hence the scenario’s likelihood ranking based on exposure and vulnerability, when compared with other potential scenarios in the city of Mackay, is classified as \"Moderate\"."]
[null,"     - The weighted average severity rating is calculated using each hazard event's severity rating weighted by each hazard event's likelihood ranking score. The scenario's severity rating equals 30 (i.e. 4.0 x 5.0 + 7.0 x 40.0 / 10), hence the scenario's severity is classified as \"Moderate\"."]
[null,"     - As a result, a final risk level of \"M5\" is obtained."]
[null,"3) Scenario #3: "]
[null,"     - As this scenario is built upon three hazard events, the average likelihood ranking score is calculated using the likelihood ranking score for each hazard event. In this case, the average likelihood ranking score equals 7.5 (i.e. 6.5 + 7.5 + 8.5 / 3), hence the scenario’s likelihood ranking based on exposure and vulnerability, when compared with other potential scenarios in the city of Mackay, is classified as \"High\"."]
[null,"     - As this scenario is built upon hazard event from different hazard sub-families (i.e. two within the geophysical hazard sub-family and one within the hydrological hazard sub-family), the weighted average severity rating is calculated as follows: first the weighted average severity rating for the hazard event of the same sub-family (i.e. ground movement and landslide) is calculated using each hazard event's severity rating weighted by each hazard event's likelihood ranking score (74.25, i.e. [6.5 x 45.0] + [7.5 X 60.0] / 10); secondly, the severity rating of the third hazard event (flood) is multiplied by its likelihood ranking score (55.25, i.e. [8.5 X 65.0] / 10); finally, the average of the two calculated ratings is obtained (64.75 i.e. [74.25 + 55.25] / 2 ). Therefore the scenario's average severity rating equals 64.75, hence the scenario's severity is classified as \"Major\"."]
[null,"     - As a result, a final risk level of \"H7\" is obtained."]
[]
[null,"These scenarios can then be prioritised based on their risk level, i.e. scenario #1 > scenario #3 > scenario #2. This will guide the city of Mackay in designing an action plan accordingly."]
[]
["End"]

{"sheet":"Hazard Glossary","index":2,"n_rows":95,"n_cols":16384,"rows_kept":95,"cut":false,"hidden":false,"merged":[[9,1,13,1]]}
[{"$f":"MdlTle","v":"Quick Risk Estimation (QRE) Tool"}]
[{"$f":"MID(CELL(\"filename\",A1),FIND(\"]\",CELL(\"filename\",A1))+1,255)","v":"Hazard Glossary"}]
[]
[]
[]
[null,"Term","Definition"]
[null,"Airburst","An explosion of a comet or meteoroid within the Earth’s atmosphere without striking the ground."]
[null,"Animal Incident ","Human encounters with dangerous or exotic animals in both urban and rural environments."]
[null,"Ash Fall","Fine (less than 4 mm in diameter) unconsolidated volcanic debris blown into the atmosphere during an eruption; can remain airborne for long periods of time and travel considerable distance from the source."]
[null,"Avalanche","A large mass of loosened earth material, snow, or ice that slides, flows or falls rapidly down a mountainside under the force of gravity."]
[]
[null,null,"• Snow Avalanche: Rapid downslope movement of a mix of snow and ice."]
[]
[null,null,"• Debris Avalanche: The sudden and very rapid downslope movement of unsorted mass of rock and soil. There are two general types of debris avalanches - a cold debris avalanche usually results from an unstable slope suddenly collapsing whereas a hot debris avalanche results from volcanic activity leading to slope instability and collapse."]
[null,"Aviation Accident","To be updated"]
[null,"Bacterial Disease","An unusual increase in the number of incidents caused by the exposure to bacteria either through skin contact, ingestion or inhalation. Examples include salmonella, MSRA, and cholera, among others."]
[null,"Biological Hazard","A hazard caused by the exposure to living organisms and their toxic substances (e.g. venom, mold) or vector-borne diseases that they may carry. Examples are venomous wildlife and insects, poisonous plants, and mosquitoes carrying disease-causing agents such as parasites, bacteria, or viruses (e.g. malaria)."]
[null,"Chemical Spill","To be updated"]
[null,"Climatological Hazard","A hazard caused by long-lived, meso- to macro-scale atmospheric processes ranging from intra-seasonal to multi-decadal climate variability."]
[null,"Coastal Erosion","The temporary or permanent loss of sediments or landmass in coastal margins due to the action of waves, winds, tides, or anthropogenic activities,"]
[null,"Coastal Flood","Higher-than-normal water levels along the coast caused by tidal changes or thunderstorms that result in flooding, which can last from days to weeks."]
[null,"Cold Wave ","A period of abnormally cold weather. Typically, a cold wave lasts two or more days and may be aggravated by high winds. The exact temperature criteria for what constitutes a cold wave vary by location."]
[null,"Convective Storm","A type of meteorological hazard generated by the heating of air and the availability of moist and unstable air masses. Convective storms range from localised thunderstorms (with heavy rain and/or hail, lightning, high winds, tornadoes) to meso-scale, multi-day events."]
[null,"Debris Flow, Mud Flow, Rock Fall","Types of landslides that occur when heavy rain or rapid snow/ice melt send large amounts of vegetation, mud, or rock downslope by gravitational forces."]
[null,"Derecho","Widespread and usually fast-moving windstorms associated with convection/convective storm. Derechos include downburst and straight-line winds. The damage from derechos is often confused with the damage from tornadoes."]
[null,"Disease","Either an unusual, often sudden, increase in the number of incidents of an infectious disease that already existed in the region (e.g., flu, E. coli) or the appearance of an infectious disease previously absent from the region (e.g., plague, polio)."]
[null,"Drought","An extended period of unusually low precipitation that produces a shortage of water for people, animals and plants. Drought is different from most other hazards in that it develops slowly, sometimes even over years, and its onset is generally difficult to detect. Drought is not solely a physical phenomenon because its impacts can be exacerbated by human activities and water supply demands. Drought is therefore often defined both conceptually and operationally. Operational definitions of drought, meaning the degree of precipitation reduction that constitutes a drought, vary by locality, climate and environmental sector."]
[null,"Earthquake","Sudden movement of a block of the Earth’s crust along a geological fault and associated ground shaking."]
[null,"Energetic Particles","Emissions from solar radiation storms consisting of pieces of matter (e.g., protons and other charged particles) moving at very high speed. The magnetosphere and atmosphere block (solar) energetic particles (SEP) from reaching humans on Earth but they are damaging to the electronics of space-borne technology (such as satellites) and pose a radiation hazard to life in space and aircrafts travelling at high altitudes."]
[null,"Expansive Soil","Earthen material, particularly clays that, upon wetting, freezing, or drying will alternately expand or contract causing damage to foundations of buildings and other structures. Shrinkage is generally referred to as desiccation."]
[null,"Extraterrestrial Hazard","A hazard caused by asteroids, meteoroids, and comets as they pass near-earth, enter the Earth’s atmosphere, and/or strike the Earth, and by changes in interplanetary conditions that effect the Earth’s magnetosphere, ionosphere, and thermosphere."]
[null,"Extratropical Storm","A type of low-pressure cyclonic system in the middle and high latitudes (also called mid-latitude cyclone) that primarily gets its energy from the horizontal temperature contrasts (fronts) in the atmosphere. When associated with cold fronts, extratropical cyclones may be particularly damaging (e.g., European winter/windstorm, Nor’easter)."]
[null,"Extreme Temperature","A general term for temperature variations above (extreme heat) or below (extreme cold) normal conditions."]
[null,"Fire","To be updated"]
[null,"Fire following Earthquake","Urban fires triggered by earthquakes. Particularly susceptible areas include densely spaced, wooden buildings that dominate local architecture, and where the earthquake has damaged or ruptured water and gas pipelines. Small local fires have the potential to merge into conflagrations destroying many city blocks."]
[null,"Flash Flood","Heavy or excessive rainfall in a short period of time that produce immediate runoff, creating flooding conditions within minutes or a few hours during or after the rainfall."]
[null,"Flood","A general term for the overflow of water from a stream channel onto normally dry land in the floodplain (riverine flooding), higher-than normal levels along the coast and in lakes or reservoirs (coastal flooding) as well as ponding of water at or near the point where the rain fell (flash floods)."]
[null,"Fog","Water droplets that are suspended in the air near the Earth’s surface. Fog is simply a cloud that is in contact with the ground."]
[null,"Forest Fire ","A type of wildfire in a wooded area."]
[null,"Frost","Freeze Frost is the consequence of radiative cooling resulting in the formation of thin ice crystals on the ground or other surfaces in the form of needles, feathers, scales, or fans. Frost occurs when the temperature of surfaces is below freezing and water vapour from humid air forms solid deposits on the cold surface. Freeze occurs when the air temperature is at (32˚F/0˚C) or below over a widespread area for a climatologically significant period of time. Use of the term is usually restricted to advective situations or to occasions when wind or other conditions prevent frost. Frost and freeze are particularly damaging during the crop growing season."]
[null,"Fungal Disease","Exposure to fungi either through skin contact, ingestion or inhalation of spores resulting in an unusual increase in the number of incidents. Examples are fungal pneumonia, fungal meningitis, etc."]
[null,"Geomagnetic Storm","A type of extra-terrestrial hazard caused by solar wind shockwaves that temporarily disturb the Earth’s magnetosphere. Geomagnetic storms can disrupt power grids, spacecraft operations, and satellite communications."]
[null,"Geophysical Hazard","A hazard originating from solid earth. This term is used interchangeably with the term geological hazard."]
[null,"Glacial Lake Outburst","A flood that occurs when water dammed by a glacier or moraine is suddenly released. Glacial lakes can be at the front of the glacier (marginal lake) or below the ice sheet (sub-glacial lake)."]
[null,"Ground Movement","Surface displacement of earthen materials due to ground shaking triggered by earthquakes or volcanic eruptions."]
[null,"Hail ","Solid precipitation in the form of irregular pellets or balls of ice more than 5 mm in diameter."]
[null,"Heat Wave ","A period of abnormally hot and/or unusually humid weather. Typically a heat wave lasts two or more days. The exact temperature criteria for what constitutes a heat wave vary by location."]
[null,"Hydrological Hazard","A hazard caused by the occurrence, movement, and distribution of surface and subsurface freshwater and saltwater."]
[null,"Ice Jam Flood","The accumulation of floating ice restricting or blocking a river’s flow and drainage. Ice jams tend to develop near river bends and obstructions (e.g., bridges)."]
[null,"Impact","A type of extra-terrestrial hazard caused by the collision of the Earth with a meteoroid, asteroid or comet."]
[null,"Industrial Disaster","To be updated"]
[null,"Industrial Explosion","To be updated"]
[null,"Insect Infestation","The pervasive influx, swarming and/or hatching of insects affecting humans, animals, crops, and perishable goods. Examples are locusts and African Bees."]
[null,"Lahar","Hot or cold mixture of earthen material flowing on the slope of a volcano either during or between volcanic eruptions."]
[null,"Landslide following Earthquake","Independent of the presence of water, mass movement may also be triggered by earthquakes."]
[null,"Lava Flow","The ejected magma that moves as a liquid mass downslope from a volcano during an eruption."]
[null,"Lightning","A high-voltage, visible electrical discharge produced by a thunderstorm and followed by the sound of thunder."]
[null,"Liquefaction","The transformation of (partially) water-saturated soil from a solid state to a liquid state caused by an earthquake. Liquefaction reduces the strength and stiffness of soil causing buildings to topple over."]
[null,"Mass Movement","Any type of downslope movement of earth materials."]
[null,"Meteorological Hazard","A hazard caused by short-lived, micro- to meso-scale extreme weather and atmospheric conditions that last from minutes to days."]
[null,"Mine Disaster","To be updated"]
[null,"Navigation Accident","To be updated"]
[null,"Oil Spill","To be updated"]
[null,"Parasitic Disease","Exposure to a parasite–an organism living on or in a host–causes an unusual increase in the number of incidents. Exposure to parasites occurs mostly through contaminated water, food or contact with insects, animals (zoonotic), pets, etc. Examples are malaria, chagas disease, giardiasis and trichinellosis."]
[null,"Power Outage","To be updated"]
[null,"Prion Disease","A type of biological hazard caused by prion proteins. Prion diseases or transmissible spongiform encephalopathies (TSEs) are a family of rare progressive neurodegenerative disorders that affect both humans and animals characterised by long incubation periods and neural loss. Examples are Bovine Spongiform Encephalopathy (BSE), Creutzfeldt-Jakob-Disease (CJD), Kuru, etc."]
[null,"Pyroclastic Flow","Extremely hot gases, ash, and other materials of more than 1,000 degrees Celsius that rapidly flow down the flank of a volcano (more than 700 km/h) during an eruption."]
[null,"Radiation contamination (e.g. nuclear incident)","To be updated"]
[null,"Radio Disturbance","Triggered by x-ray emissions from the Sun hitting the Earth’s atmosphere and causing disturbances in the ionosphere such as jamming of high and/or low frequency radio signals. This affects satellite radio communication and Global Positioning Systems (GPS)."]
[null,"Rail Accident","To be updated"]
[null,"Rain","Water vapour condenses in the atmosphere to form water droplets that fall to the Earth."]
[null,"Riverine Flood ","A type of flooding resulting from the overflow of water from a stream or river channel onto normally dry land in the floodplain adjacent to the channel."]
[null,"Road Accident","To be updated"]
[null,"Rogue Wave ","An unusual single crest of an ocean wave far out at sea that is much higher and/or steeper than other waves in the prevailing swell system."]
[null,"Sandstorm, Dust Storm","Strong winds carry particles of sand aloft, but generally confined to less than 50 feet (15 m), especially common in arid and semi-arid environments. A dust storm is also characterised by strong winds but carries smaller particles of dust rather than sand over an extensive area."]
[null,"Seiche","A standing wave of water in a large semi- or fully-enclosed body of water (lakes or bays) created by strong winds and/or a large barometric pressure gradient."]
[null,"Shockwave","A shockwave carries energy from a disturbance through a medium (solid, liquid, gas) similar to a wave though it travels at much higher speed. It can be a type of extra-terrestrial hazard caused by the explosion (airburst) or impact of meteorites that generate energy shockwaves capable of shattering glass, collapsing walls, etc."]
[null,"Sinkhole","Collapse of the land surface due to the dissolving of the subsurface rocks such as limestone or carbonate rock by water."]
[null,"Snow, Ice","Precipitation in the form of ice crystals/snowflakes or ice pellets (sleet) formed directly from freezing water vapour in the air. Ice accumulates when rain hits the cold surface and freezes."]
[null,"Space Accident","To be updated"]
[null,"Space Weather","A general term for extra-terrestrial weather conditions driven by solar eruptions such as geomagnetic storms, radio disturbances, and solar energetic particles."]
[null,"Storm Surge","An abnormal rise in sea level generated by a tropical cyclone or other intense storms."]
[null,"Structural Collapse","To be updated"]
[null,"Subsidence","Subsidence refers to the sinking of the ground due to groundwater removal, mining, dissolution of limestone (e.g., karst, sinkholes), extraction of natural gas, and earthquakes."]
[null,"Tornado","A violently rotating column of air that reaches the ground or open water (waterspout)."]
[null,"Tropical Cyclone","A tropical cyclone originates over tropical or subtropical waters. It is characterised by a warm-core, non-frontal synoptic-scale cyclone with a low pressure centre, spiral rain bands and strong winds. Depending on their location, tropical cyclones are referred to as hurricanes (Atlantic, Northeast Pacific), typhoons (Northwest Pacific), or cyclones (South Pacific and Indian Ocean)."]
[null,"Tsunami","A series of waves (with long wavelengths when traveling across the deep ocean) that are generated by a displacement of massive amounts of water through underwater earthquakes, volcanic eruptions or landslides. Tsunami waves travel at very high speed across the ocean but as they begin to reach shallow water they slow down and the wave grows steeper."]
[null,"Volcanic Activity","A type of volcanic event near an opening/vent in the Earth’s surface including volcanic eruptions of lava, ash, hot vapour, gas, and pyroclastic material."]
[null,"Wave Action ","Wind-generated surface waves that can occur on the surface of any open body of water such as oceans, rivers and lakes, etc. The size of the wave depends on the strength of the wind and the travelled distance (fetch)."]
[null,"Wildfire","Any uncontrolled and non-prescribed combustion or burning of plants in a natural setting, such as a forest, grassland, brush land or tundra, which consumes the natural fuels and spreads based on environmental conditions (e.g., wind, topography). Wildfires can be triggered by lightning or human actions."]
[null,"Wind","Differences in air pressure resulting in the horizontal motion of air. The greater the difference in pressure, the stronger the wind. Wind moves from high pressure toward low pressure."]
[null,"Winter Storm, Blizzard","A low-pressure system in winter months with significant accumulations of snow, freezing rain, sleet or ice. A blizzard is a severe snow storm with winds exceeding 35 mph (56 km/h) for three or more hours."]
[]
[]
["End",null,null,null,null,null,null,null,null,null,null,null,"End","End","End","End","End","End","End","End","End","End","End","End","End","End","End","End","End","End","End","End","End","End","End","End","End","End","End","End","End","End","End","End","End","End","End","End","End","End","End","End","End","End","End","End","End","End","End","End","End","End","End","End","End","End","End","End","End","End","End","End","End","End","End","End","End","End","End","End","End","End","End","End","End","End","End","End","End","End","End","End","End","End","End","End","End","End","End","End","End","End","End","End","End","End","End","End","End","End","End","End","End","End","End","End","End","End","End","End","End","End","End","End","End","End","End","End","End","End","End","End","End","End","End","End","End","End","End","End","End","End","End","End","End","End","End","End","End","End","End","End","End","End","End","End","End","End","End","End","End","End","End","End","End","End","End","End","End","End","End","End","End","End","End","End","End","End","End","End","End","End","End","End","End","End","End","End","End","End","End","End","End","End","End","End","End","End","End","End","End","End","End","End","End","End","End","End","End","End","End","End","End","End","End","End","End","End","End","End","End","End","End","End","End","End","End","End","End","End","End","End","End","End","End","End","End","End","End","End","End","End","End","End","End","End","End","End","End","End","End","End","End","End","End","End","End","End","End","End","End","End","End","End","End","End","End","End","End","End","End","End","End","End","End","End","End","End","End","End","End","End","End","End","End","End","End","End","End","End","End","End","End","End","End","End","End","End","End","End","End","End","End","End","End","End","End","End","End","End","End","End","End","End","End","End","End","End","End","End","End","End","End","End","End","End","End","End","End","End","End","End","End","End","End","End","End","End","End","End","End","End","End","End","End","End","End","End","End","End","End","End","End","End","End","End","End","End","End","End","End","End","End","End","End","End","End","End","End","End","End","End","End","End","End","End","End","End","End","End","End","End","End","End","End","End","End","End","End","End","End","End","End","End","End","End","End","End","End","End","End","End","End","End","End","End","End","End","End","End","End","End","End","End","End","End","End","End","End","End","End","End","End","End","End","End","End","End","End","End","End","End","End","End","End","End","End","End","End","End","End","End","End","End","End","End","End","End","End","End","End","End","End","End","End","End","End","End","End","End","End","End","End","End","End","End","End","End","End","End","End","End","End","End","End","End","End","End","End","End","End","End","End","End","End","End","End","End","End","End","End","End","End","End","End","End","End","End","End","End","End","End","End","End","End","End","End","End","End","End","End","End","End","End","End","End","End","End","End","End","End","End","End","End","End","End","End","End","End","End","End","End","End","End","End","End","End","End","End","End","End","End","End","End","End","End","End","End","End","End","End","End","End","End","End","End","End","End","End","End","End","End","End","End","End","End","End","End","End","End","End","End","End","End","End","End","End","End","End","End","End","End","End","End","End","End","End","End","End","End","End","End","End","End","End","End","End","End","End","End","End","End","End","End","End","End","End","End","End","End","End","End","End","End","End","End","End","End","End","End","End","End","End","End","End","End","End","End","End","End","End","End","End","End","End","End","End","End","End","End","End","End","End","End","End","End","End","End","End","End","End","End","End","End","End","End","End","End","End","End","End","End","End","End","End","End","End","End","End","End","End","End","End","End","End","End","End","End","End","End","End","End","End","End","End","End","End","End","End","End","End","End","End","End","End","End","End","End","End","End","End","End","End","End","End","End","End","End","End","End","End","End","End","End","End","End","End","End","End","End","End","End","End","End","End","End","End","End","End","End","End","End","End","End","End","End","End","End","End","End","End","End","End","End","End","End","End","End","End","End","End","End","End","End","End","End","End","End","End","End","End","End","End","End","End","End","End","End","End","End","End","End","End","End","End","End","End","End","End","End","End","End","End","End","End","End","End","End","End","End","End","End","End","End","End","End","End","End","End","End","End","End","End","End","End","End","End","End","End","End","End","End","End","End","End","End","End","End","End","End","End","End","End","End","End","End","End","End","End","End","End","End","End","End","End","End","End","End","End","End","End","End","End","End","End","End","End","End","End","End","End","End","End","End","End","End","End","End","End","End","End","End","End","End","End","End","End","End","End","End","End","End","End","End","End","End","End","End","End","End","End","End","End","End","End","End","End","End","End","End","End","End","End","End","End","End","End","End","End","End","End","End","End","End","End","End","End","End","End","End","End","End","End","End","End","End","End","End","End","End","End","End","End","End","End","End","End","End","End","End","End","End","End","End","End","End","End","End","End","End","End","End","End","End","End","End","End","End","End","End","End","End","End","End","End","End","End","End","End","End","End","End","End","End","End","End","End","End","End","End","End","End","End","End","End","End","End","End","End","End","End","End","End","End","End","End","End","End","End","End","End","End","End","End","End","End","End","End","End","End","End","End","End","End","End","End","End","End","End","End","End","End","End","End","End","End","End","End","End","End","End","End","End","End","End","End","End","End","End","End","End","End","End","End","End","End","End","End","End","End","End","End","End","End","End","End","End","End","End","End","End","End","End","End","End","End","End","End","End","End","End","End","End","End","End","End","End","End","End","End","End","End","End","End","End","End","End","End","End","End","End","End","End","End","End","End","End","End","End","End","End","End","End","End","End","End","End","End","End","End","End","End","End","End","End","End","End","End","End","End","End","End","End","End","End","End","End","End","End","End","End","End","End","End","End","End","End","End","End","End","End","End","End","End","End","End","End","End","End","End","End","End","End","End","End","End","End","End","End","End","End","End","End","End","End","End","End","End","End","End","End","End","End","End","End","End","End","End","End","End","End","End","End","End","End","End","End","End","End","End","End","End","End","End","End","End","End","End","End","End","End","End","End","End","End","End","End","End","End","End","End","End","End","End","End","End","End","End","End","End","End","End","End","End","End","End","End","End","End","End","End","End","End","End","End","End","End","End","End","End","End","End","End","End","End","End","End","End","End","End","End","End","End","End","End","End","End","End","End","End","End","End","End","End","End","End","End","End","End","End","End","End","End","End","End","End","End","End","End","End","End","End","End","End","End","End","End","End","End","End","End","End","End","End","End","End","End","End","End","End","End","End","End","End","End","End","End","End","End","End","End","End","End","End","End","End","End","End","End","End","End","End","End","End","End","End","End","End","End","End","End","End","End","End","End","End","End","End","End","End","End","End","End","End","End","End","End","End","End","End","End","End","End","End","End","End","End","End","End","End","End","End","End","End","End","End","End","End","End","End","End","End","End","End","End","End","End","End","End","End","End","End","End","End","End","End","End","End","End","End","End","End","End","End","End","End","End","End","End","End","End","End","End","End","End","End","End","End","End","End","End","End","End","End","End","End","End","End","End","End","End","End","End","End","End","End","End","End","End","End","End","End","End","End","End","End","End","End","End","End","End","End","End","End","End","End","End","End","End","End","End","End","End","End","End","End","End","End","End","End","End","End","End","End","End","End","End","End","End","End","End","End","End","End","End","End","End","End","End","End","End","End","End","End","End","End","End","End","End","End","End","End","End","End","End","End","End","End","End","End","End","End","End","End","End","End","End","End","End","End","End","End","End","End","End","End","End","End","End","End","End","End","End","End","End","End","End","End","End","End","End","End","End","End","End","End","End","End","End","End","End","End","End","End","End","End","End","End","End","End","End","End","End","End","End","End","End","End","End","End","End","End","End","End","End","End","End","End","End","End","End","End","End","End","End","End","End","End","End","End","End","End","End","End","End","End","End","End","End","End","End","End","End","End","End","End","End","End","End","End","End","End","End","End","End","End","End","End","End","End","End","End","End","End","End","End","End","End","End","End","End","End","End","End","End","End","End","End","End","End","End","End","End","End","End","End","End","End","End","End","End","End","End","End","End","End","End","End","End","End","End","End","End","End","End","End","End","End","End","End","End","End","End","End","End","End","End","End","End","End","End","End","End","End","End","End","End","End","End","End","End","End","End","End","End","End","End","End","End","End","End","End","End","End","End","End","End","End","End","End","End","End","End","End","End","End","End","End","End","End","End","End","End","End","End","End","End","End","End","End","End","End","End","End","End","End","End","End","End","End","End","End","End","End","End","End","End","End","End","End","End","End","End","End","End","End","End","End","End","End","End","End","End","End","End","End","End","End","End","End","End","End","End","End","End","End","End","End","End","End","End","End","End","End","End","End","End","End","End","End","End","End","End","End","End","End","End","End","End","End","End","End","End","End","End","End","End","End","End","End","End","End","End","End","End","End","End","End","End","End","End","End","End","End","End","End","End","End","End","End","End","End","End","End","End","End","End","End","End","End","End","End","End","End","End","End","End","End","End","End","End","End","End","End","End","End","End","End","End","End","End","End","End","End","End","End","End","End","End","End","End","End","End","End","End","End","End","End","End","End","End","End","End","End","End","End","End","End","End","End","End","End","End","End","End","End","End","End","End","End","End","End","End","End","End","End","End","End","End","End","End","End","End","End","End","End","End","End","End","End","End","End","End","End","End","End","End","End","End","End","End","End","End","End","End","End","End","End","End","End","End","End","End","End","End","End","End","End","End","End","End","End","End","End","End","End","End","End","End","End","End","End","End","End","End","End","End","End","End","End","End","End","End","End","End","End","End","End","End","End","End","End","End","End","End","End","End","End","End","End","End","End","End","End","End","End","End","End","End","End","End","End","End","End","End","End","End","End","End","End","End","End","End","End","End","End","End","End","End","End","End","End","End","End","End","End","End","End","End","End","End","End","End","End","End","End","End","End","End","End","End","End","End","End","End","End","End","End","End","End","End","End","End","End","End","End","End","End","End","End","End","End","End","End","End","End","End","End","End","End","End","End","End","End","End","End","End","End","End","End","End","End","End","End","End","End","End","End","End","End","End","End","End","End","End","End","End","End","End","End","End","End","End","End","End","End","End","End","End","End","End","End","End","End","End","End","End","End","End","End","End","End","End","End","End","End","End","End","End","End","End","End","End","End","End","End","End","End","End","End","End","End","End","End","End","End","End","End","End","End","End","End","End","End","End","End","End","End","End","End","End","End","End","End","End","End","End","End","End","End","End","End","End","End","End","End","End","End","End","End","End","End","End","End","End","End","End","End","End","End","End","End","End","End","End","End","End","End","End","End","End","End","End","End","End","End","End","End","End","End","End","End","End","End","End","End","End","End","End","End","End","End","End","End","End","End","End","End","End","End","End","End","End","End","End","End","End","End","End","End","End","End","End","End","End","End","End","End","End","End","End","End","End","End","End","End","End","End","End","End","End","End","End","End","End","End","End","End","End","End","End","End","End","End","End","End","End","End","End","End","End","End","End","End","End","End","End","End","End","End","End","End","End","End","End","End","End","End","End","End","End","End","End","End","End","End","End","End","End","End","End","End","End","End","End","End","End","End","End","End","End","End","End","End","End","End","End","End","End","End","End","End","End","End","End","End","End","End","End","End","End","End","End","End","End","End","End","End","End","End","End","End","End","End","End","End","End","End","End","End","End","End","End","End","End","End","End","End","End","End","End","End","End","End","End","End","End","End","End","End","End","End","End","End","End","End","End","End","End","End","End","End","End","End","End","End","End","End","End","End","End","End","End","End","End","End","End","End","End","End","End","End","End","End","End","End","End","End","End","End","End","End","End","End","End","End","End","End","End","End","End","End","End","End","End","End","End","End","End","End","End","End","End","End","End","End","End","End","End","End","End","End","End","End","End","End","End","End","End","End","End","End","End","End","End","End","End","End","End","End","End","End","End","End","End","End","End","End","End","End","End","End","End","End","End","End","End","End","End","End","End","End","End","End","End","End","End","End","End","End","End","End","End","End","End","End","End","End","End","End","End","End","End","End","End","End","End","End","End","End","End","End","End","End","End","End","End","End","End","End","End","End","End","End","End","End","End","End","End","End","End","End","End","End","End","End","End","End","End","End","End","End","End","End","End","End","End","End","End","End","End","End","End","End","End","End","End","End","End","End","End","End","End","End","End","End","End","End","End","End","End","End","End","End","End","End","End","End","End","End","End","End","End","End","End","End","End","End","End","End","End","End","End","End","End","End","End","End","End","End","End","End","End","End","End","End","End","End","End","End","End","End","End","End","End","End","End","End","End","End","End","End","End","End","End","End","End","End","End","End","End","End","End","End","End","End","End","End","End","End","End","End","End","End","End","End","End","End","End","End","End","End","End","End","End","End","End","End","End","End","End","End","End","End","End","End","End","End","End","End","End","End","End","End","End","End","End","End","End","End","End","End","End","End","End","End","End","End","End","End","End","End","End","End","End","End","End","End","End","End","End","End","End","End","End","End","End","End","End","End","End","End","End","End","End","End","End","End","End","End","End","End","End","End","End","End","End","End","End","End","End","End","End","End","End","End","End","End","End","End","End","End","End","End","End","End","End","End","End","End","End","End","End","End","End","End","End","End","End","End","End","End","End","End","End","End","End","End","End","End","End","End","End","End","End","End","End","End","End","End","End","End","End","End","End","End","End","End","End","End","End","End","End","End","End","End","End","End","End","End","End","End","End","End","End","End","End","End","End","End","End","End","End","End","End","End","End","End","End","End","End","End","End","End","End","End","End","End","End","End","End","End","End","End","End","End","End","End","End","End","End","End","End","End","End","End","End","End","End","End","End","End","End","End","End","End","End","End","End","End","End","End","End","End","End","End","End","End","End","End","End","End","End","End","End","End","End","End","End","End","End","End","End","End","End","End","End","End","End","End","End","End","End","End","End","End","End","End","End","End","End","End","End","End","End","End","End","End","End","End","End","End","End","End","End","End","End","End","End","End","End","End","End","End","End","End","End","End","End","End","End","End","End","End","End","End","End","End","End","End","End","End","End","End","End","End","End","End","End","End","End","End","End","End","End","End","End","End","End","End","End","End","End","End","End","End","End","End","End","End","End","End","End","End","End","End","End","End","End","End","End","End","End","End","End","End","End","End","End","End","End","End","End","End","End","End","End","End","End","End","End","End","End","End","End","End","End","End","End","End","End","End","End","End","End","End","End","End","End","End","End","End","End","End","End","End","End","End","End","End","End","End","End","End","End","End","End","End","End","End","End","End","End","End","End","End","End","End","End","End","End","End","End","End","End","End","End","End","End","End","End","End","End","End","End","End","End","End","End","End","End","End","End","End","End","End","End","End","End","End","End","End","End","End","End","End","End","End","End","End","End","End","End","End","End","End","End","End","End","End","End","End","End","End","End","End","End","End","End","End","End","End","End","End","End","End","End","End","End","End","End","End","End","End","End","End","End","End","End","End","End","End","End","End","End","End","End","End","End","End","End","End","End","End","End","End","End","End","End","End","End","End","End","End","End","End","End","End","End","End","End","End","End","End","End","End","End","End","End","End","End","End","End","End","End","End","End","End","End","End","End","End","End","End","End","End","End","End","End","End","End","End","End","End","End","End","End","End","End","End","End","End","End","End","End","End","End","End","End","End","End","End","End","End","End","End","End","End","End","End","End","End","End","End","End","End","End","End","End","End","End","End","End","End","End","End","End","End","End","End","End","End","End","End","End","End","End","End","End","End","End","End","End","End","End","End","End","End","End","End","End","End","End","End","End","End","End","End","End","End","End","End","End","End","End","End","End","End","End","End","End","End","End","End","End","End","End","End","End","End","End","End","End","End","End","End","End","End","End","End","End","End","End","End","End","End","End","End","End","End","End","End","End","End","End","End","End","End","End","End","End","End","End","End","End","End","End","End","End","End","End","End","End","End","End","End","End","End","End","End","End","End","End","End","End","End","End","End","End","End","End","End","End","End","End","End","End","End","End","End","End","End","End","End","End","End","End","End","End","End","End","End","End","End","End","End","End","End","End","End","End","End","End","End","End","End","End","End","End","End","End","End","End","End","End","End","End","End","End","End","End","End","End","End","End","End","End","End","End","End","End","End","End","End","End","End","End","End","End","End","End","End","End","End","End","End","End","End","End","End","End","End","End","End","End","End","End","End","End","End","End","End","End","End","End","End","End","End","End","End","End","End","End","End","End","End","End","End","End","End","End","End","End","End","End","End","End","End","End","End","End","End","End","End","End","End","End","End","End","End","End","End","End","End","End","End","End","End","End","End","End","End","End","End","End","End","End","End","End","End","End","End","End","End","End","End","End","End","End","End","End","End","End","End","End","End","End","End","End","End","End","End","End","End","End","End","End","End","End","End","End","End","End","End","End","End","End","End","End","End","End","End","End","End","End","End","End","End","End","End","End","End","End","End","End","End","End","End","End","End","End","End","End","End","End","End","End","End","End","End","End","End","End","End","End","End","End","End","End","End","End","End","End","End","End","End","End","End","End","End","End","End","End","End","End","End","End","End","End","End","End","End","End","End","End","End","End","End","End","End","End","End","End","End","End","End","End","End","End","End","End","End","End","End","End","End","End","End","End","End","End","End","End","End","End","End","End","End","End","End","End","End","End","End","End","End","End","End","End","End","End","End","End","End","End","End","End","End","End","End","End","End","End","End","End","End","End","End","End","End","End","End","End","End","End","End","End","End","End","End","End","End","End","End","End","End","End","End","End","End","End","End","End","End","End","End","End","End","End","End","End","End","End","End","End","End","End","End","End","End","End","End","End","End","End","End","End","End","End","End","End","End","End","End","End","End","End","End","End","End","End","End","End","End","End","End","End","End","End","End","End","End","End","End","End","End","End","End","End","End","End","End","End","End","End","End","End","End","End","End","End","End","End","End","End","End","End","End","End","End","End","End","End","End","End","End","End","End","End","End","End","End","End","End","End","End","End","End","End","End","End","End","End","End","End","End","End","End","End","End","End","End","End","End","End","End","End","End","End","End","End","End","End","End","End","End","End","End","End","End","End","End","End","End","End","End","End","End","End","End","End","End","End","End","End","End","End","End","End","End","End","End","End","End","End","End","End","End","End","End","End","End","End","End","End","End","End","End","End","End","End","End","End","End","End","End","End","End","End","End","End","End","End","End","End","End","End","End","End","End","End","End","End","End","End","End","End","End","End","End","End","End","End","End","End","End","End","End","End","End","End","End","End","End","End","End","End","End","End","End","End","End","End","End","End","End","End","End","End","End","End","End","End","End","End","End","End","End","End","End","End","End","End","End","End","End","End","End","End","End","End","End","End","End","End","End","End","End","End","End","End","End","End","End","End","End","End","End","End","End","End","End","End","End","End","End","End","End","End","End","End","End","End","End","End","End","End","End","End","End","End","End","End","End","End","End","End","End","End","End","End","End","End","End","End","End","End","End","End","End","End","End","End","End","End","End","End","End","End","End","End","End","End","End","End","End","End","End","End","End","End","End","End","End","End","End","End","End","End","End","End","End","End","End","End","End","End","End","End","End","End","End","End","End","End","End","End","End","End","End","End","End","End","End","End","End","End","End","End","End","End","End","End","End","End","End","End","End","End","End","End","End","End","End","End","End","End","End","End","End","End","End","End","End","End","End","End","End","End","End","End","End","End","End","End","End","End","End","End","End","End","End","End","End","End","End","End","End","End","End","End","End","End","End","End","End","End","End","End","End","End","End","End","End","End","End","End","End","End","End","End","End","End","End","End","End","End","End","End","End","End","End","End","End","End","End","End","End","End","End","End","End","End","End","End","End","End","End","End","End","End","End","End","End","End","End","End","End","End","End","End","End","End","End","End","End","End","End","End","End","End","End","End","End","End","End","End","End","End","End","End","End","End","End","End","End","End","End","End","End","End","End","End","End","End","End","End","End","End","End","End","End","End","End","End","End","End","End","End","End","End","End","End","End","End","End","End","End","End","End","End","End","End","End","End","End","End","End","End","End","End","End","End","End","End","End","End","End","End","End","End","End","End","End","End","End","End","End","End","End","End","End","End","End","End","End","End","End","End","End","End","End","End","End","End","End","End","End","End","End","End","End","End","End","End","End","End","End","End","End","End","End","End","End","End","End","End","End","End","End","End","End","End","End","End","End","End","End","End","End","End","End","End","End","End","End","End","End","End","End","End","End","End","End","End","End","End","End","End","End","End","End","End","End","End","End","End","End","End","End","End","End","End","End","End","End","End","End","End","End","End","End","End","End","End","End","End","End","End","End","End","End","End","End","End","End","End","End","End","End","End","End","End","End","End","End","End","End","End","End","End","End","End","End","End","End","End","End","End","End","End","End","End","End","End","End","End","End","End","End","End","End","End","End","End","End","End","End","End","End","End","End","End","End","End","End","End","End","End","End","End","End","End","End","End","End","End","End","End","End","End","End","End","End","End","End","End","End","End","End","End","End","End","End","End","End","End","End","End","End","End","End","End","End","End","End","End","End","End","End","End","End","End","End","End","End","End","End","End","End","End","End","End","End","End","End","End","End","End","End","End","End","End","End","End","End","End","End","End","End","End","End","End","End","End","End","End","End","End","End","End","End","End","End","End","End","End","End","End","End","End","End","End","End","End","End","End","End","End","End","End","End","End","End","End","End","End","End","End","End","End","End","End","End","End","End","End","End","End","End","End","End","End","End","End","End","End","End","End","End","End","End","End","End","End","End","End","End","End","End","End","End","End","End","End","End","End","End","End","End","End","End","End","End","End","End","End","End","End","End","End","End","End","End","End","End","End","End","End","End","End","End","End","End","End","End","End","End","End","End","End","End","End","End","End","End","End","End","End","End","End","End","End","End","End","End","End","End","End","End","End","End","End","End","End","End","End","End","End","End","End","End","End","End","End","End","End","End","End","End","End","End","End","End","End","End","End","End","End","End","End","End","End","End","End","End","End","End","End","End","End","End","End","End","End","End","End","End","End","End","End","End","End","End","End","End","End","End","End","End","End","End","End","End","End","End","End","End","End","End","End","End","End","End","End","End","End","End","End","End","End","End","End","End","End","End","End","End","End","End","End","End","End","End","End","End","End","End","End","End","End","End","End","End","End","End","End","End","End","End","End","End","End","End","End","End","End","End","End","End","End","End","End","End","End","End","End","End","End","End","End","End","End","End","End","End","End","End","End","End","End","End","End","End","End","End","End","End","End","End","End","End","End","End","End","End","End","End","End","End","End","End","End","End","End","End","End","End","End","End","End","End","End","End","End","End","End","End","End","End","End","End","End","End","End","End","End","End","End","End","End","End","End","End","End","End","End","End","End","End","End","End","End","End","End","End","End","End","End","End","End","End","End","End","End","End","End","End","End","End","End","End","End","End","End","End","End","End","End","End","End","End","End","End","End","End","End","End","End","End","End","End","End","End","End","End","End","End","End","End","End","End","End","End","End","End","End","End","End","End","End","End","End","End","End","End","End","End","End","End","End","End","End","End","End","End","End","End","End","End","End","End","End","End","End","End","End","End","End","End","End","End","End","End","End","End","End","End","End","End","End","End","End","End","End","End","End","End","End","End","End","End","End","End","End","End","End","End","End","End","End","End","End","End","End","End","End","End","End","End","End","End","End","End","End","End","End","End","End","End","End","End","End","End","End","End","End","End","End","End","End","End","End","End","End","End","End","End","End","End","End","End","End","End","End","End","End","End","End","End","End","End","End","End","End","End","End","End","End","End","End","End","End","End","End","End","End","End","End","End","End","End","End","End","End","End","End","End","End","End","End","End","End","End","End","End","End","End","End","End","End","End","End","End","End","End","End","End","End","End","End","End","End","End","End","End","End","End","End","End","End","End","End","End","End","End","End","End","End","End","End","End","End","End","End","End","End","End","End","End","End","End","End","End","End","End","End","End","End","End","End","End","End","End","End","End","End","End","End","End","End","End","End","End","End","End","End","End","End","End","End","End","End","End","End","End","End","End","End","End","End","End","End","End","End","End","End","End","End","End","End","End","End","End","End","End","End","End","End","End","End","End","End","End","End","End","End","End","End","End","End","End","End","End","End","End","End","End","End","End","End","End","End","End","End","End","End","End","End","End","End","End","End","End","End","End","End","End","End","End","End","End","End","End","End","End","End","End","End","End","End","End","End","End","End","End","End","End","End","End","End","End","End","End","End","End","End","End","End","End","End","End","End","End","End","End","End","End","End","End","End","End","End","End","End","End","End","End","End","End","End","End","End","End","End","End","End","End","End","End","End","End","End","End","End","End","End","End","End","End","End","End","End","End","End","End","End","End","End","End","End","End","End","End","End","End","End","End","End","End","End","End","End","End","End","End","End","End","End","End","End","End","End","End","End","End","End","End","End","End","End","End","End","End","End","End","End","End","End","End","End","End","End","End","End","End","End","End","End","End","End","End","End","End","End","End","End","End","End","End","End","End","End","End","End","End","End","End","End","End","End","End","End","End","End","End","End","End","End","End","End","End","End","End","End","End","End","End","End","End","End","End","End","End","End","End","End","End","End","End","End","End","End","End","End","End","End","End","End","End","End","End","End","End","End","End","End","End","End","End","End","End","End","End","End","End","End","End","End","End","End","End","End","End","End","End","End","End","End","End","End","End","End","End","End","End","End","End","End","End","End","End","End","End","End","End","End","End","End","End","End","End","End","End","End","End","End","End","End","End","End","End","End","End","End","End","End","End","End","End","End","End","End","End","End","End","End","End","End","End","End","End","End","End","End","End","End","End","End","End","End","End","End","End","End","End","End","End","End","End","End","End","End","End","End","End","End","End","End","End","End","End","End","End","End","End","End","End","End","End","End","End","End","End","End","End","End","End","End","End","End","End","End","End","End","End","End","End","End","End","End","End","End","End","End","End","End","End","End","End","End","End","End","End","End","End","End","End","End","End","End","End","End","End","End","End","End","End","End","End","End","End","End","End","End","End","End","End","End","End","End","End","End","End","End","End","End","End","End","End","End","End","End","End","End","End","End","End","End","End","End","End","End","End","End","End","End","End","End","End","End","End","End","End","End","End","End","End","End","End","End","End","End","End","End","End","End","End","End","End","End","End","End","End","End","End","End","End","End","End","End","End","End","End","End","End","End","End","End","End","End","End","End","End","End","End","End","End","End","End","End","End","End","End","End","End","End","End","End","End","End","End","End","End","End","End","End","End","End","End","End","End","End","End","End","End","End","End","End","End","End","End","End","End","End","End","End","End","End","End","End","End","End","End","End","End","End","End","End","End","End","End","End","End","End","End","End","End","End","End","End","End","End","End","End","End","End","End","End","End","End","End","End","End","End","End","End","End","End","End","End","End","End","End","End","End","End","End","End","End","End","End","End","End","End","End","End","End","End","End","End","End","End","End","End","End","End","End","End","End","End","End","End","End","End","End","End","End","End","End","End","End","End","End","End","End","End","End","End","End","End","End","End","End","End","End","End","End","End","End","End","End","End","End","End","End","End","End","End","End","End","End","End","End","End","End","End","End","End","End","End","End","End","End","End","End","End","End","End","End","End","End","End","End","End","End","End","End","End","End","End","End","End","End","End","End","End","End","End","End","End","End","End","End","End","End","End","End","End","End","End","End","End","End","End","End","End","End","End","End","End","End","End","End","End","End","End","End","End","End","End","End","End","End","End","End","End","End","End","End","End","End","End","End","End","End","End","End","End","End","End","End","End","End","End","End","End","End","End","End","End","End","End","End","End","End","End","End","End","End","End","End","End","End","End","End","End","End","End","End","End","End","End","End","End","End","End","End","End","End","End","End","End","End","End","End","End","End","End","End","End","End","End","End","End","End","End","End","End","End","End","End","End","End","End","End","End","End","End","End","End","End","End","End","End","End","End","End","End","End","End","End","End","End","End","End","End","End","End","End","End","End","End","End","End","End","End","End","End","End","End","End","End","End","End","End","End","End","End","End","End","End","End","End","End","End","End","End","End","End","End","End","End","End","End","End","End","End","End","End","End","End","End","End","End","End","End","End","End","End","End","End","End","End","End","End","End","End","End","End","End","End","End","End","End","End","End","End","End","End","End","End","End","End","End","End","End","End","End","End","End","End","End","End","End","End","End","End","End","End","End","End","End","End","End","End","End","End","End","End","End","End","End","End","End","End","End","End","End","End","End","End","End","End","End","End","End","End","End","End","End","End","End","End","End","End","End","End","End","End","End","End","End","End","End","End","End","End","End","End","End","End","End","End","End","End","End","End","End","End","End","End","End","End","End","End","End","End","End","End","End","End","End","End","End","End","End","End","End","End","End","End","End","End","End","End","End","End","End","End","End","End","End","End","End","End","End","End","End","End","End","End","End","End","End","End","End","End","End","End","End","End","End","End","End","End","End","End","End","End","End","End","End","End","End","End","End","End","End","End","End","End","End","End","End","End","End","End","End","End","End","End","End","End","End","End","End","End","End","End","End","End","End","End","End","End","End","End","End","End","End","End","End","End","End","End","End","End","End","End","End","End","End","End","End","End","End","End","End","End","End","End","End","End","End","End","End","End","End","End","End","End","End","End","End","End","End","End","End","End","End","End","End","End","End","End","End","End","End","End","End","End","End","End","End","End","End","End","End","End","End","End","End","End","End","End","End","End","End","End","End","End","End","End","End","End","End","End","End","End","End","End","End","End","End","End","End","End","End","End","End","End","End","End","End","End","End","End","End","End","End","End","End","End","End","End","End","End","End","End","End","End","End","End","End","End","End","End","End","End","End","End","End","End","End","End","End","End","End","End","End","End","End","End","End","End","End","End","End","End","End","End","End","End","End","End","End","End","End","End","End","End","End","End","End","End","End","End","End","End","End","End","End","End","End","End","End","End","End","End","End","End","End","End","End","End","End","End","End","End","End","End","End","End","End","End","End","End","End","End","End","End","End","End","End","End","End","End","End","End","End","End","End","End","End","End","End","End","End","End","End","End","End","End","End","End","End","End","End","End","End","End","End","End","End","End","End","End","End","End","End","End","End","End","End","End","End","End","End","End","End","End","End","End","End","End","End","End","End","End","End","End","End","End","End","End","End","End","End","End","End","End","End","End","End","End","End","End","End","End","End","End","End","End","End","End","End","End","End","End","End","End","End","End","End","End","End","End","End","End","End","End","End","End","End","End","End","End","End","End","End","End","End","End","End","End","End","End","End","End","End","End","End","End","End","End","End","End","End","End","End","End","End","End","End","End","End","End","End","End","End","End","End","End","End","End","End","End","End","End","End","End","End","End","End","End","End","End","End","End","End","End","End","End","End","End","End","End","End","End","End","End","End","End","End","End","End","End","End","End","End","End","End","End","End","End","End","End","End","End","End","End","End","End","End","End","End","End","End","End","End","End","End","End","End","End","End","End","End","End","End","End","End","End","End","End","End","End","End","End","End","End","End","End","End","End","End","End","End","End","End","End","End","End","End","End","End","End","End","End","End","End","End","End","End","End","End","End","End","End","End","End","End","End","End","End","End","End","End","End","End","End","End","End","End","End","End","End","End","End","End","End","End","End","End","End","End","End","End","End","End","End","End","End","End","End","End","End","End","End","End","End","End","End","End","End","End","End","End","End","End","End","End","End","End","End","End","End","End","End","End","End","End","End","End","End","End","End","End","End","End","End","End","End","End","End","End","End","End","End","End","End","End","End","End","End","End","End","End","End","End","End","End","End","End","End","End","End","End","End","End","End","End","End","End","End","End","End","End","End","End","End","End","End","End","End","End","End","End","End","End","End","End","End","End","End","End","End","End","End","End","End","End","End","End","End","End","End","End","End","End","End","End","End","End","End","End","End","End","End","End","End","End","End","End","End","End","End","End","End","End","End","End","End","End","End","End","End","End","End","End","End","End","End","End","End","End","End","End","End","End","End","End","End","End","End","End","End","End","End","End","End","End","End","End","End","End","End","End","End","End","End","End","End","End","End","End","End","End","End","End","End","End","End","End","End","End","End","End","End","End","End","End","End","End","End","End","End","End","End","End","End","End","End","End","End","End","End","End","End","End","End","End","End","End","End","End","End","End","End","End","End","End","End","End","End","End","End","End","End","End","End","End","End","End","End","End","End","End","End","End","End","End","End","End","End","End","End","End","End","End","End","End","End","End","End","End","End","End","End","End","End","End","End","End","End","End","End","End","End","End","End","End","End","End","End","End","End","End","End","End","End","End","End","End","End","End","End","End","End","End","End","End","End","End","End","End","End","End","End","End","End","End","End","End","End","End","End","End","End","End","End","End","End","End","End","End","End","End","End","End","End","End","End","End","End","End","End","End","End","End","End","End","End","End","End","End","End","End","End","End","End","End","End","End","End","End","End","End","End","End","End","End","End","End","End","End","End","End","End","End","End","End","End","End","End","End","End","End","End","End","End","End","End","End","End","End","End","End","End","End","End","End","End","End","End","End","End","End","End","End","End","End","End","End","End","End","End","End","End","End","End","End","End","End","End","End","End","End","End","End","End","End","End","End","End","End","End","End","End","End","End","End","End","End","End","End","End","End","End","End","End","End","End","End","End","End","End","End","End","End","End","End","End","End","End","End","End","End","End","End","End","End","End","End","End","End","End","End","End","End","End","End","End","End","End","End","End","End","End","End","End","End","End","End","End","End","End","End","End","End","End","End","End","End","End","End","End","End","End","End","End","End","End","End","End","End","End","End","End","End","End","End","End","End","End","End","End","End","End","End","End","End","End","End","End","End","End","End","End","End","End","End","End","End","End","End","End","End","End","End","End","End","End","End","End","End","End","End","End","End","End","End","End","End","End","End","End","End","End","End","End","End","End","End","End","End","End","End","End","End","End","End","End","End","End","End","End","End","End","End","End","End","End","End","End","End","End","End","End","End","End","End","End","End","End","End","End","End","End","End","End","End","End","End","End","End","End","End","End","End","End","End","End","End","End","End","End","End","End","End","End","End","End","End","End","End","End","End","End","End","End","End","End","End","End","End","End","End","End","End","End","End","End","End","End","End","End","End","End","End","End","End","End","End","End","End","End","End","End","End","End","End","End","End","End","End","End","End","End","End","End","End","End","End","End","End","End","End","End","End","End","End","End","End","End","End","End","End","End","End","End","End","End","End","End","End","End","End","End","End","End","End","End","End","End","End","End","End","End","End","End","End","End","End","End","End","End","End","End","End","End","End","End","End","End","End","End","End","End","End","End","End","End","End","End","End","End","End","End","End","End","End","End","End","End","End","End","End","End","End","End","End","End","End","End","End","End","End","End","End","End","End","End","End","End","End","End","End","End","End","End","End","End","End","End","End","End","End","End","End","End","End","End","End","End","End","End","End","End","End","End","End","End","End","End","End","End","End","End","End","End","End","End","End","End","End","End","End","End","End","End","End","End","End","End","End","End","End","End","End","End","End","End","End","End","End","End","End","End","End","End","End","End","End","End","End","End","End","End","End","End","End","End","End","End","End","End","End","End","End","End","End","End","End","End","End","End","End","End","End","End","End","End","End","End","End","End","End","End","End","End","End","End","End","End","End","End","End","End","End","End","End","End","End","End","End","End","End","End","End","End","End","End","End","End","End","End","End","End","End","End","End","End","End","End","End","End","End","End","End","End","End","End","End","End","End","End","End","End","End","End","End","End","End","End","End","End","End","End","End","End","End","End","End","End","End","End","End","End","End","End","End","End","End","End","End","End","End","End","End","End","End","End","End","End","End","End","End","End","End","End","End","End","End","End","End","End","End","End","End","End","End","End","End","End","End","End","End","End","End","End","End","End","End","End","End","End","End","End","End","End","End","End","End","End","End","End","End","End","End","End","End","End","End","End","End","End","End","End","End","End","End","End","End","End","End","End","End","End","End","End","End","End","End","End","End","End","End","End","End","End","End","End","End","End","End","End","End","End","End","End","End","End","End","End","End","End","End","End","End","End","End","End","End","End","End","End","End","End","End","End","End","End","End","End","End","End","End","End","End","End","End","End","End","End","End","End","End","End","End","End","End","End","End","End","End","End","End","End","End","End","End","End","End","End","End","End","End","End","End","End","End","End","End","End","End","End","End","End","End","End","End","End","End","End","End","End","End","End","End","End","End","End","End","End","End","End","End","End","End","End","End","End","End","End","End","End","End","End","End","End","End","End","End","End","End","End","End","End","End","End","End","End","End","End","End","End","End","End","End","End","End","End","End","End","End","End","End","End","End","End","End","End","End","End","End","End","End","End","End","End","End","End","End","End","End","End","End","End","End","End","End","End","End","End","End","End","End","End","End","End","End","End","End","End","End","End","End","End","End","End","End","End","End","End","End","End","End","End","End","End","End","End","End","End","End","End","End","End","End","End","End","End","End","End","End","End","End","End","End","End","End","End","End","End","End","End","End","End","End","End","End","End","End","End","End","End","End","End","End","End","End","End","End","End","End","End","End","End","End","End","End","End","End","End","End","End","End","End","End","End","End","End","End","End","End","End","End","End","End","End","End","End","End","End","End","End","End","End","End","End","End","End","End","End","End","End","End","End","End","End","End","End","End","End","End","End","End","End","End","End","End","End","End","End","End","End","End","End","End","End","End","End","End","End","End","End","End","End","End","End","End","End","End","End","End","End","End","End","End","End","End","End","End","End","End","End","End","End","End","End","End","End","End","End","End","End","End","End","End","End","End","End","End","End","End","End","End","End","End","End","End","End","End","End","End","End","End","End","End","End","End","End","End","End","End","End","End","End","End","End","End","End","End","End","End","End","End","End","End","End","End","End","End","End","End","End","End","End","End","End","End","End","End","End","End","End","End","End","End","End","End","End","End","End","End","End","End","End","End","End","End","End","End","End","End","End","End","End","End","End","End","End","End","End","End","End","End","End","End","End","End","End","End","End","End","End","End","End","End","End","End","End","End","End","End","End","End","End","End","End","End","End","End","End","End","End","End","End","End","End","End","End","End","End","End","End","End","End","End","End","End","End","End","End","End","End","End","End","End","End","End","End","End","End","End","End","End","End","End","End","End","End","End","End","End","End","End","End","End","End","End","End","End","End","End","End","End","End","End","End","End","End","End","End","End","End","End","End","End","End","End","End","End","End","End","End","End","End","End","End","End","End","End","End","End","End","End","End","End","End","End","End","End","End","End","End","End","End","End","End","End","End","End","End","End","End","End","End","End","End","End","End","End","End","End","End","End","End","End","End","End","End","End","End","End","End","End","End","End","End","End","End","End","End","End","End","End","End","End","End","End","End","End","End","End","End","End","End","End","End","End","End","End","End","End","End","End","End","End","End","End","End","End","End","End","End","End","End","End","End","End","End","End","End","End","End","End","End","End","End","End","End","End","End","End","End","End","End","End","End","End","End","End","End","End","End","End","End","End","End","End","End","End","End","End","End","End","End","End","End","End","End","End","End","End","End","End","End","End","End","End","End","End","End","End","End","End","End","End","End","End","End","End","End","End","End","End","End","End","End","End","End","End","End","End","End","End","End","End","End","End","End","End","End","End","End","End","End","End","End","End","End","End","End","End","End","End","End","End","End","End","End","End","End","End","End","End","End","End","End","End","End","End","End","End","End","End","End","End","End","End","End","End","End","End","End","End","End","End","End","End","End","End","End","End","End","End","End","End","End","End","End","End","End","End","End","End","End","End","End","End","End","End","End","End","End","End","End","End","End","End","End","End","End","End","End","End","End","End","End","End","End","End","End","End","End","End","End","End","End","End","End","End","End","End","End","End","End","End","End","End","End","End","End","End","End","End","End","End","End","End","End","End","End","End","End","End","End","End","End","End","End","End","End","End","End","End","End","End","End","End","End","End","End","End","End","End","End","End","End","End","End","End","End","End","End","End","End","End","End","End","End","End","End","End","End","End","End","End","End","End","End","End","End","End","End","End","End","End","End","End","End","End","End","End","End","End","End","End","End","End","End","End","End","End","End","End","End","End","End","End","End","End","End","End","End","End","End","End","End","End","End","End","End","End","End","End","End","End","End","End","End","End","End","End","End","End","End","End","End","End","End","End","End","End","End","End","End","End","End","End","End","End","End","End","End","End","End","End","End","End","End","End","End","End","End","End","End","End","End","End","End","End","End","End","End","End","End","End","End","End","End","End","End","End","End","End","End","End","End","End","End","End","End","End","End","End","End","End","End","End","End","End","End","End","End","End","End","End","End","End","End","End","End","End","End","End","End","End","End","End","End","End","End","End","End","End","End","End","End","End","End","End","End","End","End","End","End","End","End","End","End","End","End","End","End","End","End","End","End","End","End","End","End","End","End","End","End","End","End","End","End","End","End","End","End","End","End","End","End","End","End","End","End","End","End","End","End","End","End","End","End","End","End","End","End","End","End","End","End","End","End","End","End","End","End","End","End","End","End","End","End","End","End","End","End","End","End","End","End","End","End","End","End","End","End","End","End","End","End","End","End","End","End","End","End","End","End","End","End","End","End","End","End","End","End","End","End","End","End","End","End","End","End","End","End","End","End","End","End","End","End","End","End","End","End","End","End","End","End","End","End","End","End","End","End","End","End","End","End","End","End","End","End","End","End","End","End","End","End","End","End","End","End","End","End","End","End","End","End","End","End","End","End","End","End","End","End","End","End","End","End","End","End","End","End","End","End","End","End","End","End","End","End","End","End","End","End","End","End","End","End","End","End","End","End","End","End","End","End","End","End","End","End","End","End","End","End","End","End","End","End","End","End","End","End","End","End","End","End","End","End","End","End","End","End","End","End","End","End","End","End","End","End","End","End","End","End","End","End","End","End","End","End","End","End","End","End","End","End","End","End","End","End","End","End","End","End","End","End","End","End","End","End","End","End","End","End","End","End","End","End","End","End","End","End","End","End","End","End","End","End","End","End","End","End","End","End","End","End","End","End","End","End","End","End","End","End","End","End","End","End","End","End","End","End","End","End","End","End","End","End","End","End","End","End","End","End","End","End","End","End","End","End","End","End","End","End","End","End","End","End","End","End","End","End","End","End","End","End","End","End","End","End","End","End","End","End","End","End","End","End","End","End","End","End","End","End","End","End","End","End","End","End","End","End","End","End","End","End","End","End","End","End","End","End","End","End","End","End","End","End","End","End","End","End","End","End","End","End","End","End","End","End","End","End","End","End","End","End","End","End","End","End","End","End","End","End","End","End","End","End","End","End","End","End","End","End","End","End","End","End","End","End","End","End","End","End","End","End","End","End","End","End","End","End","End","End","End","End","End","End","End","End","End","End","End","End","End","End","End","End","End","End","End","End","End","End","End","End","End","End","End","End","End","End","End","End","End","End","End","End","End","End","End","End","End","End","End","End","End","End","End","End","End","End","End","End","End","End","End","End","End","End","End","End","End","End","End","End","End","End","End","End","End","End","End","End","End","End","End","End","End","End","End","End","End","End","End","End","End","End","End","End","End","End","End","End","End","End","End","End","End","End","End","End","End","End","End","End","End","End","End","End","End","End","End","End","End","End","End","End","End","End","End","End","End","End","End","End","End","End","End","End","End","End","End","End","End","End","End","End","End","End","End","End","End","End","End","End","End","End","End","End","End","End","End","End","End","End","End","End","End","End","End","End","End","End","End","End","End","End","End","End","End","End","End","End","End","End","End","End","End","End","End","End","End","End","End","End","End","End","End","End","End","End","End","End","End","End","End","End","End","End","End","End","End","End","End","End","End","End","End","End","End","End","End","End","End","End","End","End","End","End","End","End","End","End","End","End","End","End","End","End","End","End","End","End","End","End","End","End","End","End","End","End","End","End","End","End","End","End","End","End","End","End","End","End","End","End","End","End","End","End","End","End","End","End","End","End","End","End","End","End","End","End","End","End","End","End","End","End","End","End","End","End","End","End","End","End","End","End","End","End","End","End","End","End","End","End","End","End","End","End","End","End","End","End","End","End","End","End","End","End","End","End","End","End","End","End","End","End","End","End","End","End","End","End","End","End","End","End","End","End","End","End","End","End","End","End","End","End","End","End","End","End","End","End","End","End","End","End","End","End","End","End","End","End","End","End","End","End","End","End","End","End","End","End","End","End","End","End","End","End","End","End","End","End","End","End","End","End","End","End","End","End","End","End","End","End","End","End","End","End","End","End","End","End","End","End","End","End","End","End","End","End","End","End","End","End","End","End","End","End","End","End","End","End","End","End","End","End","End","End","End","End","End","End","End","End","End","End","End","End","End","End","End","End","End","End","End","End","End","End","End","End","End","End","End","End","End","End","End","End","End","End","End","End","End","End","End","End","End","End","End","End","End","End","End","End","End","End","End","End","End","End","End","End","End","End","End","End","End","End","End","End","End","End","End","End","End","End","End","End","End","End","End","End","End","End","End","End","End","End","End","End","End","End","End","End","End","End","End","End","End","End","End","End","End","End","End","End","End","End","End","End","End","End","End","End","End","End","End","End","End","End","End","End","End","End","End","End","End","End","End","End","End","End","End","End","End","End","End","End","End","End","End","End","End","End","End","End","End","End","End","End","End","End","End","End","End","End","End","End","End","End","End","End","End","End","End","End","End","End","End","End","End","End","End","End","End","End","End","End","End","End","End","End","End","End","End","End","End","End","End","End","End","End","End","End","End","End","End","End","End","End","End","End","End","End","End","End","End","End","End","End","End","End","End","End","End","End","End","End","End","End","End","End","End","End","End","End","End","End","End","End","End","End","End","End","End","End","End","End","End","End","End","End","End","End","End","End","End","End","End","End","End","End","End","End","End","End","End","End","End","End","End","End","End","End","End","End","End","End","End","End","End","End","End","End","End","End","End","End","End","End","End","End","End","End","End","End","End","End","End","End","End","End","End","End","End","End","End","End","End","End","End","End","End","End","End","End","End","End","End","End","End","End","End","End","End","End","End","End","End","End","End","End","End","End","End","End","End","End","End","End","End","End","End","End","End","End","End","End","End","End","End","End","End","End","End","End","End","End","End","End","End","End","End","End","End","End","End","End","End","End","End","End","End","End","End","End","End","End","End","End","End","End","End","End","End","End","End","End","End","End","End","End","End","End","End","End","End","End","End","End","End","End","End","End","End","End","End","End","End","End","End","End","End","End","End","End","End","End","End","End","End","End","End","End","End","End","End","End","End","End","End","End","End","End","End","End","End","End","End","End","End","End","End","End","End","End","End","End","End","End","End","End","End","End","End","End","End","End","End","End","End","End","End","End","End","End","End","End","End","End","End","End","End","End","End","End","End","End","End","End","End","End","End","End","End","End","End","End","End","End","End","End","End","End","End","End","End","End","End","End","End","End","End","End","End","End","End","End","End","End","End","End","End","End","End","End","End","End","End","End","End","End","End","End","End","End","End","End","End","End","End","End","End","End","End","End","End","End","End","End","End","End","End","End","End","End","End","End","End","End","End","End","End","End","End","End","End","End","End","End","End","End","End","End","End","End","End","End","End","End","End","End","End","End","End","End","End","End","End","End","End","End","End","End","End","End","End","End","End","End","End","End","End","End","End","End","End","End","End","End","End","End","End","End","End","End","End","End","End","End","End","End","End","End","End","End","End","End","End","End","End","End","End","End","End","End","End","End","End","End","End","End","End","End","End","End","End","End","End","End","End","End","End","End","End","End","End","End","End","End","End","End","End","End","End","End","End","End","End","End","End","End","End","End","End","End","End","End","End","End","End","End","End","End","End","End","End","End","End","End","End","End","End","End","End","End","End","End","End","End","End","End","End","End","End","End","End","End","End","End","End","End","End","End","End","End","End","End","End","End","End","End","End","End","End","End","End","End","End","End","End","End","End","End","End","End","End","End","End","End","End","End","End","End","End","End","End","End","End","End","End","End","End","End","End","End","End","End","End","End","End","End","End","End","End","End","End","End","End","End","End","End","End","End","End","End","End","End","End","End","End","End","End","End","End","End","End","End","End","End","End","End","End","End","End","End","End","End","End","End","End","End","End","End","End","End","End","End","End","End","End","End","End","End","End","End","End","End","End","End","End","End","End","End","End","End","End","End","End","End","End","End","End","End","End","End","End","End","End","End","End","End","End","End","End","End","End","End","End","End","End","End","End","End","End","End","End","End","End","End","End","End","End","End","End","End","End","End","End","End","End","End","End","End","End","End","End","End","End","End","End","End","End","End","End","End","End","End","End","End","End","End","End","End","End","End","End","End","End","End","End","End","End","End","End","End","End","End","End","End","End","End","End","End","End","End","End","End","End","End","End","End","End","End","End","End","End","End","End","End","End","End","End","End","End","End","End","End","End","End","End","End","End","End","End","End","End","End","End","End","End","End","End","End","End","End","End","End","End","End","End","End","End","End","End","End","End","End","End","End","End","End","End","End","End","End","End","End","End","End","End","End","End","End","End","End","End","End","End","End","End","End","End","End","End","End","End","End","End","End","End","End","End","End","End","End","End","End","End","End","End","End","End","End","End","End","End","End","End","End","End","End","End","End","End","End","End","End","End","End","End","End","End","End","End","End","End","End","End","End","End","End","End","End","End","End","End","End","End","End","End","End","End","End","End","End","End","End","End","End","End","End","End","End","End","End","End","End","End","End","End","End","End","End","End","End","End","End","End","End","End","End","End","End","End","End","End","End","End","End","End","End","End","End","End","End","End","End","End","End","End","End","End","End","End","End","End","End","End","End","End","End","End","End","End","End","End","End","End","End","End","End","End","End","End","End","End","End","End","End","End","End","End","End","End","End","End","End","End","End","End","End","End","End","End","End","End","End","End","End","End","End","End","End","End","End","End","End","End","End","End","End","End","End","End","End","End","End","End","End","End","End","End","End","End","End","End","End","End","End","End","End","End","End","End","End","End","End","End","End","End","End","End","End","End","End","End","End","End","End","End","End","End","End","End","End","End","End","End","End","End","End","End","End","End","End","End","End","End","End","End","End","End","End","End","End","End","End","End","End","End","End","End","End","End","End","End","End","End","End","End","End","End","End","End","End","End","End","End","End","End","End","End","End","End","End","End","End","End","End","End","End","End","End","End","End","End","End","End","End","End","End","End","End","End","End","End","End","End","End","End","End","End","End","End","End","End","End","End","End","End","End","End","End","End","End","End","End","End","End","End","End","End","End","End","End","End","End","End","End","End","End","End","End","End","End","End","End","End","End","End","End","End","End","End","End","End","End","End","End","End","End","End","End","End","End","End","End","End","End","End","End","End","End","End","End","End","End","End","End","End","End","End","End","End","End","End","End","End","End","End","End","End","End","End","End","End","End","End","End","End","End","End","End","End","End","End","End","End","End","End","End","End","End","End","End","End","End","End","End","End","End","End","End","End","End","End","End","End","End","End","End","End","End","End","End","End","End","End","End","End","End","End","End","End","End","End","End","End","End","End","End","End","End","End","End","End","End","End","End","End","End","End","End","End","End","End","End","End","End","End","End","End","End","End","End","End","End","End","End","End","End","End","End","End","End","End","End","End","End","End","End","End","End","End","End","End","End","End","End","End","End","End","End","End","End","End","End","End","End","End","End","End","End","End","End","End","End","End","End","End","End","End","End","End","End","End","End","End","End","End","End","End","End","End","End","End","End","End","End","End","End","End","End","End","End","End","End","End","End","End","End","End","End","End","End","End","End","End","End","End","End","End","End","End","End","End","End","End","End","End","End","End","End","End","End","End","End","End","End","End","End","End","End","End","End","End","End","End","End","End","End","End","End","End","End","End","End","End","End","End","End","End","End","End","End","End","End","End","End","End","End","End","End","End","End","End","End","End","End","End","End","End","End","End","End","End","End","End","End","End","End","End","End","End","End","End","End","End","End","End","End","End","End","End","End","End","End","End","End","End","End","End","End","End","End","End","End","End","End","End","End","End","End","End","End","End","End","End","End","End","End","End","End","End","End","End","End","End","End","End","End","End","End","End","End","End","End","End","End","End","End","End","End","End","End","End","End","End","End","End","End","End","End","End","End","End","End","End","End","End","End","End","End","End","End","End","End","End","End","End","End","End","End","End","End","End","End","End","End","End","End","End","End","End","End","End","End","End","End","End","End","End","End","End","End","End","End","End","End","End","End","End","End","End","End","End","End","End","End","End","End","End","End","End","End","End","End","End","End","End","End","End","End","End","End","End","End","End","End","End","End","End","End","End","End","End","End","End","End","End","End","End","End","End","End","End","End","End","End","End","End","End","End","End","End","End","End","End","End","End","End","End","End","End","End","End","End","End","End","End","End","End","End","End","End","End","End","End","End","End","End","End","End","End","End","End","End","End","End","End","End","End","End","End","End","End","End","End","End","End","End","End","End","End","End","End","End","End","End","End","End","End","End","End","End","End","End","End","End","End","End","End","End","End","End","End","End","End","End","End","End","End","End","End","End","End","End","End","End","End","End","End","End","End","End","End","End","End","End","End","End","End","End","End","End","End","End","End","End","End","End","End","End","End","End","End","End","End","End","End","End","End","End","End","End","End","End","End","End","End","End","End","End","End","End","End","End","End","End","End","End","End","End","End","End","End","End","End","End","End","End","End","End","End","End","End","End","End","End","End","End","End","End","End","End","End","End","End","End","End","End","End","End","End","End","End","End","End","End","End","End","End","End","End","End","End","End","End","End","End","End","End","End","End","End","End","End","End","End","End","End","End","End","End","End","End","End","End","End","End","End","End","End","End","End","End","End","End","End","End","End","End","End","End","End","End","End","End","End","End","End","End","End","End","End","End","End","End","End","End","End","End","End","End","End","End","End","End","End","End","End","End","End","End","End","End","End","End","End","End","End","End","End","End","End","End","End","End","End","End","End","End","End","End","End","End","End","End","End","End","End","End","End","End","End","End","End","End","End","End","End","End","End","End","End","End","End","End","End","End","End","End","End","End","End","End","End","End","End","End","End","End","End","End","End","End","End","End","End","End","End","End","End","End","End","End","End","End","End","End","End","End","End","End","End","End","End","End","End","End","End","End","End","End","End","End","End","End","End","End","End","End","End","End","End","End","End","End","End","End","End","End","End","End","End","End","End","End","End","End","End","End","End","End","End","End","End","End","End","End","End","End","End","End","End","End","End","End","End","End","End","End","End","End","End","End","End","End","End","End","End","End","End","End","End","End","End","End","End","End","End","End","End","End","End","End","End","End","End","End","End","End","End","End","End","End","End","End","End","End","End","End","End","End","End","End","End","End","End","End","End","End","End","End","End","End","End","End","End","End","End","End","End","End","End","End","End","End","End","End","End","End","End","End","End","End","End","End","End","End","End","End","End","End","End","End","End","End","End","End","End","End","End","End","End","End","End","End","End","End","End","End","End","End","End","End","End","End","End","End","End","End","End","End","End","End","End","End","End","End","End","End","End","End","End","End","End","End","End","End","End","End","End","End","End","End","End","End","End","End","End","End","End","End","End","End","End","End","End","End","End","End","End","End","End","End","End","End","End","End","End","End","End","End","End","End","End","End","End","End","End","End","End","End","End","End","End","End","End","End","End","End","End","End","End","End","End","End","End","End","End","End","End","End","End","End","End","End","End","End","End","End","End","End","End","End","End","End","End","End","End","End","End","End","End","End","End","End","End","End","End","End","End","End","End","End","End","End","End","End","End","End","End","End","End","End","End","End","End","End","End","End","End","End","End","End","End","End","End","End","End","End","End","End","End","End","End","End","End","End","End","End","End","End","End","End","End","End","End","End","End","End","End","End","End","End","End","End","End","End","End","End","End","End","End","End","End","End","End","End","End","End","End","End","End","End","End","End","End","End","End","End","End","End","End","End","End","End","End","End","End","End","End","End","End","End","End","End","End","End","End","End","End","End","End","End","End","End","End","End","End","End","End","End","End","End","End","End","End","End","End","End","End","End","End","End","End","End","End","End","End","End","End","End","End","End","End","End","End","End","End","End","End","End","End","End","End","End","End","End","End","End","End","End","End","End","End","End","End","End","End","End","End","End","End","End","End","End","End","End","End","End","End","End","End","End","End","End","End","End","End","End","End","End","End","End","End","End","End","End","End","End","End","End","End","End","End","End","End","End","End","End","End","End","End","End","End","End","End","End","End","End","End","End","End","End","End","End","End","End","End","End","End","End","End","End","End","End","End","End","End","End","End","End","End","End","End","End","End","End","End","End","End","End","End","End","End","End","End","End","End","End","End","End","End","End","End","End","End","End","End","End","End","End","End","End","End","End","End","End","End","End","End","End","End","End","End","End","End","End","End","End","End","End","End","End","End","End","End","End","End","End","End","End","End","End","End","End","End","End","End","End","End","End","End","End","End","End","End","End","End","End","End","End","End","End","End","End","End","End","End","End","End","End","End","End","End","End","End","End","End","End","End","End","End","End","End","End","End","End","End","End","End","End","End","End","End","End","End","End","End","End","End","End","End","End","End","End","End","End","End","End","End","End","End","End","End","End","End","End","End","End","End","End","End","End","End","End","End","End","End","End","End","End","End","End","End","End","End","End","End","End","End","End","End","End","End","End","End","End","End","End","End","End","End","End","End","End","End","End","End","End","End","End","End","End","End","End","End","End","End","End","End","End","End","End","End","End","End","End","End","End","End","End","End","End","End","End","End","End","End","End","End","End","End","End","End","End","End","End","End","End","End","End","End","End","End","End","End","End","End","End","End","End","End","End","End","End","End","End","End","End","End","End","End","End","End","End","End","End","End","End","End","End","End","End","End","End","End","End","End","End","End","End","End","End","End","End","End","End","End","End","End","End","End","End","End","End","End","End","End","End","End","End","End","End","End","End","End","End","End","End","End","End","End","End","End","End","End","End","End","End","End","End","End","End","End","End","End","End","End","End","End","End","End","End","End","End","End","End","End","End","End","End","End","End","End","End","End","End","End","End","End","End","End","End","End","End","End","End","End","End","End","End","End","End","End","End","End","End","End","End","End","End","End","End","End","End","End","End","End","End","End","End","End","End","End","End","End","End","End","End","End","End","End","End","End","End","End","End","End","End","End","End","End","End","End","End","End","End","End","End","End","End","End","End","End","End","End","End","End","End","End","End","End","End","End","End","End","End","End","End","End","End","End","End","End","End","End","End","End","End","End","End","End","End","End","End","End","End","End","End","End","End","End","End","End","End","End","End","End","End","End","End","End","End","End","End","End","End","End","End","End","End","End","End","End","End","End","End","End","End","End","End","End","End","End","End","End","End","End","End","End","End","End","End","End","End","End","End","End","End","End","End","End","End","End","End","End","End","End","End","End","End","End","End","End","End","End","End","End","End","End","End","End","End","End","End","End","End","End","End","End","End","End","End","End","End","End","End","End","End","End","End","End","End","End","End","End","End","End","End","End","End","End","End","End","End","End","End","End","End","End","End","End","End","End","End","End","End","End","End","End","End","End","End","End","End","End","End","End","End","End","End","End","End","End","End","End","End","End","End","End","End","End","End","End","End","End","End","End","End","End","End","End","End","End","End","End","End","End","End","End","End","End","End","End","End","End","End","End","End","End","End","End","End","End","End","End","End","End","End","End","End","End","End","End","End","End","End","End","End","End","End","End","End","End","End","End","End","End","End","End","End","End","End","End","End","End","End","End","End","End","End","End","End","End","End","End","End","End","End","End","End","End","End","End","End","End","End","End","End","End","End","End","End","End","End","End","End","End","End","End","End","End","End","End","End","End","End","End","End","End","End","End","End","End","End","End","End","End","End","End","End","End","End","End","End","End","End","End","End","End","End","End","End","End","End","End","End","End","End","End","End","End","End","End","End","End","End","End","End","End","End","End","End","End","End","End","End","End","End","End","End","End","End","End","End","End","End","End","End","End","End","End","End","End","End","End","End","End","End","End","End","End","End","End","End","End","End","End","End","End","End","End","End","End","End","End","End","End","End","End","End","End","End","End","End","End","End","End","End","End","End","End","End","End","End","End","End","End","End","End","End","End","End","End","End","End","End","End","End","End","End","End","End","End","End","End","End","End","End","End","End","End","End","End","End","End","End","End","End","End","End","End","End","End","End","End","End","End","End","End","End","End","End","End","End","End","End","End","End","End","End","End","End","End","End","End","End","End","End","End","End","End","End","End","End","End","End","End","End","End","End","End","End","End","End","End","End","End","End","End","End","End","End","End","End","End","End","End","End","End","End","End","End","End","End","End","End","End","End","End","End","End","End","End","End","End","End","End","End","End","End","End","End","End","End","End","End","End","End","End","End","End","End","End","End","End","End","End","End","End","End","End","End","End","End","End","End","End","End","End","End","End","End","End","End","End","End","End","End","End","End","End","End","End","End","End","End","End","End","End","End","End","End","End","End","End","End","End","End","End","End","End","End","End","End","End","End","End","End","End","End","End","End","End","End","End","End","End","End","End","End","End","End","End","End","End","End","End","End","End","End","End","End","End","End","End","End","End","End","End","End","End","End","End","End","End","End","End","End","End","End","End","End","End","End","End","End","End","End","End","End","End","End","End","End","End","End","End","End","End","End","End","End","End","End","End","End","End","End","End","End","End","End","End","End","End","End","End","End","End","End","End","End","End","End","End","End","End","End","End","End","End","End","End","End","End","End","End","End","End","End","End","End","End","End","End","End","End","End","End","End","End","End","End","End","End","End","End","End","End","End","End","End","End","End","End","End","End","End","End","End","End","End","End","End","End","End","End","End","End","End","End","End","End","End","End","End","End","End","End","End","End","End","End","End","End","End","End","End","End","End","End","End","End","End","End","End","End","End","End","End","End","End","End","End","End","End","End","End","End","End","End","End","End","End","End","End","End","End","End","End","End","End","End","End","End","End","End","End","End","End","End","End","End","End","End","End","End","End","End","End","End","End","End","End","End","End","End","End","End","End","End","End","End","End","End","End","End","End","End","End","End","End","End","End","End","End","End","End","End","End","End","End","End","End","End","End","End","End","End","End","End","End","End","End","End","End","End","End","End","End","End","End","End","End","End","End","End","End","End","End","End","End","End","End","End","End","End","End","End","End","End","End","End","End","End","End","End","End","End","End","End","End","End","End","End","End","End","End","End","End","End","End","End","End","End","End","End","End","End","End","End","End","End","End","End","End","End","End","End","End","End","End","End","End","End","End","End","End","End","End","End","End","End","End","End","End","End","End","End","End","End","End","End","End","End","End","End","End","End","End","End","End","End","End","End","End","End","End","End","End","End","End","End","End","End","End","End","End","End","End","End","End","End","End","End","End","End","End","End","End","End","End","End","End","End","End","End","End","End","End","End","End","End","End","End","End","End","End","End","End","End","End","End","End","End","End","End","End","End","End","End","End","End","End","End","End","End","End","End","End","End","End","End","End","End","End","End","End","End","End","End","End","End","End","End","End","End","End","End","End","End","End","End","End","End","End","End","End","End","End","End","End","End","End","End","End","End","End","End","End","End","End","End","End","End","End","End","End","End","End","End","End","End","End","End","End","End","End","End","End","End","End","End","End","End","End","End","End","End","End","End","End","End","End","End","End","End","End","End","End","End","End","End","End","End","End","End","End","End","End","End","End","End","End","End","End","End","End","End","End","End","End","End","End","End","End","End","End","End","End","End","End","End","End","End","End","End","End","End","End","End","End","End","End","End","End","End","End","End","End","End","End","End","End","End","End","End","End","End","End","End","End","End","End","End","End","End","End","End","End","End","End","End","End","End","End","End","End","End","End","End","End","End","End","End","End","End","End","End","End","End","End","End","End","End","End","End","End","End","End","End","End","End","End","End","End","End","End","End","End","End","End","End","End","End","End","End","End","End","End","End","End","End","End","End","End","End","End","End","End","End","End","End","End","End","End","End","End","End","End","End","End","End","End","End","End","End","End","End","End","End","End","End","End","End","End","End","End","End","End","End","End","End","End","End","End","End","End","End","End","End","End","End","End","End","End","End","End","End","End","End","End","End","End","End","End","End","End","End","End","End","End","End","End","End","End","End","End","End","End","End","End","End","End","End","End","End","End","End","End","End","End","End","End","End","End","End","End","End","End","End","End","End","End","End","End","End","End","End","End","End","End","End","End","End","End","End","End","End","End","End","End","End","End","End","End","End","End","End","End","End","End","End","End","End","End","End","End","End","End","End","End","End","End","End","End","End","End","End","End","End","End","End","End","End","End","End","End","End","End","End","End","End","End","End","End","End","End","End","End","End","End","End","End","End","End","End","End","End","End","End","End","End","End","End","End","End","End","End","End","End","End","End","End","End","End","End","End","End","End","End","End","End","End","End","End","End","End","End","End","End","End","End","End","End","End","End","End","End","End","End","End","End","End","End","End","End","End","End","End","End","End","End","End","End","End","End","End","End","End","End","End","End","End","End","End","End","End","End","End","End","End","End","End","End","End","End","End","End","End","End","End","End","End","End","End","End","End","End","End","End","End","End","End","End","End","End","End","End","End","End","End","End","End","End","End","End","End","End","End","End","End","End","End","End","End","End","End","End","End","End","End","End","End","End","End","End","End","End","End","End","End","End","End","End","End","End","End","End","End","End","End","End","End","End","End","End","End","End","End","End","End","End","End","End","End","End","End","End","End","End","End","End","End","End","End","End","End","End","End","End","End","End","End","End","End","End","End","End","End","End","End","End","End","End","End","End","End","End","End","End","End","End","End","End","End","End","End","End","End","End","End","End","End","End","End","End","End","End","End","End","End","End","End","End","End","End","End","End","End","End","End","End","End","End","End","End","End","End","End","End","End","End","End","End","End","End","End","End","End","End","End","End","End","End","End","End","End","End","End","End","End","End","End","End","End","End","End","End","End","End","End","End","End","End","End","End","End","End","End","End","End","End","End","End","End","End","End","End","End","End","End","End","End","End","End","End","End","End","End","End","End","End","End","End","End","End","End","End","End","End","End","End","End","End","End","End","End","End","End","End","End","End","End","End","End","End","End","End","End","End","End","End","End","End","End","End","End","End","End","End","End","End","End","End","End","End","End","End","End","End","End","End","End","End","End","End","End","End","End","End","End","End","End","End","End","End","End","End","End","End","End","End","End","End","End","End","End","End","End","End","End","End","End","End","End","End","End","End","End","End","End","End","End","End","End","End","End","End","End","End","End","End","End","End","End","End","End","End","End","End","End","End","End","End","End","End","End","End","End","End","End","End","End","End","End","End","End","End","End","End","End","End","End","End","End","End","End","End","End","End","End","End","End","End","End","End","End","End","End","End","End","End","End","End","End","End","End","End","End","End","End","End","End","End","End","End","End","End","End","End","End","End","End","End","End","End","End","End","End","End","End","End","End","End","End","End","End","End","End","End","End","End","End","End","End","End","End","End","End","End","End","End","End","End","End","End","End","End","End","End","End","End","End","End","End","End","End","End","End","End","End","End","End","End","End","End","End","End","End","End","End","End","End","End","End","End","End","End","End","End","End","End","End","End","End","End","End","End","End","End","End","End","End","End","End","End","End","End","End","End","End","End","End","End","End","End","End","End","End","End","End","End","End","End","End","End","End","End","End","End","End","End","End","End","End","End","End","End","End","End","End","End","End","End","End","End","End","End","End","End","End","End","End","End","End","End","End","End","End","End","End","End","End","End","End","End","End","End","End","End","End","End","End","End","End","End","End","End","End","End","End","End","End","End","End","End","End","End","End","End","End","End","End","End","End","End","End","End","End","End","End","End","End","End","End","End","End","End","End","End","End","End","End","End","End","End","End","End","End","End","End","End","End","End","End","End","End","End","End","End","End","End","End","End","End","End","End","End","End","End","End","End","End","End","End","End","End","End","End","End","End","End","End","End","End","End","End","End","End","End","End","End","End","End","End","End","End","End","End","End","End","End","End","End","End","End","End","End","End","End","End","End","End","End","End","End","End","End","End","End","End","End","End","End","End","End","End","End","End","End","End","End","End","End","End","End","End","End","End","End","End","End","End","End","End","End","End","End","End","End","End","End","End","End","End","End","End","End","End","End","End","End","End","End","End","End","End","End","End","End","End","End","End","End","End","End","End","End","End","End","End","End","End","End","End","End","End","End","End","End","End","End","End","End","End","End","End","End","End","End","End","End","End","End","End","End","End","End","End","End","End","End","End","End","End","End","End","End","End","End","End","End","End","End","End","End","End","End","End","End","End","End","End","End","End","End","End","End","End","End","End","End","End","End","End","End","End","End","End","End","End","End","End","End","End","End","End","End","End","End","End","End","End","End","End","End","End","End","End","End","End","End","End","End","End","End","End","End","End","End","End","End","End","End","End","End","End","End","End","End","End","End","End","End","End","End","End","End","End","End","End","End","End","End","End","End","End","End","End","End","End","End","End","End","End","End","End","End","End","End","End","End","End","End","End","End","End","End","End","End","End","End","End","End","End","End","End","End","End","End","End","End","End","End","End","End","End","End","End","End","End","End","End","End","End","End","End","End","End","End","End","End","End","End","End","End","End","End","End","End","End","End","End","End","End","End","End","End","End","End","End","End","End","End","End","End","End","End","End","End","End","End","End","End","End","End","End","End","End","End","End","End","End","End","End","End","End","End","End","End","End","End","End","End","End","End","End","End","End","End","End","End","End","End","End","End","End","End","End","End","End","End","End","End","End","End","End","End","End","End","End","End","End","End","End","End","End","End","End","End","End","End","End","End","End","End","End","End","End","End","End","End","End","End","End","End","End","End","End","End","End","End","End","End","End","End","End","End","End","End","End","End","End","End","End","End","End","End","End","End","End","End","End","End","End","End","End","End","End","End","End","End","End","End","End","End","End","End","End","End","End","End","End","End","End","End","End","End","End","End","End","End","End","End","End","End","End","End","End","End","End","End","End","End","End","End","End","End","End","End","End","End","End","End","End","End","End","End","End","End","End","End","End","End","End","End","End","End","End","End","End","End","End","End","End","End","End","End","End","End","End","End","End","End","End","End","End","End","End","End","End","End","End","End","End","End","End","End","End","End","End","End","End","End","End","End","End","End","End","End","End","End","End","End","End","End","End","End","End","End","End","End","End","End","End","End","End","End","End","End","End","End","End","End","End","End","End","End","End","End","End","End","End","End","End","End","End","End","End","End","End","End","End","End","End","End","End","End","End","End","End","End","End","End","End","End","End","End","End","End","End","End","End","End","End","End","End","End","End","End","End","End","End","End","End","End","End","End","End","End","End","End","End","End","End","End","End","End","End","End","End","End","End","End","End","End","End","End","End","End","End","End","End","End","End","End","End","End","End","End","End","End","End","End","End","End","End","End","End","End","End","End","End","End","End","End","End","End","End","End","End","End","End","End","End","End","End","End","End","End","End","End","End","End","End","End","End","End","End","End","End","End","End","End","End","End","End","End","End","End","End","End","End","End","End","End","End","End","End","End","End","End","End","End","End","End","End","End","End","End","End","End","End","End","End","End","End","End","End","End","End","End","End","End","End","End","End","End","End","End","End","End","End","End","End","End","End","End","End","End","End","End","End","End","End","End","End","End","End","End","End","End","End","End","End","End","End","End","End","End","End","End","End","End","End","End","End","End","End","End","End","End","End","End","End","End","End","End","End","End","End","End","End","End","End","End","End","End","End","End","End","End","End","End","End","End","End","End","End","End","End","End","End","End","End","End","End","End","End","End","End","End","End","End","End","End","End","End","End","End","End","End","End","End","End","End","End","End","End","End","End","End","End","End","End","End","End","End","End","End","End","End","End","End","End","End","End","End","End","End","End","End","End","End","End","End","End","End","End","End","End","End","End","End","End","End","End","End","End","End","End","End","End","End","End","End","End","End","End","End","End","End","End","End","End","End","End","End","End","End","End","End","End","End","End","End","End","End","End","End","End","End","End","End","End","End","End","End","End","End","End","End","End","End","End","End","End","End","End","End","End","End","End","End","End","End","End","End","End","End","End","End","End","End","End","End","End","End","End","End","End","End","End","End","End","End","End","End","End","End","End","End","End","End","End","End","End","End","End","End","End","End","End","End","End","End","End","End","End","End","End","End","End","End","End","End","End","End","End","End","End","End","End","End","End","End","End","End","End","End","End","End","End","End","End","End","End","End","End","End","End","End","End","End","End","End","End","End","End","End","End","End","End","End","End","End","End","End","End","End","End","End","End","End","End","End","End","End","End","End","End","End","End","End","End","End","End","End","End","End","End","End","End","End","End","End","End","End","End","End","End","End","End","End","End","End","End","End","End","End","End","End","End","End","End","End","End","End","End","End","End","End","End","End","End","End","End","End","End","End","End","End","End","End","End","End","End","End","End","End","End","End","End","End","End","End","End","End","End","End","End","End","End","End","End","End","End","End","End","End","End","End","End","End","End","End","End","End","End","End","End","End","End","End","End","End","End","End","End","End","End","End","End","End","End","End","End","End","End","End","End","End","End","End","End","End","End","End","End","End","End","End","End","End","End","End","End","End","End","End","End","End","End","End","End","End","End","End","End","End","End","End","End","End","End","End","End","End","End","End","End","End","End","End","End","End","End","End","End","End","End","End","End","End","End","End","End","End","End","End","End","End","End","End","End","End","End","End","End","End","End","End","End","End","End","End","End","End","End","End","End","End","End","End","End","End","End","End","End","End","End","End","End","End","End","End","End","End","End","End","End","End","End","End","End","End","End","End","End","End","End","End","End","End","End","End","End","End","End","End","End","End","End","End","End","End","End","End","End","End","End","End","End","End","End","End","End","End","End","End","End","End","End","End","End","End","End","End","End","End","End","End","End","End","End","End","End","End","End","End","End","End","End","End","End","End","End","End","End","End","End","End","End","End","End","End","End","End","End","End","End","End","End","End","End","End","End","End","End","End","End","End","End","End","End","End","End","End","End","End","End","End","End","End","End","End","End","End","End","End","End","End","End","End","End","End","End","End","End","End","End","End","End","End","End","End","End","End","End","End","End","End","End","End","End","End","End","End","End","End","End","End","End","End","End","End","End","End","End","End","End","End","End","End","End","End","End","End","End","End","End","End","End","End","End","End","End","End","End","End","End","End","End","End","End","End","End","End","End","End","End","End","End","End","End","End","End","End","End","End","End","End","End","End","End","End","End","End","End","End","End","End","End","End","End","End","End","End","End","End","End","End","End","End","End","End","End","End","End","End","End","End","End","End","End","End","End","End","End","End","End","End","End","End","End","End","End","End","End","End","End","End","End","End","End","End","End","End","End","End","End","End","End","End","End","End","End","End","End","End","End","End","End","End","End","End","End","End","End","End","End","End","End","End","End","End","End","End","End","End","End","End","End","End","End","End","End","End","End","End","End","End","End","End","End","End","End","End","End","End","End","End","End","End","End","End","End","End","End","End","End","End","End","End","End","End","End","End","End","End","End","End","End","End","End","End","End","End","End","End","End","End","End","End","End","End","End","End","End","End","End","End","End","End","End","End","End","End","End","End","End","End","End","End","End","End","End","End","End","End","End","End","End","End","End","End","End","End","End","End","End","End","End","End","End","End","End","End","End","End","End","End","End","End","End","End","End","End","End","End","End","End","End","End","End","End","End","End","End","End","End","End","End","End","End","End","End","End","End","End","End","End","End","End","End","End","End","End","End","End","End","End","End","End","End","End","End","End","End","End","End","End","End","End","End","End","End","End","End","End","End","End","End","End","End","End","End","End","End","End","End","End","End","End","End","End","End","End","End","End","End","End","End","End","End","End","End","End","End","End","End","End","End","End","End","End","End","End","End","End","End","End","End","End","End","End","End","End","End","End","End","End","End","End","End","End","End","End","End","End","End","End","End","End","End","End","End","End","End","End","End","End","End","End","End","End","End","End","End","End","End","End","End","End","End","End","End","End","End","End","End","End","End","End","End","End","End","End","End","End","End","End","End","End","End","End","End","End","End","End"]

{"sheet":"Risk Matrix","index":3,"n_rows":56,"n_cols":9,"rows_kept":56,"cut":false,"hidden":false,"merged":[[25,6,26,6],[25,5,26,5],[25,3,25,4],[8,1,12,1],[25,1,25,2]]}
[{"$f":"MdlTle","v":"Quick Risk Estimation (QRE) Tool"}]
[{"$f":"MID(CELL(\"filename\",A1),FIND(\"]\",CELL(\"filename\",A1))+1,255)","v":"Risk Matrix"}]
[]
[]
[]
[]
[null,"Likelihood ranking",null,null,"Very Low","Low","Moderate","High","Very High"]
[null,"Likelihood ranking score",null,null,"0 - 2","2 - 4","4 - 6","6 - 8","8 - 10"]
[null,"Severity\nWeighted average severity score (based on responses provided for vulnerability, exposure and response measures)","Insignificant","0 - 10","VL1","VL2","L3","L4","M5"]
[null,null,"Minor","11 - 25","VL2","L3","L4","M5","M6"]
[null,null,"Moderate","26 - 50","L3","L4","M5","M6","H7"]
[null,null,"Major","51 - 75","L4","M5","M6","H7","H8"]
[null,null,"Catastrophic","76 - 100","M5","M6","H7","H8","VH9"]
[]
[]
[null,"Guide to Likelihood"]
[null,"Level","Definition based on likelihood",null,null,null,"Definition based on historical data"]
[null,"Very High","It is almost certain to occur at least once ",null,null,null,"Has occurred 3 or more times in the last 5 years"]
[null,"High","Reasonable chance of occurring at least once ",null,null,null,"Has occurred twice in the last 5 years"]
[null,"Moderate","Might occur at least once",null,null,null,"Has occurred once within the last 5 years"]
[null,"Low","Not expected to occur",null,null,null,"May occur and has occurred once in the last 10 years"]
[null,"Very Low","Will only occur in exceptional circumstances ",null,null,null,"May only occur in exceptional circumstances and has occurred in the last 20 years"]
[]
["Risk matrix table"]
[]
[null,"Severity",null,"Likelihood ranking",null,"Ranking","Ranking reference"]
[null,"Lower Bound","Upper Bound","Lower bound","Upper bound"]
[null,-100,0,0,0,0,"VL1"]
[null,0.1,10,0,2,1,"VL1"]
[null,0.1,10,2.1,4,2,"VL2"]
[null,0.1,10,4.0999999999999996,6,3,"L3"]
[null,0.1,10,6.1,8,4,"L4"]
[null,0.1,10,8.1,10,5,"M5"]
[null,11,25,0,2,6,"VL2"]
[null,11,25,2.1,4,7,"L3"]
[null,11,25,4.0999999999999996,6,8,"L4"]
[null,11,25,6.1,8,9,"M5"]
[null,11,25,8.1,10,10,"M6"]
[null,26,50,0,2,11,"L3"]
[null,26,50,2.1,4,12,"L4"]
[null,26,50,4.0999999999999996,6,13,"M5"]
[null,26,50,6.1,8,14,"M6"]
[null,26,50,8.1,10,15,"H7"]
[null,51,75,0,2,16,"L4"]
[null,51,75,2.1,4,17,"M5"]
[null,51,75,4.0999999999999996,6,18,"M6"]
[null,51,75,6.1,8,19,"H7"]
[null,51,75,8.1,10,20,"H8"]
[null,76,100,0,2,21,"M5"]
[null,76,100,2.1,4,22,"M6"]
[null,76,100,4.0999999999999996,6,23,"H7"]
[null,76,100,6.1,8,24,"H8"]
[null,76,100,8.1,10,25,"VH9"]
[]
[]
["End"]

{"sheet":"Information","index":4,"n_rows":24,"n_cols":3,"rows_kept":24,"cut":false,"hidden":false,"merged":[]}
[{"$f":"MdlTle","v":"Quick Risk Estimation (QRE) Tool"}]
[{"$f":"MID(CELL(\"filename\",A1),FIND(\"]\",CELL(\"filename\",A1))+1,255)","v":"Information"}]
[]
[]
[]
[]
[]
[]
[]
[]
[]
[]
[]
[]
[null,null,"Location/Region Name/Title: "]
[]
[null,null,"Description (including asset(s) under examination): "]
[]
[]
[null,null,"Assessor (i.e. person completing this risk estimation): "]
[]
[null,null,"Completion Date: "]
[]
[null,null,"Review Date/Version: "]

{"sheet":"Assumptions","index":5,"n_rows":162,"n_cols":6,"rows_kept":162,"cut":false,"hidden":false,"merged":[]}
[{"$f":"MdlTle","v":"Quick Risk Estimation (QRE) Tool"}]
[{"$f":"MID(CELL(\"filename\",A1),FIND(\"]\",CELL(\"filename\",A1))+1,255)","v":"Assumptions"}]
[]
[]
["General assumptions"]
[]
[]
[null,"Proportion of likelihood ranking score",null,"%",null,0.5]
[null,"Maximum score/rank",null,"#",null,10]
[null,"Vulnerability weighting",null,"%",null,0.25]
[]
["Ratings and scores"]
[]
[null,"Exposure ratings"]
[null,"Negligible",null,"#",null,0]
[null,"Extremely unlikely",null,"#",null,1]
[null,"Very unlikely",null,"#",null,2]
[null,"Unlikely",null,"#",null,3]
[null,"Improbable",null,"#",null,4]
[null,"Possible",null,"#",null,5]
[null,"Probable",null,"#",null,6]
[null,"Likely",null,"#",null,7]
[null,"Very likely",null,"#",null,8]
[null,"Extremely likely",null,"#",null,9]
[null,"Inevitable",null,"#",null,10]
[]
[null,"Vulnerability rating"]
[null,"Negligible",null,"#",null,0]
[null,"Extremely unlikely",null,"#",null,1]
[null,"Very unlikely",null,"#",null,2]
[null,"Unlikely",null,"#",null,3]
[null,"Improbable",null,"#",null,4]
[null,"Possible",null,"#",null,5]
[null,"Probable",null,"#",null,6]
[null,"Likely",null,"#",null,7]
[null,"Very likely",null,"#",null,8]
[null,"Extremely likely",null,"#",null,9]
[null,"Inevitable",null,"#",null,10]
[]
[null,"Response rating"]
[null,"No measures in place",null,"#",null,0]
[null,"Extremely few measures in place",null,"#",null,1]
[null,"Very few measures in place",null,"#",null,2]
[null,"Few measures in place",null,"#",null,3]
[null,"Some measures in place",null,"#",null,4]
[null,"Reasonable measures in place",null,"#",null,5]
[null,"Good measures in place",null,"#",null,6]
[null,"High measures in place",null,"#",null,7]
[null,"Extremely high measures in place",null,"#",null,8]
[null,"Immense measures in place",null,"#",null,9]
[null,"Complete control of disaster",null,"#",null,10]
[]
["Drop down boxes"]
[]
[null,"Hazards"]
[null,"Geophysical Main Hazards"]
[null,"Earthquake"]
[null,"Mass Movement"]
[null,"Volcanic Activity"]
[]
[null,"Hydrological Main Hazards"]
[null,"Flood"]
[null,"Landslide"]
[null,"Wave Action"]
[]
[null,"Meterological Main Hazards"]
[null,"Convective Storm"]
[null,"Extratropical Storm"]
[null,"Extreme Temperature"]
[null,"Fog"]
[null,"Tropical Cyclone"]
[]
[null,"Climatological Main Hazards"]
[null,"Drought"]
[null,"Glacial Lake Outburst"]
[null,"Wildfire"]
[]
[null,"Biological Main Hazards"]
[null,"Animal Incident"]
[null,"Disease"]
[null,"Insect Infestation"]
[]
[null,"Extra-terrestrial Main Hazards"]
[null,"Impact to ground or water"]
[null,"Space Weather"]
[]
[null,"Anthropogenic Main Hazards"]
[null,"Technological hazard"]
[null,"Chemical and radiological hazard"]
[null,"Transportation accidents"]
[]
[null,"Other Main Hazards (User defined)"]
[null,"Spare 1"]
[null,"Spare 2"]
[null,"Spare 3"]
[null,"Spare 4"]
[]
[]
[null,"Hazard events"]
[null,"Airburst",null,null,null,"Ash fall"]
[null,"Ash fall",null,null,null,"Fire following event"]
[null,"Avalanche/ Snow/ Debris",null,null,null,"Ground movement"]
[null,"Aviation accident",null,null,null,"Landslide following event"]
[null,"Bacterial Disease",null,null,null,"Lahar"]
[null,"Chemical spill",null,null,null,"Lava flow"]
[null,"Coastal Erosion",null,null,null,"Liquefaction"]
[null,"Coastal Flood",null,null,null,"Pyroclastic flow"]
[null,"Cold Wave",null,null,null,"Tsunami"]
[null,"Collision",null,null,null,"Avalanche/Snow/Debris"]
[null,"Derecho",null,null,null,"Coastal Flood"]
[null,"Energetic Particles",null,null,null,"Coastal Erosion"]
[null,"Expansive Soil",null,null,null,"Landslide following event"]
[null,"Fire following event",null,null,null,"Mudfall/Rockfall/Debris"]
[null,"Flash Flood",null,null,null,"Expansive Soil"]
[null,"Forest Fire",null,null,null,"Flash Flood"]
[null,"Frost/Freeze",null,null,null,"Ice Jam Flood"]
[null,"Fungal Disease",null,null,null,"Riverine Flood"]
[null,"Geomagnetic Storm",null,null,null,"Rogue Wave"]
[null,"Ground movement",null,null,null,"Seiche"]
[null,"Hail",null,null,null,"Sinkhole"]
[null,"Heatwave",null,null,null,"Cold Wave"]
[null,"Ice Jam Flood",null,null,null,"Derecho"]
[null,"Industrial disaster",null,null,null,"Frost/Freeze"]
[null,"Industrial explosion",null,null,null,"Hail"]
[null,"Lahar",null,null,null,"Heatwave"]
[null,"Land Fire of Brush/ Bush / Pasture",null,null,null,"Lightning"]
[null,"Landslide following event",null,null,null,"Rain"]
[null,"Lava flow",null,null,null,"Sandstorm/Duststorm"]
[null,"Lightning",null,null,null,"Snow/Ice"]
[null,"Liquefaction",null,null,null,"Storm Surge"]
[null,"Mine disaster",null,null,null,"Tornado"]
[null,"Mudfall/Rockfall/Debris",null,null,null,"Wind"]
[null,"Navigation accident",null,null,null,"Winter Storm/Blizzard"]
[null,"Oil spill",null,null,null,"Forest Fire"]
[null,"Parasitic Disease",null,null,null,"Land Fire of Brush/Bush/Pasture"]
[null,"Power outage",null,null,null,"Subsidence"]
[null,"Prion Disease",null,null,null,"Bacterial Disease"]
[null,"Pyroclastic flow",null,null,null,"Fungal Disease"]
[null,"Radiation contamination, nuclear incident",null,null,null,"Parasitic Disease"]
[null,"Radio Disturbance",null,null,null,"Prion Disease"]
[null,"Rail accident",null,null,null,"Viral Disease"]
[null,"Rain",null,null,null,"Airburst"]
[null,"Riverine Flood",null,null,null,"Collision"]
[null,"Road accident",null,null,null,"Energetic Particles"]
[null,"Rogue Wave",null,null,null,"Geomagnetic Storm"]
[null,"Sandstorm/ Duststorm",null,null,null,"Radio Disturbance"]
[null,"Seiche",null,null,null,"Shockwave"]
[null,"Shockwave",null,null,null,"Industrial disaster"]
[null,"Sinkhole",null,null,null,"Structural collapse"]
[null,"Snow/ Ice",null,null,null,"Power outage"]
[null,"Space accident",null,null,null,"Fire following event"]
[null,"Storm Surge",null,null,null,"Industrial explosion"]
[null,"Structural collapse",null,null,null,"Mine disaster"]
[null,"Subsidence",null,null,null,"Chemical spill"]
[null,"Tornado",null,null,null,"Oil spill"]
[null,"Tsunami",null,null,null,"Radiation contamination, nuclear incident"]
[null,"Viral Disease",null,null,null,"Aviation accident"]
[null,"Wind",null,null,null,"Rail accident"]
[null,"Winter Storm/ Blizzard",null,null,null,"Road accident"]
[null,null,null,null,null,"Navigation accident"]
[null,null,null,null,null,"Space accident"]
["End"]

{"sheet":"Hazard Data Entry","index":6,"n_rows":54,"n_cols":14,"rows_kept":54,"cut":false,"hidden":false,"merged":[[0,1,2,3],[4,1,5,1],[4,4,4,7],[4,2,5,2],[4,13,5,13],[4,3,5,3],[4,9,5,9],[4,12,5,12]]}
[{"$f":"MdlTle","v":"Quick Risk Estimation (QRE) Tool"},"Quick Risk Estimation (QRE) Tool\nHazard Data Entry"]
[{"$f":"MID(CELL(\"filename\",A1),FIND(\"]\",CELL(\"filename\",A1))+1,255)","v":"Hazard Data Entry"}]
[]
[]
[null,"Hazard family","Hazard event","Exposure rating ","Vulnerability rating",null,null,null,"Total vulnerability rating","Current level of response measures undertaken or in place","Likelihood ranking score ","Severity rating ","Risk matrix output","Comments and justifications"]
[null,null,null,null,"Infrastructure","Productive sectors","Essential or basic services","Human and social aspects","1 (low) - 100 (high)",null,"1 (low) - 10 (high)","1 (low ) - 100 (high)"]
[null,"H1 - Geophysical"]
[null,null,null,null,null,null,null,null,{"$f":"IFERROR((((INDEX(Assumptions!$F$28:$F$38,MATCH(E8,Vulnerabilties,0))*Assumptions!$F$10)+(INDEX(Assumptions!$F$28:$F$38,MATCH(F8,Vulnerabilties,0))*Assumptions!$F$10)+(INDEX(Assumptions!$F$28:$F$38,MATCH(G8,Vulnerabilties,0))*Assumptions!$F$10)+(INDEX(Assumptions!$F$28:$F$38,MATCH(H8,Vulnerabilties,0))*Assumptions!$F$10))*Assumptions!$F$9),0)","v":0},null,{"$f":"IFERROR(INDEX(Assumptions!$F$15:$F$25,MATCH(D8,Exposures,0)*Assumptions!$F$8+(I8/Assumptions!$F$9)*Assumptions!$F$8),0)","v":0},{"$f":"IFERROR((K8*Assumptions!$F$9)-(INDEX(Assumptions!$F$41:$F$51,MATCH(J8,Levels_of_response,0))*Assumptions!$F$9),0)","v":0},{"$f":"IF(L8=0,\"-\",IFERROR(INDEX('Risk Matrix'!$G$28:$G$53,MATCH(SUMPRODUCT(('Risk Matrix'!$B$28:$B$53<=L8)*('Risk Matrix'!$C$28:$C$53>=L8)*('Risk Matrix'!$D$28:$D$53<=K8)*('Risk Matrix'!$E$28:$E$53>=K8)*('Risk Matrix'!$F$28:$F$53)),'Risk Matrix'!$F$28:$F$53,0)),0))","v":"-"}]
[null,null,null,null,null,null,null,null,{"$f":"IFERROR((((INDEX(Assumptions!$F$28:$F$38,MATCH(E9,Vulnerabilties,0))*Assumptions!$F$10)+(INDEX(Assumptions!$F$28:$F$38,MATCH(F9,Vulnerabilties,0))*Assumptions!$F$10)+(INDEX(Assumptions!$F$28:$F$38,MATCH(G9,Vulnerabilties,0))*Assumptions!$F$10)+(INDEX(Assumptions!$F$28:$F$38,MATCH(H9,Vulnerabilties,0))*Assumptions!$F$10))*Assumptions!$F$9),0)","v":0},null,{"$f":"IFERROR(INDEX(Assumptions!$F$15:$F$25,MATCH(D9,Exposures,0)*Assumptions!$F$8+(I9/Assumptions!$F$9)*Assumptions!$F$8),0)","v":0},{"$f":"IFERROR((K9*Assumptions!$F$9)-(INDEX(Assumptions!$F$41:$F$51,MATCH(J9,Levels_of_response,0))*Assumptions!$F$9),0)","v":0},{"$f":"IF(L9=0,\"-\",IFERROR(INDEX('Risk Matrix'!$G$28:$G$53,MATCH(SUMPRODUCT(('Risk Matrix'!$B$28:$B$53<=L9)*('Risk Matrix'!$C$28:$C$53>=L9)*('Risk Matrix'!$D$28:$D$53<=K9)*('Risk Matrix'!$E$28:$E$53>=K9)*('Risk Matrix'!$F$28:$F$53)),'Risk Matrix'!$F$28:$F$53,0)),0))","v":"-"}]
[null,null,null,null,null,null,null,null,{"$f":"IFERROR((((INDEX(Assumptions!$F$28:$F$38,MATCH(E10,Vulnerabilties,0))*Assumptions!$F$10)+(INDEX(Assumptions!$F$28:$F$38,MATCH(F10,Vulnerabilties,0))*Assumptions!$F$10)+(INDEX(Assumptions!$F$28:$F$38,MATCH(G10,Vulnerabilties,0))*Assumptions!$F$10)+(INDEX(Assumptions!$F$28:$F$38,MATCH(H10,Vulnerabilties,0))*Assumptions!$F$10))*Assumptions!$F$9),0)","v":0},null,{"$f":"IFERROR(INDEX(Assumptions!$F$15:$F$25,MATCH(D10,Exposures,0)*Assumptions!$F$8+(I10/Assumptions!$F$9)*Assumptions!$F$8),0)","v":0},{"$f":"IFERROR((K10*Assumptions!$F$9)-(INDEX(Assumptions!$F$41:$F$51,MATCH(J10,Levels_of_response,0))*Assumptions!$F$9),0)","v":0},{"$f":"IF(L10=0,\"-\",IFERROR(INDEX('Risk Matrix'!$G$28:$G$53,MATCH(SUMPRODUCT(('Risk Matrix'!$B$28:$B$53<=L10)*('Risk Matrix'!$C$28:$C$53>=L10)*('Risk Matrix'!$D$28:$D$53<=K10)*('Risk Matrix'!$E$28:$E$53>=K10)*('Risk Matrix'!$F$28:$F$53)),'Risk Matrix'!$F$28:$F$53,0)),0))","v":"-"}]
[null,null,null,null,null,null,null,null,{"$f":"IFERROR((((INDEX(Assumptions!$F$28:$F$38,MATCH(E11,Vulnerabilties,0))*Assumptions!$F$10)+(INDEX(Assumptions!$F$28:$F$38,MATCH(F11,Vulnerabilties,0))*Assumptions!$F$10)+(INDEX(Assumptions!$F$28:$F$38,MATCH(G11,Vulnerabilties,0))*Assumptions!$F$10)+(INDEX(Assumptions!$F$28:$F$38,MATCH(H11,Vulnerabilties,0))*Assumptions!$F$10))*Assumptions!$F$9),0)","v":0},null,{"$f":"IFERROR(INDEX(Assumptions!$F$15:$F$25,MATCH(D11,Exposures,0)*Assumptions!$F$8+(I11/Assumptions!$F$9)*Assumptions!$F$8),0)","v":0},{"$f":"IFERROR((K11*Assumptions!$F$9)-(INDEX(Assumptions!$F$41:$F$51,MATCH(J11,Levels_of_response,0))*Assumptions!$F$9),0)","v":0},{"$f":"IF(L11=0,\"-\",IFERROR(INDEX('Risk Matrix'!$G$28:$G$53,MATCH(SUMPRODUCT(('Risk Matrix'!$B$28:$B$53<=L11)*('Risk Matrix'!$C$28:$C$53>=L11)*('Risk Matrix'!$D$28:$D$53<=K11)*('Risk Matrix'!$E$28:$E$53>=K11)*('Risk Matrix'!$F$28:$F$53)),'Risk Matrix'!$F$28:$F$53,0)),0))","v":"-"}]
[null,null,null,null,null,null,null,null,{"$f":"IFERROR((((INDEX(Assumptions!$F$28:$F$38,MATCH(E12,Vulnerabilties,0))*Assumptions!$F$10)+(INDEX(Assumptions!$F$28:$F$38,MATCH(F12,Vulnerabilties,0))*Assumptions!$F$10)+(INDEX(Assumptions!$F$28:$F$38,MATCH(G12,Vulnerabilties,0))*Assumptions!$F$10)+(INDEX(Assumptions!$F$28:$F$38,MATCH(H12,Vulnerabilties,0))*Assumptions!$F$10))*Assumptions!$F$9),0)","v":0},null,{"$f":"IFERROR(INDEX(Assumptions!$F$15:$F$25,MATCH(D12,Exposures,0)*Assumptions!$F$8+(I12/Assumptions!$F$9)*Assumptions!$F$8),0)","v":0},{"$f":"IFERROR((K12*Assumptions!$F$9)-(INDEX(Assumptions!$F$41:$F$51,MATCH(J12,Levels_of_response,0))*Assumptions!$F$9),0)","v":0},{"$f":"IF(L12=0,\"-\",IFERROR(INDEX('Risk Matrix'!$G$28:$G$53,MATCH(SUMPRODUCT(('Risk Matrix'!$B$28:$B$53<=L12)*('Risk Matrix'!$C$28:$C$53>=L12)*('Risk Matrix'!$D$28:$D$53<=K12)*('Risk Matrix'!$E$28:$E$53>=K12)*('Risk Matrix'!$F$28:$F$53)),'Risk Matrix'!$F$28:$F$53,0)),0))","v":"-"}]
[null,"H2 - Hydrological"]
[null,null,null,null,null,null,null,null,{"$f":"IFERROR((((INDEX(Assumptions!$F$28:$F$38,MATCH(E14,Vulnerabilties,0))*Assumptions!$F$10)+(INDEX(Assumptions!$F$28:$F$38,MATCH(F14,Vulnerabilties,0))*Assumptions!$F$10)+(INDEX(Assumptions!$F$28:$F$38,MATCH(G14,Vulnerabilties,0))*Assumptions!$F$10)+(INDEX(Assumptions!$F$28:$F$38,MATCH(H14,Vulnerabilties,0))*Assumptions!$F$10))*Assumptions!$F$9),0)","v":0},null,{"$f":"IFERROR(INDEX(Assumptions!$F$15:$F$25,MATCH(D14,Exposures,0)*Assumptions!$F$8+(I14/Assumptions!$F$9)*Assumptions!$F$8),0)","v":0},{"$f":"IFERROR((K14*Assumptions!$F$9)-(INDEX(Assumptions!$F$41:$F$51,MATCH(J14,Levels_of_response,0))*Assumptions!$F$9),0)","v":0},{"$f":"IF(L14=0,\"-\",IFERROR(INDEX('Risk Matrix'!$G$28:$G$53,MATCH(SUMPRODUCT(('Risk Matrix'!$B$28:$B$53<=L14)*('Risk Matrix'!$C$28:$C$53>=L14)*('Risk Matrix'!$D$28:$D$53<=K14)*('Risk Matrix'!$E$28:$E$53>=K14)*('Risk Matrix'!$F$28:$F$53)),'Risk Matrix'!$F$28:$F$53,0)),0))","v":"-"}]
[null,null,null,null,null,null,null,null,{"$f":"IFERROR((((INDEX(Assumptions!$F$28:$F$38,MATCH(E15,Vulnerabilties,0))*Assumptions!$F$10)+(INDEX(Assumptions!$F$28:$F$38,MATCH(F15,Vulnerabilties,0))*Assumptions!$F$10)+(INDEX(Assumptions!$F$28:$F$38,MATCH(G15,Vulnerabilties,0))*Assumptions!$F$10)+(INDEX(Assumptions!$F$28:$F$38,MATCH(H15,Vulnerabilties,0))*Assumptions!$F$10))*Assumptions!$F$9),0)","v":0},null,{"$f":"IFERROR(INDEX(Assumptions!$F$15:$F$25,MATCH(D15,Exposures,0)*Assumptions!$F$8+(I15/Assumptions!$F$9)*Assumptions!$F$8),0)","v":0},{"$f":"IFERROR((K15*Assumptions!$F$9)-(INDEX(Assumptions!$F$41:$F$51,MATCH(J15,Levels_of_response,0))*Assumptions!$F$9),0)","v":0},{"$f":"IF(L15=0,\"-\",IFERROR(INDEX('Risk Matrix'!$G$28:$G$53,MATCH(SUMPRODUCT(('Risk Matrix'!$B$28:$B$53<=L15)*('Risk Matrix'!$C$28:$C$53>=L15)*('Risk Matrix'!$D$28:$D$53<=K15)*('Risk Matrix'!$E$28:$E$53>=K15)*('Risk Matrix'!$F$28:$F$53)),'Risk Matrix'!$F$28:$F$53,0)),0))","v":"-"}]
[null,null,null,null,null,null,null,null,{"$f":"IFERROR((((INDEX(Assumptions!$F$28:$F$38,MATCH(E16,Vulnerabilties,0))*Assumptions!$F$10)+(INDEX(Assumptions!$F$28:$F$38,MATCH(F16,Vulnerabilties,0))*Assumptions!$F$10)+(INDEX(Assumptions!$F$28:$F$38,MATCH(G16,Vulnerabilties,0))*Assumptions!$F$10)+(INDEX(Assumptions!$F$28:$F$38,MATCH(H16,Vulnerabilties,0))*Assumptions!$F$10))*Assumptions!$F$9),0)","v":0},null,{"$f":"IFERROR(INDEX(Assumptions!$F$15:$F$25,MATCH(D16,Exposures,0)*Assumptions!$F$8+(I16/Assumptions!$F$9)*Assumptions!$F$8),0)","v":0},{"$f":"IFERROR((K16*Assumptions!$F$9)-(INDEX(Assumptions!$F$41:$F$51,MATCH(J16,Levels_of_response,0))*Assumptions!$F$9),0)","v":0},{"$f":"IF(L16=0,\"-\",IFERROR(INDEX('Risk Matrix'!$G$28:$G$53,MATCH(SUMPRODUCT(('Risk Matrix'!$B$28:$B$53<=L16)*('Risk Matrix'!$C$28:$C$53>=L16)*('Risk Matrix'!$D$28:$D$53<=K16)*('Risk Matrix'!$E$28:$E$53>=K16)*('Risk Matrix'!$F$28:$F$53)),'Risk Matrix'!$F$28:$F$53,0)),0))","v":"-"}]
[null,null,null,null,null,null,null,null,{"$f":"IFERROR((((INDEX(Assumptions!$F$28:$F$38,MATCH(E17,Vulnerabilties,0))*Assumptions!$F$10)+(INDEX(Assumptions!$F$28:$F$38,MATCH(F17,Vulnerabilties,0))*Assumptions!$F$10)+(INDEX(Assumptions!$F$28:$F$38,MATCH(G17,Vulnerabilties,0))*Assumptions!$F$10)+(INDEX(Assumptions!$F$28:$F$38,MATCH(H17,Vulnerabilties,0))*Assumptions!$F$10))*Assumptions!$F$9),0)","v":0},null,{"$f":"IFERROR(INDEX(Assumptions!$F$15:$F$25,MATCH(D17,Exposures,0)*Assumptions!$F$8+(I17/Assumptions!$F$9)*Assumptions!$F$8),0)","v":0},{"$f":"IFERROR((K17*Assumptions!$F$9)-(INDEX(Assumptions!$F$41:$F$51,MATCH(J17,Levels_of_response,0))*Assumptions!$F$9),0)","v":0},{"$f":"IF(L17=0,\"-\",IFERROR(INDEX('Risk Matrix'!$G$28:$G$53,MATCH(SUMPRODUCT(('Risk Matrix'!$B$28:$B$53<=L17)*('Risk Matrix'!$C$28:$C$53>=L17)*('Risk Matrix'!$D$28:$D$53<=K17)*('Risk Matrix'!$E$28:$E$53>=K17)*('Risk Matrix'!$F$28:$F$53)),'Risk Matrix'!$F$28:$F$53,0)),0))","v":"-"}]
[null,null,null,null,null,null,null,null,{"$f":"IFERROR((((INDEX(Assumptions!$F$28:$F$38,MATCH(E18,Vulnerabilties,0))*Assumptions!$F$10)+(INDEX(Assumptions!$F$28:$F$38,MATCH(F18,Vulnerabilties,0))*Assumptions!$F$10)+(INDEX(Assumptions!$F$28:$F$38,MATCH(G18,Vulnerabilties,0))*Assumptions!$F$10)+(INDEX(Assumptions!$F$28:$F$38,MATCH(H18,Vulnerabilties,0))*Assumptions!$F$10))*Assumptions!$F$9),0)","v":0},null,{"$f":"IFERROR(INDEX(Assumptions!$F$15:$F$25,MATCH(D18,Exposures,0)*Assumptions!$F$8+(I18/Assumptions!$F$9)*Assumptions!$F$8),0)","v":0},{"$f":"IFERROR((K18*Assumptions!$F$9)-(INDEX(Assumptions!$F$41:$F$51,MATCH(J18,Levels_of_response,0))*Assumptions!$F$9),0)","v":0},{"$f":"IF(L18=0,\"-\",IFERROR(INDEX('Risk Matrix'!$G$28:$G$53,MATCH(SUMPRODUCT(('Risk Matrix'!$B$28:$B$53<=L18)*('Risk Matrix'!$C$28:$C$53>=L18)*('Risk Matrix'!$D$28:$D$53<=K18)*('Risk Matrix'!$E$28:$E$53>=K18)*('Risk Matrix'!$F$28:$F$53)),'Risk Matrix'!$F$28:$F$53,0)),0))","v":"-"}]
[null,"H3 - Meteorological"]
[null,null,null,null,null,null,null,null,{"$f":"IFERROR((((INDEX(Assumptions!$F$28:$F$38,MATCH(E20,Vulnerabilties,0))*Assumptions!$F$10)+(INDEX(Assumptions!$F$28:$F$38,MATCH(F20,Vulnerabilties,0))*Assumptions!$F$10)+(INDEX(Assumptions!$F$28:$F$38,MATCH(G20,Vulnerabilties,0))*Assumptions!$F$10)+(INDEX(Assumptions!$F$28:$F$38,MATCH(H20,Vulnerabilties,0))*Assumptions!$F$10))*Assumptions!$F$9),0)","v":0},null,{"$f":"IFERROR(INDEX(Assumptions!$F$15:$F$25,MATCH(D20,Exposures,0)*Assumptions!$F$8+(I20/Assumptions!$F$9)*Assumptions!$F$8),0)","v":0},{"$f":"IFERROR((K20*Assumptions!$F$9)-(INDEX(Assumptions!$F$41:$F$51,MATCH(J20,Levels_of_response,0))*Assumptions!$F$9),0)","v":0},{"$f":"IF(L20=0,\"-\",IFERROR(INDEX('Risk Matrix'!$G$28:$G$53,MATCH(SUMPRODUCT(('Risk Matrix'!$B$28:$B$53<=L20)*('Risk Matrix'!$C$28:$C$53>=L20)*('Risk Matrix'!$D$28:$D$53<=K20)*('Risk Matrix'!$E$28:$E$53>=K20)*('Risk Matrix'!$F$28:$F$53)),'Risk Matrix'!$F$28:$F$53,0)),0))","v":"-"}]
[null,null,null,null,null,null,null,null,{"$f":"IFERROR((((INDEX(Assumptions!$F$28:$F$38,MATCH(E21,Vulnerabilties,0))*Assumptions!$F$10)+(INDEX(Assumptions!$F$28:$F$38,MATCH(F21,Vulnerabilties,0))*Assumptions!$F$10)+(INDEX(Assumptions!$F$28:$F$38,MATCH(G21,Vulnerabilties,0))*Assumptions!$F$10)+(INDEX(Assumptions!$F$28:$F$38,MATCH(H21,Vulnerabilties,0))*Assumptions!$F$10))*Assumptions!$F$9),0)","v":0},null,{"$f":"IFERROR(INDEX(Assumptions!$F$15:$F$25,MATCH(D21,Exposures,0)*Assumptions!$F$8+(I21/Assumptions!$F$9)*Assumptions!$F$8),0)","v":0},{"$f":"IFERROR((K21*Assumptions!$F$9)-(INDEX(Assumptions!$F$41:$F$51,MATCH(J21,Levels_of_response,0))*Assumptions!$F$9),0)","v":0},{"$f":"IF(L21=0,\"-\",IFERROR(INDEX('Risk Matrix'!$G$28:$G$53,MATCH(SUMPRODUCT(('Risk Matrix'!$B$28:$B$53<=L21)*('Risk Matrix'!$C$28:$C$53>=L21)*('Risk Matrix'!$D$28:$D$53<=K21)*('Risk Matrix'!$E$28:$E$53>=K21)*('Risk Matrix'!$F$28:$F$53)),'Risk Matrix'!$F$28:$F$53,0)),0))","v":"-"}]
[null,null,null,null,null,null,null,null,{"$f":"IFERROR((((INDEX(Assumptions!$F$28:$F$38,MATCH(E22,Vulnerabilties,0))*Assumptions!$F$10)+(INDEX(Assumptions!$F$28:$F$38,MATCH(F22,Vulnerabilties,0))*Assumptions!$F$10)+(INDEX(Assumptions!$F$28:$F$38,MATCH(G22,Vulnerabilties,0))*Assumptions!$F$10)+(INDEX(Assumptions!$F$28:$F$38,MATCH(H22,Vulnerabilties,0))*Assumptions!$F$10))*Assumptions!$F$9),0)","v":0},null,{"$f":"IFERROR(INDEX(Assumptions!$F$15:$F$25,MATCH(D22,Exposures,0)*Assumptions!$F$8+(I22/Assumptions!$F$9)*Assumptions!$F$8),0)","v":0},{"$f":"IFERROR((K22*Assumptions!$F$9)-(INDEX(Assumptions!$F$41:$F$51,MATCH(J22,Levels_of_response,0))*Assumptions!$F$9),0)","v":0},{"$f":"IF(L22=0,\"-\",IFERROR(INDEX('Risk Matrix'!$G$28:$G$53,MATCH(SUMPRODUCT(('Risk Matrix'!$B$28:$B$53<=L22)*('Risk Matrix'!$C$28:$C$53>=L22)*('Risk Matrix'!$D$28:$D$53<=K22)*('Risk Matrix'!$E$28:$E$53>=K22)*('Risk Matrix'!$F$28:$F$53)),'Risk Matrix'!$F$28:$F$53,0)),0))","v":"-"}]
[null,null,null,null,null,null,null,null,{"$f":"IFERROR((((INDEX(Assumptions!$F$28:$F$38,MATCH(E23,Vulnerabilties,0))*Assumptions!$F$10)+(INDEX(Assumptions!$F$28:$F$38,MATCH(F23,Vulnerabilties,0))*Assumptions!$F$10)+(INDEX(Assumptions!$F$28:$F$38,MATCH(G23,Vulnerabilties,0))*Assumptions!$F$10)+(INDEX(Assumptions!$F$28:$F$38,MATCH(H23,Vulnerabilties,0))*Assumptions!$F$10))*Assumptions!$F$9),0)","v":0},null,{"$f":"IFERROR(INDEX(Assumptions!$F$15:$F$25,MATCH(D23,Exposures,0)*Assumptions!$F$8+(I23/Assumptions!$F$9)*Assumptions!$F$8),0)","v":0},{"$f":"IFERROR((K23*Assumptions!$F$9)-(INDEX(Assumptions!$F$41:$F$51,MATCH(J23,Levels_of_response,0))*Assumptions!$F$9),0)","v":0},{"$f":"IF(L23=0,\"-\",IFERROR(INDEX('Risk Matrix'!$G$28:$G$53,MATCH(SUMPRODUCT(('Risk Matrix'!$B$28:$B$53<=L23)*('Risk Matrix'!$C$28:$C$53>=L23)*('Risk Matrix'!$D$28:$D$53<=K23)*('Risk Matrix'!$E$28:$E$53>=K23)*('Risk Matrix'!$F$28:$F$53)),'Risk Matrix'!$F$28:$F$53,0)),0))","v":"-"}]
[null,null,null,null,null,null,null,null,{"$f":"IFERROR((((INDEX(Assumptions!$F$28:$F$38,MATCH(E24,Vulnerabilties,0))*Assumptions!$F$10)+(INDEX(Assumptions!$F$28:$F$38,MATCH(F24,Vulnerabilties,0))*Assumptions!$F$10)+(INDEX(Assumptions!$F$28:$F$38,MATCH(G24,Vulnerabilties,0))*Assumptions!$F$10)+(INDEX(Assumptions!$F$28:$F$38,MATCH(H24,Vulnerabilties,0))*Assumptions!$F$10))*Assumptions!$F$9),0)","v":0},null,{"$f":"IFERROR(INDEX(Assumptions!$F$15:$F$25,MATCH(D24,Exposures,0)*Assumptions!$F$8+(I24/Assumptions!$F$9)*Assumptions!$F$8),0)","v":0},{"$f":"IFERROR((K24*Assumptions!$F$9)-(INDEX(Assumptions!$F$41:$F$51,MATCH(J24,Levels_of_response,0))*Assumptions!$F$9),0)","v":0},{"$f":"IF(L24=0,\"-\",IFERROR(INDEX('Risk Matrix'!$G$28:$G$53,MATCH(SUMPRODUCT(('Risk Matrix'!$B$28:$B$53<=L24)*('Risk Matrix'!$C$28:$C$53>=L24)*('Risk Matrix'!$D$28:$D$53<=K24)*('Risk Matrix'!$E$28:$E$53>=K24)*('Risk Matrix'!$F$28:$F$53)),'Risk Matrix'!$F$28:$F$53,0)),0))","v":"-"}]
[null,"H4 - Climatological"]
[null,null,null,null,null,null,null,null,{"$f":"IFERROR((((INDEX(Assumptions!$F$28:$F$38,MATCH(E26,Vulnerabilties,0))*Assumptions!$F$10)+(INDEX(Assumptions!$F$28:$F$38,MATCH(F26,Vulnerabilties,0))*Assumptions!$F$10)+(INDEX(Assumptions!$F$28:$F$38,MATCH(G26,Vulnerabilties,0))*Assumptions!$F$10)+(INDEX(Assumptions!$F$28:$F$38,MATCH(H26,Vulnerabilties,0))*Assumptions!$F$10))*Assumptions!$F$9),0)","v":0},null,{"$f":"IFERROR(INDEX(Assumptions!$F$15:$F$25,MATCH(D26,Exposures,0)*Assumptions!$F$8+(I26/Assumptions!$F$9)*Assumptions!$F$8),0)","v":0},{"$f":"IFERROR((K26*Assumptions!$F$9)-(INDEX(Assumptions!$F$41:$F$51,MATCH(J26,Levels_of_response,0))*Assumptions!$F$9),0)","v":0},{"$f":"IF(L26=0,\"-\",IFERROR(INDEX('Risk Matrix'!$G$28:$G$53,MATCH(SUMPRODUCT(('Risk Matrix'!$B$28:$B$53<=L26)*('Risk Matrix'!$C$28:$C$53>=L26)*('Risk Matrix'!$D$28:$D$53<=K26)*('Risk Matrix'!$E$28:$E$53>=K26)*('Risk Matrix'!$F$28:$F$53)),'Risk Matrix'!$F$28:$F$53,0)),0))","v":"-"}]
[null,null,null,null,null,null,null,null,{"$f":"IFERROR((((INDEX(Assumptions!$F$28:$F$38,MATCH(E27,Vulnerabilties,0))*Assumptions!$F$10)+(INDEX(Assumptions!$F$28:$F$38,MATCH(F27,Vulnerabilties,0))*Assumptions!$F$10)+(INDEX(Assumptions!$F$28:$F$38,MATCH(G27,Vulnerabilties,0))*Assumptions!$F$10)+(INDEX(Assumptions!$F$28:$F$38,MATCH(H27,Vulnerabilties,0))*Assumptions!$F$10))*Assumptions!$F$9),0)","v":0},null,{"$f":"IFERROR(INDEX(Assumptions!$F$15:$F$25,MATCH(D27,Exposures,0)*Assumptions!$F$8+(I27/Assumptions!$F$9)*Assumptions!$F$8),0)","v":0},{"$f":"IFERROR((K27*Assumptions!$F$9)-(INDEX(Assumptions!$F$41:$F$51,MATCH(J27,Levels_of_response,0))*Assumptions!$F$9),0)","v":0},{"$f":"IF(L27=0,\"-\",IFERROR(INDEX('Risk Matrix'!$G$28:$G$53,MATCH(SUMPRODUCT(('Risk Matrix'!$B$28:$B$53<=L27)*('Risk Matrix'!$C$28:$C$53>=L27)*('Risk Matrix'!$D$28:$D$53<=K27)*('Risk Matrix'!$E$28:$E$53>=K27)*('Risk Matrix'!$F$28:$F$53)),'Risk Matrix'!$F$28:$F$53,0)),0))","v":"-"}]
[null,null,null,null,null,null,null,null,{"$f":"IFERROR((((INDEX(Assumptions!$F$28:$F$38,MATCH(E28,Vulnerabilties,0))*Assumptions!$F$10)+(INDEX(Assumptions!$F$28:$F$38,MATCH(F28,Vulnerabilties,0))*Assumptions!$F$10)+(INDEX(Assumptions!$F$28:$F$38,MATCH(G28,Vulnerabilties,0))*Assumptions!$F$10)+(INDEX(Assumptions!$F$28:$F$38,MATCH(H28,Vulnerabilties,0))*Assumptions!$F$10))*Assumptions!$F$9),0)","v":0},null,{"$f":"IFERROR(INDEX(Assumptions!$F$15:$F$25,MATCH(D28,Exposures,0)*Assumptions!$F$8+(I28/Assumptions!$F$9)*Assumptions!$F$8),0)","v":0},{"$f":"IFERROR((K28*Assumptions!$F$9)-(INDEX(Assumptions!$F$41:$F$51,MATCH(J28,Levels_of_response,0))*Assumptions!$F$9),0)","v":0},{"$f":"IF(L28=0,\"-\",IFERROR(INDEX('Risk Matrix'!$G$28:$G$53,MATCH(SUMPRODUCT(('Risk Matrix'!$B$28:$B$53<=L28)*('Risk Matrix'!$C$28:$C$53>=L28)*('Risk Matrix'!$D$28:$D$53<=K28)*('Risk Matrix'!$E$28:$E$53>=K28)*('Risk Matrix'!$F$28:$F$53)),'Risk Matrix'!$F$28:$F$53,0)),0))","v":"-"}]
[null,null,null,null,null,null,null,null,{"$f":"IFERROR((((INDEX(Assumptions!$F$28:$F$38,MATCH(E29,Vulnerabilties,0))*Assumptions!$F$10)+(INDEX(Assumptions!$F$28:$F$38,MATCH(F29,Vulnerabilties,0))*Assumptions!$F$10)+(INDEX(Assumptions!$F$28:$F$38,MATCH(G29,Vulnerabilties,0))*Assumptions!$F$10)+(INDEX(Assumptions!$F$28:$F$38,MATCH(H29,Vulnerabilties,0))*Assumptions!$F$10))*Assumptions!$F$9),0)","v":0},null,{"$f":"IFERROR(INDEX(Assumptions!$F$15:$F$25,MATCH(D29,Exposures,0)*Assumptions!$F$8+(I29/Assumptions!$F$9)*Assumptions!$F$8),0)","v":0},{"$f":"IFERROR((K29*Assumptions!$F$9)-(INDEX(Assumptions!$F$41:$F$51,MATCH(J29,Levels_of_response,0))*Assumptions!$F$9),0)","v":0},{"$f":"IF(L29=0,\"-\",IFERROR(INDEX('Risk Matrix'!$G$28:$G$53,MATCH(SUMPRODUCT(('Risk Matrix'!$B$28:$B$53<=L29)*('Risk Matrix'!$C$28:$C$53>=L29)*('Risk Matrix'!$D$28:$D$53<=K29)*('Risk Matrix'!$E$28:$E$53>=K29)*('Risk Matrix'!$F$28:$F$53)),'Risk Matrix'!$F$28:$F$53,0)),0))","v":"-"}]
[null,null,null,null,null,null,null,null,{"$f":"IFERROR((((INDEX(Assumptions!$F$28:$F$38,MATCH(E30,Vulnerabilties,0))*Assumptions!$F$10)+(INDEX(Assumptions!$F$28:$F$38,MATCH(F30,Vulnerabilties,0))*Assumptions!$F$10)+(INDEX(Assumptions!$F$28:$F$38,MATCH(G30,Vulnerabilties,0))*Assumptions!$F$10)+(INDEX(Assumptions!$F$28:$F$38,MATCH(H30,Vulnerabilties,0))*Assumptions!$F$10))*Assumptions!$F$9),0)","v":0},null,{"$f":"IFERROR(INDEX(Assumptions!$F$15:$F$25,MATCH(D30,Exposures,0)*Assumptions!$F$8+(I30/Assumptions!$F$9)*Assumptions!$F$8),0)","v":0},{"$f":"IFERROR((K30*Assumptions!$F$9)-(INDEX(Assumptions!$F$41:$F$51,MATCH(J30,Levels_of_response,0))*Assumptions!$F$9),0)","v":0},{"$f":"IF(L30=0,\"-\",IFERROR(INDEX('Risk Matrix'!$G$28:$G$53,MATCH(SUMPRODUCT(('Risk Matrix'!$B$28:$B$53<=L30)*('Risk Matrix'!$C$28:$C$53>=L30)*('Risk Matrix'!$D$28:$D$53<=K30)*('Risk Matrix'!$E$28:$E$53>=K30)*('Risk Matrix'!$F$28:$F$53)),'Risk Matrix'!$F$28:$F$53,0)),0))","v":"-"}]
[null,"H5 -Biological"]
[null,null,null,null,null,null,null,null,{"$f":"IFERROR((((INDEX(Assumptions!$F$28:$F$38,MATCH(E32,Vulnerabilties,0))*Assumptions!$F$10)+(INDEX(Assumptions!$F$28:$F$38,MATCH(F32,Vulnerabilties,0))*Assumptions!$F$10)+(INDEX(Assumptions!$F$28:$F$38,MATCH(G32,Vulnerabilties,0))*Assumptions!$F$10)+(INDEX(Assumptions!$F$28:$F$38,MATCH(H32,Vulnerabilties,0))*Assumptions!$F$10))*Assumptions!$F$9),0)","v":0},null,{"$f":"IFERROR(INDEX(Assumptions!$F$15:$F$25,MATCH(D32,Exposures,0)*Assumptions!$F$8+(I32/Assumptions!$F$9)*Assumptions!$F$8),0)","v":0},{"$f":"IFERROR((K32*Assumptions!$F$9)-(INDEX(Assumptions!$F$41:$F$51,MATCH(J32,Levels_of_response,0))*Assumptions!$F$9),0)","v":0},{"$f":"IF(L32=0,\"-\",IFERROR(INDEX('Risk Matrix'!$G$28:$G$53,MATCH(SUMPRODUCT(('Risk Matrix'!$B$28:$B$53<=L32)*('Risk Matrix'!$C$28:$C$53>=L32)*('Risk Matrix'!$D$28:$D$53<=K32)*('Risk Matrix'!$E$28:$E$53>=K32)*('Risk Matrix'!$F$28:$F$53)),'Risk Matrix'!$F$28:$F$53,0)),0))","v":"-"}]
[null,null,null,null,null,null,null,null,{"$f":"IFERROR((((INDEX(Assumptions!$F$28:$F$38,MATCH(E33,Vulnerabilties,0))*Assumptions!$F$10)+(INDEX(Assumptions!$F$28:$F$38,MATCH(F33,Vulnerabilties,0))*Assumptions!$F$10)+(INDEX(Assumptions!$F$28:$F$38,MATCH(G33,Vulnerabilties,0))*Assumptions!$F$10)+(INDEX(Assumptions!$F$28:$F$38,MATCH(H33,Vulnerabilties,0))*Assumptions!$F$10))*Assumptions!$F$9),0)","v":0},null,{"$f":"IFERROR(INDEX(Assumptions!$F$15:$F$25,MATCH(D33,Exposures,0)*Assumptions!$F$8+(I33/Assumptions!$F$9)*Assumptions!$F$8),0)","v":0},{"$f":"IFERROR((K33*Assumptions!$F$9)-(INDEX(Assumptions!$F$41:$F$51,MATCH(J33,Levels_of_response,0))*Assumptions!$F$9),0)","v":0},{"$f":"IF(L33=0,\"-\",IFERROR(INDEX('Risk Matrix'!$G$28:$G$53,MATCH(SUMPRODUCT(('Risk Matrix'!$B$28:$B$53<=L33)*('Risk Matrix'!$C$28:$C$53>=L33)*('Risk Matrix'!$D$28:$D$53<=K33)*('Risk Matrix'!$E$28:$E$53>=K33)*('Risk Matrix'!$F$28:$F$53)),'Risk Matrix'!$F$28:$F$53,0)),0))","v":"-"}]
[null,null,null,null,null,null,null,null,{"$f":"IFERROR((((INDEX(Assumptions!$F$28:$F$38,MATCH(E34,Vulnerabilties,0))*Assumptions!$F$10)+(INDEX(Assumptions!$F$28:$F$38,MATCH(F34,Vulnerabilties,0))*Assumptions!$F$10)+(INDEX(Assumptions!$F$28:$F$38,MATCH(G34,Vulnerabilties,0))*Assumptions!$F$10)+(INDEX(Assumptions!$F$28:$F$38,MATCH(H34,Vulnerabilties,0))*Assumptions!$F$10))*Assumptions!$F$9),0)","v":0},null,{"$f":"IFERROR(INDEX(Assumptions!$F$15:$F$25,MATCH(D34,Exposures,0)*Assumptions!$F$8+(I34/Assumptions!$F$9)*Assumptions!$F$8),0)","v":0},{"$f":"IFERROR((K34*Assumptions!$F$9)-(INDEX(Assumptions!$F$41:$F$51,MATCH(J34,Levels_of_response,0))*Assumptions!$F$9),0)","v":0},{"$f":"IF(L34=0,\"-\",IFERROR(INDEX('Risk Matrix'!$G$28:$G$53,MATCH(SUMPRODUCT(('Risk Matrix'!$B$28:$B$53<=L34)*('Risk Matrix'!$C$28:$C$53>=L34)*('Risk Matrix'!$D$28:$D$53<=K34)*('Risk Matrix'!$E$28:$E$53>=K34)*('Risk Matrix'!$F$28:$F$53)),'Risk Matrix'!$F$28:$F$53,0)),0))","v":"-"}]
[null,null,null,null,null,null,null,null,{"$f":"IFERROR((((INDEX(Assumptions!$F$28:$F$38,MATCH(E35,Vulnerabilties,0))*Assumptions!$F$10)+(INDEX(Assumptions!$F$28:$F$38,MATCH(F35,Vulnerabilties,0))*Assumptions!$F$10)+(INDEX(Assumptions!$F$28:$F$38,MATCH(G35,Vulnerabilties,0))*Assumptions!$F$10)+(INDEX(Assumptions!$F$28:$F$38,MATCH(H35,Vulnerabilties,0))*Assumptions!$F$10))*Assumptions!$F$9),0)","v":0},null,{"$f":"IFERROR(INDEX(Assumptions!$F$15:$F$25,MATCH(D35,Exposures,0)*Assumptions!$F$8+(I35/Assumptions!$F$9)*Assumptions!$F$8),0)","v":0},{"$f":"IFERROR((K35*Assumptions!$F$9)-(INDEX(Assumptions!$F$41:$F$51,MATCH(J35,Levels_of_response,0))*Assumptions!$F$9),0)","v":0},{"$f":"IF(L35=0,\"-\",IFERROR(INDEX('Risk Matrix'!$G$28:$G$53,MATCH(SUMPRODUCT(('Risk Matrix'!$B$28:$B$53<=L35)*('Risk Matrix'!$C$28:$C$53>=L35)*('Risk Matrix'!$D$28:$D$53<=K35)*('Risk Matrix'!$E$28:$E$53>=K35)*('Risk Matrix'!$F$28:$F$53)),'Risk Matrix'!$F$28:$F$53,0)),0))","v":"-"}]
[null,null,null,null,null,null,null,null,{"$f":"IFERROR((((INDEX(Assumptions!$F$28:$F$38,MATCH(E36,Vulnerabilties,0))*Assumptions!$F$10)+(INDEX(Assumptions!$F$28:$F$38,MATCH(F36,Vulnerabilties,0))*Assumptions!$F$10)+(INDEX(Assumptions!$F$28:$F$38,MATCH(G36,Vulnerabilties,0))*Assumptions!$F$10)+(INDEX(Assumptions!$F$28:$F$38,MATCH(H36,Vulnerabilties,0))*Assumptions!$F$10))*Assumptions!$F$9),0)","v":0},null,{"$f":"IFERROR(INDEX(Assumptions!$F$15:$F$25,MATCH(D36,Exposures,0)*Assumptions!$F$8+(I36/Assumptions!$F$9)*Assumptions!$F$8),0)","v":0},{"$f":"IFERROR((K36*Assumptions!$F$9)-(INDEX(Assumptions!$F$41:$F$51,MATCH(J36,Levels_of_response,0))*Assumptions!$F$9),0)","v":0},{"$f":"IF(L36=0,\"-\",IFERROR(INDEX('Risk Matrix'!$G$28:$G$53,MATCH(SUMPRODUCT(('Risk Matrix'!$B$28:$B$53<=L36)*('Risk Matrix'!$C$28:$C$53>=L36)*('Risk Matrix'!$D$28:$D$53<=K36)*('Risk Matrix'!$E$28:$E$53>=K36)*('Risk Matrix'!$F$28:$F$53)),'Risk Matrix'!$F$28:$F$53,0)),0))","v":"-"}]
[null,"H6 - Extraterrestrial"]
[null,null,null,null,null,null,null,null,{"$f":"IFERROR((((INDEX(Assumptions!$F$28:$F$38,MATCH(E38,Vulnerabilties,0))*Assumptions!$F$10)+(INDEX(Assumptions!$F$28:$F$38,MATCH(F38,Vulnerabilties,0))*Assumptions!$F$10)+(INDEX(Assumptions!$F$28:$F$38,MATCH(G38,Vulnerabilties,0))*Assumptions!$F$10)+(INDEX(Assumptions!$F$28:$F$38,MATCH(H38,Vulnerabilties,0))*Assumptions!$F$10))*Assumptions!$F$9),0)","v":0},null,{"$f":"IFERROR(INDEX(Assumptions!$F$15:$F$25,MATCH(D38,Exposures,0)*Assumptions!$F$8+(I38/Assumptions!$F$9)*Assumptions!$F$8),0)","v":0},{"$f":"IFERROR((K38*Assumptions!$F$9)-(INDEX(Assumptions!$F$41:$F$51,MATCH(J38,Levels_of_response,0))*Assumptions!$F$9),0)","v":0},{"$f":"IF(L38=0,\"-\",IFERROR(INDEX('Risk Matrix'!$G$28:$G$53,MATCH(SUMPRODUCT(('Risk Matrix'!$B$28:$B$53<=L38)*('Risk Matrix'!$C$28:$C$53>=L38)*('Risk Matrix'!$D$28:$D$53<=K38)*('Risk Matrix'!$E$28:$E$53>=K38)*('Risk Matrix'!$F$28:$F$53)),'Risk Matrix'!$F$28:$F$53,0)),0))","v":"-"}]
[null,null,null,null,null,null,null,null,{"$f":"IFERROR((((INDEX(Assumptions!$F$28:$F$38,MATCH(E39,Vulnerabilties,0))*Assumptions!$F$10)+(INDEX(Assumptions!$F$28:$F$38,MATCH(F39,Vulnerabilties,0))*Assumptions!$F$10)+(INDEX(Assumptions!$F$28:$F$38,MATCH(G39,Vulnerabilties,0))*Assumptions!$F$10)+(INDEX(Assumptions!$F$28:$F$38,MATCH(H39,Vulnerabilties,0))*Assumptions!$F$10))*Assumptions!$F$9),0)","v":0},null,{"$f":"IFERROR(INDEX(Assumptions!$F$15:$F$25,MATCH(D39,Exposures,0)*Assumptions!$F$8+(I39/Assumptions!$F$9)*Assumptions!$F$8),0)","v":0},{"$f":"IFERROR((K39*Assumptions!$F$9)-(INDEX(Assumptions!$F$41:$F$51,MATCH(J39,Levels_of_response,0))*Assumptions!$F$9),0)","v":0},{"$f":"IF(L39=0,\"-\",IFERROR(INDEX('Risk Matrix'!$G$28:$G$53,MATCH(SUMPRODUCT(('Risk Matrix'!$B$28:$B$53<=L39)*('Risk Matrix'!$C$28:$C$53>=L39)*('Risk Matrix'!$D$28:$D$53<=K39)*('Risk Matrix'!$E$28:$E$53>=K39)*('Risk Matrix'!$F$28:$F$53)),'Risk Matrix'!$F$28:$F$53,0)),0))","v":"-"}]
[null,null,null,null,null,null,null,null,{"$f":"IFERROR((((INDEX(Assumptions!$F$28:$F$38,MATCH(E40,Vulnerabilties,0))*Assumptions!$F$10)+(INDEX(Assumptions!$F$28:$F$38,MATCH(F40,Vulnerabilties,0))*Assumptions!$F$10)+(INDEX(Assumptions!$F$28:$F$38,MATCH(G40,Vulnerabilties,0))*Assumptions!$F$10)+(INDEX(Assumptions!$F$28:$F$38,MATCH(H40,Vulnerabilties,0))*Assumptions!$F$10))*Assumptions!$F$9),0)","v":0},null,{"$f":"IFERROR(INDEX(Assumptions!$F$15:$F$25,MATCH(D40,Exposures,0)*Assumptions!$F$8+(I40/Assumptions!$F$9)*Assumptions!$F$8),0)","v":0},{"$f":"IFERROR((K40*Assumptions!$F$9)-(INDEX(Assumptions!$F$41:$F$51,MATCH(J40,Levels_of_response,0))*Assumptions!$F$9),0)","v":0},{"$f":"IF(L40=0,\"-\",IFERROR(INDEX('Risk Matrix'!$G$28:$G$53,MATCH(SUMPRODUCT(('Risk Matrix'!$B$28:$B$53<=L40)*('Risk Matrix'!$C$28:$C$53>=L40)*('Risk Matrix'!$D$28:$D$53<=K40)*('Risk Matrix'!$E$28:$E$53>=K40)*('Risk Matrix'!$F$28:$F$53)),'Risk Matrix'!$F$28:$F$53,0)),0))","v":"-"}]
[null,null,null,null,null,null,null,null,{"$f":"IFERROR((((INDEX(Assumptions!$F$28:$F$38,MATCH(E41,Vulnerabilties,0))*Assumptions!$F$10)+(INDEX(Assumptions!$F$28:$F$38,MATCH(F41,Vulnerabilties,0))*Assumptions!$F$10)+(INDEX(Assumptions!$F$28:$F$38,MATCH(G41,Vulnerabilties,0))*Assumptions!$F$10)+(INDEX(Assumptions!$F$28:$F$38,MATCH(H41,Vulnerabilties,0))*Assumptions!$F$10))*Assumptions!$F$9),0)","v":0},null,{"$f":"IFERROR(INDEX(Assumptions!$F$15:$F$25,MATCH(D41,Exposures,0)*Assumptions!$F$8+(I41/Assumptions!$F$9)*Assumptions!$F$8),0)","v":0},{"$f":"IFERROR((K41*Assumptions!$F$9)-(INDEX(Assumptions!$F$41:$F$51,MATCH(J41,Levels_of_response,0))*Assumptions!$F$9),0)","v":0},{"$f":"IF(L41=0,\"-\",IFERROR(INDEX('Risk Matrix'!$G$28:$G$53,MATCH(SUMPRODUCT(('Risk Matrix'!$B$28:$B$53<=L41)*('Risk Matrix'!$C$28:$C$53>=L41)*('Risk Matrix'!$D$28:$D$53<=K41)*('Risk Matrix'!$E$28:$E$53>=K41)*('Risk Matrix'!$F$28:$F$53)),'Risk Matrix'!$F$28:$F$53,0)),0))","v":"-"}]
[null,null,null,null,null,null,null,null,{"$f":"IFERROR((((INDEX(Assumptions!$F$28:$F$38,MATCH(E42,Vulnerabilties,0))*Assumptions!$F$10)+(INDEX(Assumptions!$F$28:$F$38,MATCH(F42,Vulnerabilties,0))*Assumptions!$F$10)+(INDEX(Assumptions!$F$28:$F$38,MATCH(G42,Vulnerabilties,0))*Assumptions!$F$10)+(INDEX(Assumptions!$F$28:$F$38,MATCH(H42,Vulnerabilties,0))*Assumptions!$F$10))*Assumptions!$F$9),0)","v":0},null,{"$f":"IFERROR(INDEX(Assumptions!$F$15:$F$25,MATCH(D42,Exposures,0)*Assumptions!$F$8+(I42/Assumptions!$F$9)*Assumptions!$F$8),0)","v":0},{"$f":"IFERROR((K42*Assumptions!$F$9)-(INDEX(Assumptions!$F$41:$F$51,MATCH(J42,Levels_of_response,0))*Assumptions!$F$9),0)","v":0},{"$f":"IF(L42=0,\"-\",IFERROR(INDEX('Risk Matrix'!$G$28:$G$53,MATCH(SUMPRODUCT(('Risk Matrix'!$B$28:$B$53<=L42)*('Risk Matrix'!$C$28:$C$53>=L42)*('Risk Matrix'!$D$28:$D$53<=K42)*('Risk Matrix'!$E$28:$E$53>=K42)*('Risk Matrix'!$F$28:$F$53)),'Risk Matrix'!$F$28:$F$53,0)),0))","v":"-"}]
[null,"H7 - Anthropogenic"]
[null,null,null,null,null,null,null,null,{"$f":"IFERROR((((INDEX(Assumptions!$F$28:$F$38,MATCH(E44,Vulnerabilties,0))*Assumptions!$F$10)+(INDEX(Assumptions!$F$28:$F$38,MATCH(F44,Vulnerabilties,0))*Assumptions!$F$10)+(INDEX(Assumptions!$F$28:$F$38,MATCH(G44,Vulnerabilties,0))*Assumptions!$F$10)+(INDEX(Assumptions!$F$28:$F$38,MATCH(H44,Vulnerabilties,0))*Assumptions!$F$10))*Assumptions!$F$9),0)","v":0},null,{"$f":"IFERROR(INDEX(Assumptions!$F$15:$F$25,MATCH(D44,Exposures,0)*Assumptions!$F$8+(I44/Assumptions!$F$9)*Assumptions!$F$8),0)","v":0},{"$f":"IFERROR((K44*Assumptions!$F$9)-(INDEX(Assumptions!$F$41:$F$51,MATCH(J44,Levels_of_response,0))*Assumptions!$F$9),0)","v":0},{"$f":"IF(L44=0,\"-\",IFERROR(INDEX('Risk Matrix'!$G$28:$G$53,MATCH(SUMPRODUCT(('Risk Matrix'!$B$28:$B$53<=L44)*('Risk Matrix'!$C$28:$C$53>=L44)*('Risk Matrix'!$D$28:$D$53<=K44)*('Risk Matrix'!$E$28:$E$53>=K44)*('Risk Matrix'!$F$28:$F$53)),'Risk Matrix'!$F$28:$F$53,0)),0))","v":"-"}]
[null,null,null,null,null,null,null,null,{"$f":"IFERROR((((INDEX(Assumptions!$F$28:$F$38,MATCH(E45,Vulnerabilties,0))*Assumptions!$F$10)+(INDEX(Assumptions!$F$28:$F$38,MATCH(F45,Vulnerabilties,0))*Assumptions!$F$10)+(INDEX(Assumptions!$F$28:$F$38,MATCH(G45,Vulnerabilties,0))*Assumptions!$F$10)+(INDEX(Assumptions!$F$28:$F$38,MATCH(H45,Vulnerabilties,0))*Assumptions!$F$10))*Assumptions!$F$9),0)","v":0},null,{"$f":"IFERROR(INDEX(Assumptions!$F$15:$F$25,MATCH(D45,Exposures,0)*Assumptions!$F$8+(I45/Assumptions!$F$9)*Assumptions!$F$8),0)","v":0},{"$f":"IFERROR((K45*Assumptions!$F$9)-(INDEX(Assumptions!$F$41:$F$51,MATCH(J45,Levels_of_response,0))*Assumptions!$F$9),0)","v":0},{"$f":"IF(L45=0,\"-\",IFERROR(INDEX('Risk Matrix'!$G$28:$G$53,MATCH(SUMPRODUCT(('Risk Matrix'!$B$28:$B$53<=L45)*('Risk Matrix'!$C$28:$C$53>=L45)*('Risk Matrix'!$D$28:$D$53<=K45)*('Risk Matrix'!$E$28:$E$53>=K45)*('Risk Matrix'!$F$28:$F$53)),'Risk Matrix'!$F$28:$F$53,0)),0))","v":"-"}]
[null,null,null,null,null,null,null,null,{"$f":"IFERROR((((INDEX(Assumptions!$F$28:$F$38,MATCH(E46,Vulnerabilties,0))*Assumptions!$F$10)+(INDEX(Assumptions!$F$28:$F$38,MATCH(F46,Vulnerabilties,0))*Assumptions!$F$10)+(INDEX(Assumptions!$F$28:$F$38,MATCH(G46,Vulnerabilties,0))*Assumptions!$F$10)+(INDEX(Assumptions!$F$28:$F$38,MATCH(H46,Vulnerabilties,0))*Assumptions!$F$10))*Assumptions!$F$9),0)","v":0},null,{"$f":"IFERROR(INDEX(Assumptions!$F$15:$F$25,MATCH(D46,Exposures,0)*Assumptions!$F$8+(I46/Assumptions!$F$9)*Assumptions!$F$8),0)","v":0},{"$f":"IFERROR((K46*Assumptions!$F$9)-(INDEX(Assumptions!$F$41:$F$51,MATCH(J46,Levels_of_response,0))*Assumptions!$F$9),0)","v":0},{"$f":"IF(L46=0,\"-\",IFERROR(INDEX('Risk Matrix'!$G$28:$G$53,MATCH(SUMPRODUCT(('Risk Matrix'!$B$28:$B$53<=L46)*('Risk Matrix'!$C$28:$C$53>=L46)*('Risk Matrix'!$D$28:$D$53<=K46)*('Risk Matrix'!$E$28:$E$53>=K46)*('Risk Matrix'!$F$28:$F$53)),'Risk Matrix'!$F$28:$F$53,0)),0))","v":"-"}]
[null,null,null,null,null,null,null,null,{"$f":"IFERROR((((INDEX(Assumptions!$F$28:$F$38,MATCH(E47,Vulnerabilties,0))*Assumptions!$F$10)+(INDEX(Assumptions!$F$28:$F$38,MATCH(F47,Vulnerabilties,0))*Assumptions!$F$10)+(INDEX(Assumptions!$F$28:$F$38,MATCH(G47,Vulnerabilties,0))*Assumptions!$F$10)+(INDEX(Assumptions!$F$28:$F$38,MATCH(H47,Vulnerabilties,0))*Assumptions!$F$10))*Assumptions!$F$9),0)","v":0},null,{"$f":"IFERROR(INDEX(Assumptions!$F$15:$F$25,MATCH(D47,Exposures,0)*Assumptions!$F$8+(I47/Assumptions!$F$9)*Assumptions!$F$8),0)","v":0},{"$f":"IFERROR((K47*Assumptions!$F$9)-(INDEX(Assumptions!$F$41:$F$51,MATCH(J47,Levels_of_response,0))*Assumptions!$F$9),0)","v":0},{"$f":"IF(L47=0,\"-\",IFERROR(INDEX('Risk Matrix'!$G$28:$G$53,MATCH(SUMPRODUCT(('Risk Matrix'!$B$28:$B$53<=L47)*('Risk Matrix'!$C$28:$C$53>=L47)*('Risk Matrix'!$D$28:$D$53<=K47)*('Risk Matrix'!$E$28:$E$53>=K47)*('Risk Matrix'!$F$28:$F$53)),'Risk Matrix'!$F$28:$F$53,0)),0))","v":"-"}]
[null,null,null,null,null,null,null,null,{"$f":"IFERROR((((INDEX(Assumptions!$F$28:$F$38,MATCH(E48,Vulnerabilties,0))*Assumptions!$F$10)+(INDEX(Assumptions!$F$28:$F$38,MATCH(F48,Vulnerabilties,0))*Assumptions!$F$10)+(INDEX(Assumptions!$F$28:$F$38,MATCH(G48,Vulnerabilties,0))*Assumptions!$F$10)+(INDEX(Assumptions!$F$28:$F$38,MATCH(H48,Vulnerabilties,0))*Assumptions!$F$10))*Assumptions!$F$9),0)","v":0},null,{"$f":"IFERROR(INDEX(Assumptions!$F$15:$F$25,MATCH(D48,Exposures,0)*Assumptions!$F$8+(I48/Assumptions!$F$9)*Assumptions!$F$8),0)","v":0},{"$f":"IFERROR((K48*Assumptions!$F$9)-(INDEX(Assumptions!$F$41:$F$51,MATCH(J48,Levels_of_response,0))*Assumptions!$F$9),0)","v":0},{"$f":"IF(L48=0,\"-\",IFERROR(INDEX('Risk Matrix'!$G$28:$G$53,MATCH(SUMPRODUCT(('Risk Matrix'!$B$28:$B$53<=L48)*('Risk Matrix'!$C$28:$C$53>=L48)*('Risk Matrix'!$D$28:$D$53<=K48)*('Risk Matrix'!$E$28:$E$53>=K48)*('Risk Matrix'!$F$28:$F$53)),'Risk Matrix'!$F$28:$F$53,0)),0))","v":"-"}]
[null,"H8 - Other (To be completed by User)"]
[null,null,null,null,null,null,null,null,{"$f":"IFERROR((((INDEX(Assumptions!$F$28:$F$38,MATCH(E50,Vulnerabilties,0))*Assumptions!$F$10)+(INDEX(Assumptions!$F$28:$F$38,MATCH(F50,Vulnerabilties,0))*Assumptions!$F$10)+(INDEX(Assumptions!$F$28:$F$38,MATCH(G50,Vulnerabilties,0))*Assumptions!$F$10)+(INDEX(Assumptions!$F$28:$F$38,MATCH(H50,Vulnerabilties,0))*Assumptions!$F$10))*Assumptions!$F$9),0)","v":0},null,{"$f":"IFERROR(INDEX(Assumptions!$F$15:$F$25,MATCH(D50,Exposures,0)*Assumptions!$F$8+(I50/Assumptions!$F$9)*Assumptions!$F$8),0)","v":0},{"$f":"IFERROR((K50*Assumptions!$F$9)-(INDEX(Assumptions!$F$41:$F$51,MATCH(J50,Levels_of_response,0))*Assumptions!$F$9),0)","v":0},{"$f":"IF(L50=0,\"-\",IFERROR(INDEX('Risk Matrix'!$G$28:$G$53,MATCH(SUMPRODUCT(('Risk Matrix'!$B$28:$B$53<=L50)*('Risk Matrix'!$C$28:$C$53>=L50)*('Risk Matrix'!$D$28:$D$53<=K50)*('Risk Matrix'!$E$28:$E$53>=K50)*('Risk Matrix'!$F$28:$F$53)),'Risk Matrix'!$F$28:$F$53,0)),0))","v":"-"}]
[null,null,null,null,null,null,null,null,{"$f":"IFERROR((((INDEX(Assumptions!$F$28:$F$38,MATCH(E51,Vulnerabilties,0))*Assumptions!$F$10)+(INDEX(Assumptions!$F$28:$F$38,MATCH(F51,Vulnerabilties,0))*Assumptions!$F$10)+(INDEX(Assumptions!$F$28:$F$38,MATCH(G51,Vulnerabilties,0))*Assumptions!$F$10)+(INDEX(Assumptions!$F$28:$F$38,MATCH(H51,Vulnerabilties,0))*Assumptions!$F$10))*Assumptions!$F$9),0)","v":0},null,{"$f":"IFERROR(INDEX(Assumptions!$F$15:$F$25,MATCH(D51,Exposures,0)*Assumptions!$F$8+(I51/Assumptions!$F$9)*Assumptions!$F$8),0)","v":0},{"$f":"IFERROR((K51*Assumptions!$F$9)-(INDEX(Assumptions!$F$41:$F$51,MATCH(J51,Levels_of_response,0))*Assumptions!$F$9),0)","v":0},{"$f":"IF(L51=0,\"-\",IFERROR(INDEX('Risk Matrix'!$G$28:$G$53,MATCH(SUMPRODUCT(('Risk Matrix'!$B$28:$B$53<=L51)*('Risk Matrix'!$C$28:$C$53>=L51)*('Risk Matrix'!$D$28:$D$53<=K51)*('Risk Matrix'!$E$28:$E$53>=K51)*('Risk Matrix'!$F$28:$F$53)),'Risk Matrix'!$F$28:$F$53,0)),0))","v":"-"}]
[null,null,null,null,null,null,null,null,{"$f":"IFERROR((((INDEX(Assumptions!$F$28:$F$38,MATCH(E52,Vulnerabilties,0))*Assumptions!$F$10)+(INDEX(Assumptions!$F$28:$F$38,MATCH(F52,Vulnerabilties,0))*Assumptions!$F$10)+(INDEX(Assumptions!$F$28:$F$38,MATCH(G52,Vulnerabilties,0))*Assumptions!$F$10)+(INDEX(Assumptions!$F$28:$F$38,MATCH(H52,Vulnerabilties,0))*Assumptions!$F$10))*Assumptions!$F$9),0)","v":0},null,{"$f":"IFERROR(INDEX(Assumptions!$F$15:$F$25,MATCH(D52,Exposures,0)*Assumptions!$F$8+(I52/Assumptions!$F$9)*Assumptions!$F$8),0)","v":0},{"$f":"IFERROR((K52*Assumptions!$F$9)-(INDEX(Assumptions!$F$41:$F$51,MATCH(J52,Levels_of_response,0))*Assumptions!$F$9),0)","v":0},{"$f":"IF(L52=0,\"-\",IFERROR(INDEX('Risk Matrix'!$G$28:$G$53,MATCH(SUMPRODUCT(('Risk Matrix'!$B$28:$B$53<=L52)*('Risk Matrix'!$C$28:$C$53>=L52)*('Risk Matrix'!$D$28:$D$53<=K52)*('Risk Matrix'!$E$28:$E$53>=K52)*('Risk Matrix'!$F$28:$F$53)),'Risk Matrix'!$F$28:$F$53,0)),0))","v":"-"}]
[null,null,null,null,null,null,null,null,{"$f":"IFERROR((((INDEX(Assumptions!$F$28:$F$38,MATCH(E53,Vulnerabilties,0))*Assumptions!$F$10)+(INDEX(Assumptions!$F$28:$F$38,MATCH(F53,Vulnerabilties,0))*Assumptions!$F$10)+(INDEX(Assumptions!$F$28:$F$38,MATCH(G53,Vulnerabilties,0))*Assumptions!$F$10)+(INDEX(Assumptions!$F$28:$F$38,MATCH(H53,Vulnerabilties,0))*Assumptions!$F$10))*Assumptions!$F$9),0)","v":0},null,{"$f":"IFERROR(INDEX(Assumptions!$F$15:$F$25,MATCH(D53,Exposures,0)*Assumptions!$F$8+(I53/Assumptions!$F$9)*Assumptions!$F$8),0)","v":0},{"$f":"IFERROR((K53*Assumptions!$F$9)-(INDEX(Assumptions!$F$41:$F$51,MATCH(J53,Levels_of_response,0))*Assumptions!$F$9),0)","v":0},{"$f":"IF(L53=0,\"-\",IFERROR(INDEX('Risk Matrix'!$G$28:$G$53,MATCH(SUMPRODUCT(('Risk Matrix'!$B$28:$B$53<=L53)*('Risk Matrix'!$C$28:$C$53>=L53)*('Risk Matrix'!$D$28:$D$53<=K53)*('Risk Matrix'!$E$28:$E$53>=K53)*('Risk Matrix'!$F$28:$F$53)),'Risk Matrix'!$F$28:$F$53,0)),0))","v":"-"}]
[null,null,null,null,null,null,null,null,{"$f":"IFERROR((((INDEX(Assumptions!$F$28:$F$38,MATCH(E54,Vulnerabilties,0))*Assumptions!$F$10)+(INDEX(Assumptions!$F$28:$F$38,MATCH(F54,Vulnerabilties,0))*Assumptions!$F$10)+(INDEX(Assumptions!$F$28:$F$38,MATCH(G54,Vulnerabilties,0))*Assumptions!$F$10)+(INDEX(Assumptions!$F$28:$F$38,MATCH(H54,Vulnerabilties,0))*Assumptions!$F$10))*Assumptions!$F$9),0)","v":0},null,{"$f":"IFERROR(INDEX(Assumptions!$F$15:$F$25,MATCH(D54,Exposures,0)*Assumptions!$F$8+(I54/Assumptions!$F$9)*Assumptions!$F$8),0)","v":0},{"$f":"IFERROR((K54*Assumptions!$F$9)-(INDEX(Assumptions!$F$41:$F$51,MATCH(J54,Levels_of_response,0))*Assumptions!$F$9),0)","v":0},{"$f":"IF(L54=0,\"-\",IFERROR(INDEX('Risk Matrix'!$G$28:$G$53,MATCH(SUMPRODUCT(('Risk Matrix'!$B$28:$B$53<=L54)*('Risk Matrix'!$C$28:$C$53>=L54)*('Risk Matrix'!$D$28:$D$53<=K54)*('Risk Matrix'!$E$28:$E$53>=K54)*('Risk Matrix'!$F$28:$F$53)),'Risk Matrix'!$F$28:$F$53,0)),0))","v":"-"}]

{"sheet":"Data Scores","index":7,"n_rows":48,"n_cols":13,"rows_kept":48,"cut":false,"hidden":false,"merged":[[25,1,29,1],[30,1,34,1],[35,1,39,1],[40,1,44,1],[5,0,6,0],[5,1,9,1],[10,1,14,1],[15,1,19,1],[20,1,24,1]]}
[{"$f":"MdlTle","v":"Quick Risk Estimation (QRE) Tool"}]
[{"$f":"MID(CELL(\"filename\",A1),FIND(\"]\",CELL(\"filename\",A1))+1,255)","v":"Data Scores"}]
[]
[]
[null,"Hazard family","Disaster","Hazard event","Exposure rating (1-10)",{"$f":"'Hazard Data Entry'!E6","v":"Infrastructure"},{"$f":"'Hazard Data Entry'!F6","v":"Productive sectors"},{"$f":"'Hazard Data Entry'!G6","v":"Essential or basic services"},{"$f":"'Hazard Data Entry'!H6","v":"Human and social aspects"},"Total vulnerability rating\n(1-100)","Current response measures      (1-10)","Likelihood ranking score \n(1-10)","Severity rating \n(1-100)"]
[null,{"$f":"'Hazard Data Entry'!$B$7","v":"H1 - Geophysical"},{"$f":"'Hazard Data Entry'!B8","v":0},{"$f":"'Hazard Data Entry'!C8","v":0},{"$f":"IFERROR(INDEX(Assumptions!$F$15:$F$25,MATCH('Hazard Data Entry'!D8,Exposures,0)),0)","v":0},{"$f":"IFERROR(INDEX(Assumptions!$F$15:$F$25,MATCH('Hazard Data Entry'!E8,Exposures,0)),0)","v":0},{"$f":"IFERROR(INDEX(Assumptions!$F$15:$F$25,MATCH('Hazard Data Entry'!F8,Exposures,0)),0)","v":0},{"$f":"IFERROR(INDEX(Assumptions!$F$15:$F$25,MATCH('Hazard Data Entry'!G8,Exposures,0)),0)","v":0},{"$f":"IFERROR(INDEX(Assumptions!$F$15:$F$25,MATCH('Hazard Data Entry'!H8,Exposures,0)),0)","v":0},{"$f":"'Hazard Data Entry'!I8","v":0},{"$f":"IFERROR(INDEX(Assumptions!$F$41:$F$51,MATCH('Hazard Data Entry'!J8,Levels_of_response,0)),0)","v":0},{"$f":"'Hazard Data Entry'!K8","v":0},{"$f":"'Hazard Data Entry'!L8","v":0}]
[null,null,{"$f":"'Hazard Data Entry'!B9","v":0},{"$f":"'Hazard Data Entry'!C9","v":0},{"$f":"IFERROR(INDEX(Assumptions!$F$15:$F$25,MATCH('Hazard Data Entry'!D9,Exposures,0)),0)","v":0},{"$f":"IFERROR(INDEX(Assumptions!$F$15:$F$25,MATCH('Hazard Data Entry'!E9,Exposures,0)),0)","v":0},{"$f":"IFERROR(INDEX(Assumptions!$F$15:$F$25,MATCH('Hazard Data Entry'!F9,Exposures,0)),0)","v":0},{"$f":"IFERROR(INDEX(Assumptions!$F$15:$F$25,MATCH('Hazard Data Entry'!G9,Exposures,0)),0)","v":0},{"$f":"IFERROR(INDEX(Assumptions!$F$15:$F$25,MATCH('Hazard Data Entry'!H9,Exposures,0)),0)","v":0},{"$f":"'Hazard Data Entry'!I9","v":0},{"$f":"IFERROR(INDEX(Assumptions!$F$41:$F$51,MATCH('Hazard Data Entry'!J9,Levels_of_response,0)),0)","v":0},{"$f":"'Hazard Data Entry'!K9","v":0},{"$f":"'Hazard Data Entry'!L9","v":0}]
[null,null,{"$f":"'Hazard Data Entry'!B10","v":0},{"$f":"'Hazard Data Entry'!C10","v":0},{"$f":"IFERROR(INDEX(Assumptions!$F$15:$F$25,MATCH('Hazard Data Entry'!D10,Exposures,0)),0)","v":0},{"$f":"IFERROR(INDEX(Assumptions!$F$15:$F$25,MATCH('Hazard Data Entry'!E10,Exposures,0)),0)","v":0},{"$f":"IFERROR(INDEX(Assumptions!$F$15:$F$25,MATCH('Hazard Data Entry'!F10,Exposures,0)),0)","v":0},{"$f":"IFERROR(INDEX(Assumptions!$F$15:$F$25,MATCH('Hazard Data Entry'!G10,Exposures,0)),0)","v":0},{"$f":"IFERROR(INDEX(Assumptions!$F$15:$F$25,MATCH('Hazard Data Entry'!H10,Exposures,0)),0)","v":0},{"$f":"'Hazard Data Entry'!I10","v":0},{"$f":"IFERROR(INDEX(Assumptions!$F$41:$F$51,MATCH('Hazard Data Entry'!J10,Levels_of_response,0)),0)","v":0},{"$f":"'Hazard Data Entry'!K10","v":0},{"$f":"'Hazard Data Entry'!L10","v":0}]
[null,null,{"$f":"'Hazard Data Entry'!B11","v":0},{"$f":"'Hazard Data Entry'!C11","v":0},{"$f":"IFERROR(INDEX(Assumptions!$F$15:$F$25,MATCH('Hazard Data Entry'!D11,Exposures,0)),0)","v":0},{"$f":"IFERROR(INDEX(Assumptions!$F$15:$F$25,MATCH('Hazard Data Entry'!E11,Exposures,0)),0)","v":0},{"$f":"IFERROR(INDEX(Assumptions!$F$15:$F$25,MATCH('Hazard Data Entry'!F11,Exposures,0)),0)","v":0},{"$f":"IFERROR(INDEX(Assumptions!$F$15:$F$25,MATCH('Hazard Data Entry'!G11,Exposures,0)),0)","v":0},{"$f":"IFERROR(INDEX(Assumptions!$F$15:$F$25,MATCH('Hazard Data Entry'!H11,Exposures,0)),0)","v":0},{"$f":"'Hazard Data Entry'!I11","v":0},{"$f":"IFERROR(INDEX(Assumptions!$F$41:$F$51,MATCH('Hazard Data Entry'!J11,Levels_of_response,0)),0)","v":0},{"$f":"'Hazard Data Entry'!K11","v":0},{"$f":"'Hazard Data Entry'!L11","v":0}]
[null,null,{"$f":"'Hazard Data Entry'!B12","v":0},{"$f":"'Hazard Data Entry'!C12","v":0},{"$f":"IFERROR(INDEX(Assumptions!$F$15:$F$25,MATCH('Hazard Data Entry'!D12,Exposures,0)),0)","v":0},{"$f":"IFERROR(INDEX(Assumptions!$F$15:$F$25,MATCH('Hazard Data Entry'!E12,Exposures,0)),0)","v":0},{"$f":"IFERROR(INDEX(Assumptions!$F$15:$F$25,MATCH('Hazard Data Entry'!F12,Exposures,0)),0)","v":0},{"$f":"IFERROR(INDEX(Assumptions!$F$15:$F$25,MATCH('Hazard Data Entry'!G12,Exposures,0)),0)","v":0},{"$f":"IFERROR(INDEX(Assumptions!$F$15:$F$25,MATCH('Hazard Data Entry'!H12,Exposures,0)),0)","v":0},{"$f":"'Hazard Data Entry'!I12","v":0},{"$f":"IFERROR(INDEX(Assumptions!$F$41:$F$51,MATCH('Hazard Data Entry'!J12,Levels_of_response,0)),0)","v":0},{"$f":"'Hazard Data Entry'!K12","v":0},{"$f":"'Hazard Data Entry'!L12","v":0}]
[null,{"$f":"'Hazard Data Entry'!$B$13","v":"H2 - Hydrological"},{"$f":"'Hazard Data Entry'!B14","v":0},{"$f":"'Hazard Data Entry'!C14","v":0},{"$f":"IFERROR(INDEX(Assumptions!$F$15:$F$25,MATCH('Hazard Data Entry'!D14,Exposures,0)),0)","v":0},{"$f":"IFERROR(INDEX(Assumptions!$F$15:$F$25,MATCH('Hazard Data Entry'!E14,Exposures,0)),0)","v":0},{"$f":"IFERROR(INDEX(Assumptions!$F$15:$F$25,MATCH('Hazard Data Entry'!F14,Exposures,0)),0)","v":0},{"$f":"IFERROR(INDEX(Assumptions!$F$15:$F$25,MATCH('Hazard Data Entry'!G14,Exposures,0)),0)","v":0},{"$f":"IFERROR(INDEX(Assumptions!$F$15:$F$25,MATCH('Hazard Data Entry'!H14,Exposures,0)),0)","v":0},{"$f":"'Hazard Data Entry'!I14","v":0},{"$f":"IFERROR(INDEX(Assumptions!$F$41:$F$51,MATCH('Hazard Data Entry'!J14,Levels_of_response,0)),0)","v":0},{"$f":"'Hazard Data Entry'!K14","v":0},{"$f":"'Hazard Data Entry'!L14","v":0}]
[null,null,{"$f":"'Hazard Data Entry'!B15","v":0},{"$f":"'Hazard Data Entry'!C15","v":0},{"$f":"IFERROR(INDEX(Assumptions!$F$15:$F$25,MATCH('Hazard Data Entry'!D15,Exposures,0)),0)","v":0},{"$f":"IFERROR(INDEX(Assumptions!$F$15:$F$25,MATCH('Hazard Data Entry'!E15,Exposures,0)),0)","v":0},{"$f":"IFERROR(INDEX(Assumptions!$F$15:$F$25,MATCH('Hazard Data Entry'!F15,Exposures,0)),0)","v":0},{"$f":"IFERROR(INDEX(Assumptions!$F$15:$F$25,MATCH('Hazard Data Entry'!G15,Exposures,0)),0)","v":0},{"$f":"IFERROR(INDEX(Assumptions!$F$15:$F$25,MATCH('Hazard Data Entry'!H15,Exposures,0)),0)","v":0},{"$f":"'Hazard Data Entry'!I15","v":0},{"$f":"IFERROR(INDEX(Assumptions!$F$41:$F$51,MATCH('Hazard Data Entry'!J15,Levels_of_response,0)),0)","v":0},{"$f":"'Hazard Data Entry'!K15","v":0},{"$f":"'Hazard Data Entry'!L15","v":0}]
[null,null,{"$f":"'Hazard Data Entry'!B16","v":0},{"$f":"'Hazard Data Entry'!C16","v":0},{"$f":"IFERROR(INDEX(Assumptions!$F$15:$F$25,MATCH('Hazard Data Entry'!D16,Exposures,0)),0)","v":0},{"$f":"IFERROR(INDEX(Assumptions!$F$15:$F$25,MATCH('Hazard Data Entry'!E16,Exposures,0)),0)","v":0},{"$f":"IFERROR(INDEX(Assumptions!$F$15:$F$25,MATCH('Hazard Data Entry'!F16,Exposures,0)),0)","v":0},{"$f":"IFERROR(INDEX(Assumptions!$F$15:$F$25,MATCH('Hazard Data Entry'!G16,Exposures,0)),0)","v":0},{"$f":"IFERROR(INDEX(Assumptions!$F$15:$F$25,MATCH('Hazard Data Entry'!H16,Exposures,0)),0)","v":0},{"$f":"'Hazard Data Entry'!I16","v":0},{"$f":"IFERROR(INDEX(Assumptions!$F$41:$F$51,MATCH('Hazard Data Entry'!J16,Levels_of_response,0)),0)","v":0},{"$f":"'Hazard Data Entry'!K16","v":0},{"$f":"'Hazard Data Entry'!L16","v":0}]
[null,null,{"$f":"'Hazard Data Entry'!B17","v":0},{"$f":"'Hazard Data Entry'!C17","v":0},{"$f":"IFERROR(INDEX(Assumptions!$F$15:$F$25,MATCH('Hazard Data Entry'!D17,Exposures,0)),0)","v":0},{"$f":"IFERROR(INDEX(Assumptions!$F$15:$F$25,MATCH('Hazard Data Entry'!E17,Exposures,0)),0)","v":0},{"$f":"IFERROR(INDEX(Assumptions!$F$15:$F$25,MATCH('Hazard Data Entry'!F17,Exposures,0)),0)","v":0},{"$f":"IFERROR(INDEX(Assumptions!$F$15:$F$25,MATCH('Hazard Data Entry'!G17,Exposures,0)),0)","v":0},{"$f":"IFERROR(INDEX(Assumptions!$F$15:$F$25,MATCH('Hazard Data Entry'!H17,Exposures,0)),0)","v":0},{"$f":"'Hazard Data Entry'!I17","v":0},{"$f":"IFERROR(INDEX(Assumptions!$F$41:$F$51,MATCH('Hazard Data Entry'!J17,Levels_of_response,0)),0)","v":0},{"$f":"'Hazard Data Entry'!K17","v":0},{"$f":"'Hazard Data Entry'!L17","v":0}]
[null,null,{"$f":"'Hazard Data Entry'!B18","v":0},{"$f":"'Hazard Data Entry'!C18","v":0},{"$f":"IFERROR(INDEX(Assumptions!$F$15:$F$25,MATCH('Hazard Data Entry'!D18,Exposures,0)),0)","v":0},{"$f":"IFERROR(INDEX(Assumptions!$F$15:$F$25,MATCH('Hazard Data Entry'!E18,Exposures,0)),0)","v":0},{"$f":"IFERROR(INDEX(Assumptions!$F$15:$F$25,MATCH('Hazard Data Entry'!F18,Exposures,0)),0)","v":0},{"$f":"IFERROR(INDEX(Assumptions!$F$15:$F$25,MATCH('Hazard Data Entry'!G18,Exposures,0)),0)","v":0},{"$f":"IFERROR(INDEX(Assumptions!$F$15:$F$25,MATCH('Hazard Data Entry'!H18,Exposures,0)),0)","v":0},{"$f":"'Hazard Data Entry'!I18","v":0},{"$f":"IFERROR(INDEX(Assumptions!$F$41:$F$51,MATCH('Hazard Data Entry'!J18,Levels_of_response,0)),0)","v":0},{"$f":"'Hazard Data Entry'!K18","v":0},{"$f":"'Hazard Data Entry'!L18","v":0}]
[null,{"$f":"'Hazard Data Entry'!$B$19","v":"H3 - Meteorological"},{"$f":"'Hazard Data Entry'!B20","v":0},{"$f":"'Hazard Data Entry'!C20","v":0},{"$f":"IFERROR(INDEX(Assumptions!$F$15:$F$25,MATCH('Hazard Data Entry'!D20,Exposures,0)),0)","v":0},{"$f":"IFERROR(INDEX(Assumptions!$F$15:$F$25,MATCH('Hazard Data Entry'!E20,Exposures,0)),0)","v":0},{"$f":"IFERROR(INDEX(Assumptions!$F$15:$F$25,MATCH('Hazard Data Entry'!F20,Exposures,0)),0)","v":0},{"$f":"IFERROR(INDEX(Assumptions!$F$15:$F$25,MATCH('Hazard Data Entry'!G20,Exposures,0)),0)","v":0},{"$f":"IFERROR(INDEX(Assumptions!$F$15:$F$25,MATCH('Hazard Data Entry'!H20,Exposures,0)),0)","v":0},{"$f":"'Hazard Data Entry'!I20","v":0},{"$f":"IFERROR(INDEX(Assumptions!$F$41:$F$51,MATCH('Hazard Data Entry'!J20,Levels_of_response,0)),0)","v":0},{"$f":"'Hazard Data Entry'!K20","v":0},{"$f":"'Hazard Data Entry'!L20","v":0}]
[null,null,{"$f":"'Hazard Data Entry'!B21","v":0},{"$f":"'Hazard Data Entry'!C21","v":0},{"$f":"IFERROR(INDEX(Assumptions!$F$15:$F$25,MATCH('Hazard Data Entry'!D21,Exposures,0)),0)","v":0},{"$f":"IFERROR(INDEX(Assumptions!$F$15:$F$25,MATCH('Hazard Data Entry'!E21,Exposures,0)),0)","v":0},{"$f":"IFERROR(INDEX(Assumptions!$F$15:$F$25,MATCH('Hazard Data Entry'!F21,Exposures,0)),0)","v":0},{"$f":"IFERROR(INDEX(Assumptions!$F$15:$F$25,MATCH('Hazard Data Entry'!G21,Exposures,0)),0)","v":0},{"$f":"IFERROR(INDEX(Assumptions!$F$15:$F$25,MATCH('Hazard Data Entry'!H21,Exposures,0)),0)","v":0},{"$f":"'Hazard Data Entry'!I21","v":0},{"$f":"IFERROR(INDEX(Assumptions!$F$41:$F$51,MATCH('Hazard Data Entry'!J21,Levels_of_response,0)),0)","v":0},{"$f":"'Hazard Data Entry'!K21","v":0},{"$f":"'Hazard Data Entry'!L21","v":0}]
[null,null,{"$f":"'Hazard Data Entry'!B22","v":0},{"$f":"'Hazard Data Entry'!C22","v":0},{"$f":"IFERROR(INDEX(Assumptions!$F$15:$F$25,MATCH('Hazard Data Entry'!D22,Exposures,0)),0)","v":0},{"$f":"IFERROR(INDEX(Assumptions!$F$15:$F$25,MATCH('Hazard Data Entry'!E22,Exposures,0)),0)","v":0},{"$f":"IFERROR(INDEX(Assumptions!$F$15:$F$25,MATCH('Hazard Data Entry'!F22,Exposures,0)),0)","v":0},{"$f":"IFERROR(INDEX(Assumptions!$F$15:$F$25,MATCH('Hazard Data Entry'!G22,Exposures,0)),0)","v":0},{"$f":"IFERROR(INDEX(Assumptions!$F$15:$F$25,MATCH('Hazard Data Entry'!H22,Exposures,0)),0)","v":0},{"$f":"'Hazard Data Entry'!I22","v":0},{"$f":"IFERROR(INDEX(Assumptions!$F$41:$F$51,MATCH('Hazard Data Entry'!J22,Levels_of_response,0)),0)","v":0},{"$f":"'Hazard Data Entry'!K22","v":0},{"$f":"'Hazard Data Entry'!L22","v":0}]
[null,null,{"$f":"'Hazard Data Entry'!B23","v":0},{"$f":"'Hazard Data Entry'!C23","v":0},{"$f":"IFERROR(INDEX(Assumptions!$F$15:$F$25,MATCH('Hazard Data Entry'!D23,Exposures,0)),0)","v":0},{"$f":"IFERROR(INDEX(Assumptions!$F$15:$F$25,MATCH('Hazard Data Entry'!E23,Exposures,0)),0)","v":0},{"$f":"IFERROR(INDEX(Assumptions!$F$15:$F$25,MATCH('Hazard Data Entry'!F23,Exposures,0)),0)","v":0},{"$f":"IFERROR(INDEX(Assumptions!$F$15:$F$25,MATCH('Hazard Data Entry'!G23,Exposures,0)),0)","v":0},{"$f":"IFERROR(INDEX(Assumptions!$F$15:$F$25,MATCH('Hazard Data Entry'!H23,Exposures,0)),0)","v":0},{"$f":"'Hazard Data Entry'!I23","v":0},{"$f":"IFERROR(INDEX(Assumptions!$F$41:$F$51,MATCH('Hazard Data Entry'!J23,Levels_of_response,0)),0)","v":0},{"$f":"'Hazard Data Entry'!K23","v":0},{"$f":"'Hazard Data Entry'!L23","v":0}]
[null,null,{"$f":"'Hazard Data Entry'!B24","v":0},{"$f":"'Hazard Data Entry'!C24","v":0},{"$f":"IFERROR(INDEX(Assumptions!$F$15:$F$25,MATCH('Hazard Data Entry'!D24,Exposures,0)),0)","v":0},{"$f":"IFERROR(INDEX(Assumptions!$F$15:$F$25,MATCH('Hazard Data Entry'!E24,Exposures,0)),0)","v":0},{"$f":"IFERROR(INDEX(Assumptions!$F$15:$F$25,MATCH('Hazard Data Entry'!F24,Exposures,0)),0)","v":0},{"$f":"IFERROR(INDEX(Assumptions!$F$15:$F$25,MATCH('Hazard Data Entry'!G24,Exposures,0)),0)","v":0},{"$f":"IFERROR(INDEX(Assumptions!$F$15:$F$25,MATCH('Hazard Data Entry'!H24,Exposures,0)),0)","v":0},{"$f":"'Hazard Data Entry'!I24","v":0},{"$f":"IFERROR(INDEX(Assumptions!$F$41:$F$51,MATCH('Hazard Data Entry'!J24,Levels_of_response,0)),0)","v":0},{"$f":"'Hazard Data Entry'!K24","v":0},{"$f":"'Hazard Data Entry'!L24","v":0}]
[null,{"$f":"'Hazard Data Entry'!B25","v":"H4 - Climatological"},{"$f":"'Hazard Data Entry'!B26","v":0},{"$f":"'Hazard Data Entry'!C26","v":0},{"$f":"IFERROR(INDEX(Assumptions!$F$15:$F$25,MATCH('Hazard Data Entry'!D26,Exposures,0)),0)","v":0},{"$f":"IFERROR(INDEX(Assumptions!$F$15:$F$25,MATCH('Hazard Data Entry'!E26,Exposures,0)),0)","v":0},{"$f":"IFERROR(INDEX(Assumptions!$F$15:$F$25,MATCH('Hazard Data Entry'!F26,Exposures,0)),0)","v":0},{"$f":"IFERROR(INDEX(Assumptions!$F$15:$F$25,MATCH('Hazard Data Entry'!G26,Exposures,0)),0)","v":0},{"$f":"IFERROR(INDEX(Assumptions!$F$15:$F$25,MATCH('Hazard Data Entry'!H26,Exposures,0)),0)","v":0},{"$f":"'Hazard Data Entry'!I26","v":0},{"$f":"IFERROR(INDEX(Assumptions!$F$41:$F$51,MATCH('Hazard Data Entry'!J26,Levels_of_response,0)),0)","v":0},{"$f":"'Hazard Data Entry'!K26","v":0},{"$f":"'Hazard Data Entry'!L26","v":0}]
[null,null,{"$f":"'Hazard Data Entry'!B27","v":0},{"$f":"'Hazard Data Entry'!C27","v":0},{"$f":"IFERROR(INDEX(Assumptions!$F$15:$F$25,MATCH('Hazard Data Entry'!D27,Exposures,0)),0)","v":0},{"$f":"IFERROR(INDEX(Assumptions!$F$15:$F$25,MATCH('Hazard Data Entry'!E27,Exposures,0)),0)","v":0},{"$f":"IFERROR(INDEX(Assumptions!$F$15:$F$25,MATCH('Hazard Data Entry'!F27,Exposures,0)),0)","v":0},{"$f":"IFERROR(INDEX(Assumptions!$F$15:$F$25,MATCH('Hazard Data Entry'!G27,Exposures,0)),0)","v":0},{"$f":"IFERROR(INDEX(Assumptions!$F$15:$F$25,MATCH('Hazard Data Entry'!H27,Exposures,0)),0)","v":0},{"$f":"'Hazard Data Entry'!I27","v":0},{"$f":"IFERROR(INDEX(Assumptions!$F$41:$F$51,MATCH('Hazard Data Entry'!J27,Levels_of_response,0)),0)","v":0},{"$f":"'Hazard Data Entry'!K27","v":0},{"$f":"'Hazard Data Entry'!L27","v":0}]
[null,null,{"$f":"'Hazard Data Entry'!B28","v":0},{"$f":"'Hazard Data Entry'!C28","v":0},{"$f":"IFERROR(INDEX(Assumptions!$F$15:$F$25,MATCH('Hazard Data Entry'!D28,Exposures,0)),0)","v":0},{"$f":"IFERROR(INDEX(Assumptions!$F$15:$F$25,MATCH('Hazard Data Entry'!E28,Exposures,0)),0)","v":0},{"$f":"IFERROR(INDEX(Assumptions!$F$15:$F$25,MATCH('Hazard Data Entry'!F28,Exposures,0)),0)","v":0},{"$f":"IFERROR(INDEX(Assumptions!$F$15:$F$25,MATCH('Hazard Data Entry'!G28,Exposures,0)),0)","v":0},{"$f":"IFERROR(INDEX(Assumptions!$F$15:$F$25,MATCH('Hazard Data Entry'!H28,Exposures,0)),0)","v":0},{"$f":"'Hazard Data Entry'!I28","v":0},{"$f":"IFERROR(INDEX(Assumptions!$F$41:$F$51,MATCH('Hazard Data Entry'!J28,Levels_of_response,0)),0)","v":0},{"$f":"'Hazard Data Entry'!K28","v":0},{"$f":"'Hazard Data Entry'!L28","v":0}]
[null,null,{"$f":"'Hazard Data Entry'!B29","v":0},{"$f":"'Hazard Data Entry'!C29","v":0},{"$f":"IFERROR(INDEX(Assumptions!$F$15:$F$25,MATCH('Hazard Data Entry'!D29,Exposures,0)),0)","v":0},{"$f":"IFERROR(INDEX(Assumptions!$F$15:$F$25,MATCH('Hazard Data Entry'!E29,Exposures,0)),0)","v":0},{"$f":"IFERROR(INDEX(Assumptions!$F$15:$F$25,MATCH('Hazard Data Entry'!F29,Exposures,0)),0)","v":0},{"$f":"IFERROR(INDEX(Assumptions!$F$15:$F$25,MATCH('Hazard Data Entry'!G29,Exposures,0)),0)","v":0},{"$f":"IFERROR(INDEX(Assumptions!$F$15:$F$25,MATCH('Hazard Data Entry'!H29,Exposures,0)),0)","v":0},{"$f":"'Hazard Data Entry'!I29","v":0},{"$f":"IFERROR(INDEX(Assumptions!$F$41:$F$51,MATCH('Hazard Data Entry'!J29,Levels_of_response,0)),0)","v":0},{"$f":"'Hazard Data Entry'!K29","v":0},{"$f":"'Hazard Data Entry'!L29","v":0}]
[null,null,{"$f":"'Hazard Data Entry'!B30","v":0},{"$f":"'Hazard Data Entry'!C30","v":0},{"$f":"IFERROR(INDEX(Assumptions!$F$15:$F$25,MATCH('Hazard Data Entry'!D30,Exposures,0)),0)","v":0},{"$f":"IFERROR(INDEX(Assumptions!$F$15:$F$25,MATCH('Hazard Data Entry'!E30,Exposures,0)),0)","v":0},{"$f":"IFERROR(INDEX(Assumptions!$F$15:$F$25,MATCH('Hazard Data Entry'!F30,Exposures,0)),0)","v":0},{"$f":"IFERROR(INDEX(Assumptions!$F$15:$F$25,MATCH('Hazard Data Entry'!G30,Exposures,0)),0)","v":0},{"$f":"IFERROR(INDEX(Assumptions!$F$15:$F$25,MATCH('Hazard Data Entry'!H30,Exposures,0)),0)","v":0},{"$f":"'Hazard Data Entry'!I30","v":0},{"$f":"IFERROR(INDEX(Assumptions!$F$41:$F$51,MATCH('Hazard Data Entry'!J30,Levels_of_response,0)),0)","v":0},{"$f":"'Hazard Data Entry'!K30","v":0},{"$f":"'Hazard Data Entry'!L30","v":0}]
[null,{"$f":"'Hazard Data Entry'!$B$31","v":"H5 -Biological"},{"$f":"'Hazard Data Entry'!B32","v":0},{"$f":"'Hazard Data Entry'!C32","v":0},{"$f":"IFERROR(INDEX(Assumptions!$F$15:$F$25,MATCH('Hazard Data Entry'!D32,Exposures,0)),0)","v":0},{"$f":"IFERROR(INDEX(Assumptions!$F$15:$F$25,MATCH('Hazard Data Entry'!E32,Exposures,0)),0)","v":0},{"$f":"IFERROR(INDEX(Assumptions!$F$15:$F$25,MATCH('Hazard Data Entry'!F32,Exposures,0)),0)","v":0},{"$f":"IFERROR(INDEX(Assumptions!$F$15:$F$25,MATCH('Hazard Data Entry'!G32,Exposures,0)),0)","v":0},{"$f":"IFERROR(INDEX(Assumptions!$F$15:$F$25,MATCH('Hazard Data Entry'!H32,Exposures,0)),0)","v":0},{"$f":"'Hazard Data Entry'!I32","v":0},{"$f":"IFERROR(INDEX(Assumptions!$F$41:$F$51,MATCH('Hazard Data Entry'!J32,Levels_of_response,0)),0)","v":0},{"$f":"'Hazard Data Entry'!K32","v":0},{"$f":"'Hazard Data Entry'!L32","v":0}]
[null,null,{"$f":"'Hazard Data Entry'!B33","v":0},{"$f":"'Hazard Data Entry'!C33","v":0},{"$f":"IFERROR(INDEX(Assumptions!$F$15:$F$25,MATCH('Hazard Data Entry'!D33,Exposures,0)),0)","v":0},{"$f":"IFERROR(INDEX(Assumptions!$F$15:$F$25,MATCH('Hazard Data Entry'!E33,Exposures,0)),0)","v":0},{"$f":"IFERROR(INDEX(Assumptions!$F$15:$F$25,MATCH('Hazard Data Entry'!F33,Exposures,0)),0)","v":0},{"$f":"IFERROR(INDEX(Assumptions!$F$15:$F$25,MATCH('Hazard Data Entry'!G33,Exposures,0)),0)","v":0},{"$f":"IFERROR(INDEX(Assumptions!$F$15:$F$25,MATCH('Hazard Data Entry'!H33,Exposures,0)),0)","v":0},{"$f":"'Hazard Data Entry'!I33","v":0},{"$f":"IFERROR(INDEX(Assumptions!$F$41:$F$51,MATCH('Hazard Data Entry'!J33,Levels_of_response,0)),0)","v":0},{"$f":"'Hazard Data Entry'!K33","v":0},{"$f":"'Hazard Data Entry'!L33","v":0}]
[null,null,{"$f":"'Hazard Data Entry'!B34","v":0},{"$f":"'Hazard Data Entry'!C34","v":0},{"$f":"IFERROR(INDEX(Assumptions!$F$15:$F$25,MATCH('Hazard Data Entry'!D34,Exposures,0)),0)","v":0},{"$f":"IFERROR(INDEX(Assumptions!$F$15:$F$25,MATCH('Hazard Data Entry'!E34,Exposures,0)),0)","v":0},{"$f":"IFERROR(INDEX(Assumptions!$F$15:$F$25,MATCH('Hazard Data Entry'!F34,Exposures,0)),0)","v":0},{"$f":"IFERROR(INDEX(Assumptions!$F$15:$F$25,MATCH('Hazard Data Entry'!G34,Exposures,0)),0)","v":0},{"$f":"IFERROR(INDEX(Assumptions!$F$15:$F$25,MATCH('Hazard Data Entry'!H34,Exposures,0)),0)","v":0},{"$f":"'Hazard Data Entry'!I34","v":0},{"$f":"IFERROR(INDEX(Assumptions!$F$41:$F$51,MATCH('Hazard Data Entry'!J34,Levels_of_response,0)),0)","v":0},{"$f":"'Hazard Data Entry'!K34","v":0},{"$f":"'Hazard Data Entry'!L34","v":0}]
[null,null,{"$f":"'Hazard Data Entry'!B35","v":0},{"$f":"'Hazard Data Entry'!C35","v":0},{"$f":"IFERROR(INDEX(Assumptions!$F$15:$F$25,MATCH('Hazard Data Entry'!D35,Exposures,0)),0)","v":0},{"$f":"IFERROR(INDEX(Assumptions!$F$15:$F$25,MATCH('Hazard Data Entry'!E35,Exposures,0)),0)","v":0},{"$f":"IFERROR(INDEX(Assumptions!$F$15:$F$25,MATCH('Hazard Data Entry'!F35,Exposures,0)),0)","v":0},{"$f":"IFERROR(INDEX(Assumptions!$F$15:$F$25,MATCH('Hazard Data Entry'!G35,Exposures,0)),0)","v":0},{"$f":"IFERROR(INDEX(Assumptions!$F$15:$F$25,MATCH('Hazard Data Entry'!H35,Exposures,0)),0)","v":0},{"$f":"'Hazard Data Entry'!I35","v":0},{"$f":"IFERROR(INDEX(Assumptions!$F$41:$F$51,MATCH('Hazard Data Entry'!J35,Levels_of_response,0)),0)","v":0},{"$f":"'Hazard Data Entry'!K35","v":0},{"$f":"'Hazard Data Entry'!L35","v":0}]
[null,null,{"$f":"'Hazard Data Entry'!B36","v":0},{"$f":"'Hazard Data Entry'!C36","v":0},{"$f":"IFERROR(INDEX(Assumptions!$F$15:$F$25,MATCH('Hazard Data Entry'!D36,Exposures,0)),0)","v":0},{"$f":"IFERROR(INDEX(Assumptions!$F$15:$F$25,MATCH('Hazard Data Entry'!E36,Exposures,0)),0)","v":0},{"$f":"IFERROR(INDEX(Assumptions!$F$15:$F$25,MATCH('Hazard Data Entry'!F36,Exposures,0)),0)","v":0},{"$f":"IFERROR(INDEX(Assumptions!$F$15:$F$25,MATCH('Hazard Data Entry'!G36,Exposures,0)),0)","v":0},{"$f":"IFERROR(INDEX(Assumptions!$F$15:$F$25,MATCH('Hazard Data Entry'!H36,Exposures,0)),0)","v":0},{"$f":"'Hazard Data Entry'!I36","v":0},{"$f":"IFERROR(INDEX(Assumptions!$F$41:$F$51,MATCH('Hazard Data Entry'!J36,Levels_of_response,0)),0)","v":0},{"$f":"'Hazard Data Entry'!K36","v":0},{"$f":"'Hazard Data Entry'!L36","v":0}]
[null,{"$f":"'Hazard Data Entry'!$B$37","v":"H6 - Extraterrestrial"},{"$f":"'Hazard Data Entry'!B38","v":0},{"$f":"'Hazard Data Entry'!C38","v":0},{"$f":"IFERROR(INDEX(Assumptions!$F$15:$F$25,MATCH('Hazard Data Entry'!D38,Exposures,0)),0)","v":0},{"$f":"IFERROR(INDEX(Assumptions!$F$15:$F$25,MATCH('Hazard Data Entry'!E38,Exposures,0)),0)","v":0},{"$f":"IFERROR(INDEX(Assumptions!$F$15:$F$25,MATCH('Hazard Data Entry'!F38,Exposures,0)),0)","v":0},{"$f":"IFERROR(INDEX(Assumptions!$F$15:$F$25,MATCH('Hazard Data Entry'!G38,Exposures,0)),0)","v":0},{"$f":"IFERROR(INDEX(Assumptions!$F$15:$F$25,MATCH('Hazard Data Entry'!H38,Exposures,0)),0)","v":0},{"$f":"'Hazard Data Entry'!I38","v":0},{"$f":"IFERROR(INDEX(Assumptions!$F$41:$F$51,MATCH('Hazard Data Entry'!J38,Levels_of_response,0)),0)","v":0},{"$f":"'Hazard Data Entry'!K38","v":0},{"$f":"'Hazard Data Entry'!L38","v":0}]
[null,null,{"$f":"'Hazard Data Entry'!B39","v":0},{"$f":"'Hazard Data Entry'!C39","v":0},{"$f":"IFERROR(INDEX(Assumptions!$F$15:$F$25,MATCH('Hazard Data Entry'!D39,Exposures,0)),0)","v":0},{"$f":"IFERROR(INDEX(Assumptions!$F$15:$F$25,MATCH('Hazard Data Entry'!E39,Exposures,0)),0)","v":0},{"$f":"IFERROR(INDEX(Assumptions!$F$15:$F$25,MATCH('Hazard Data Entry'!F39,Exposures,0)),0)","v":0},{"$f":"IFERROR(INDEX(Assumptions!$F$15:$F$25,MATCH('Hazard Data Entry'!G39,Exposures,0)),0)","v":0},{"$f":"IFERROR(INDEX(Assumptions!$F$15:$F$25,MATCH('Hazard Data Entry'!H39,Exposures,0)),0)","v":0},{"$f":"'Hazard Data Entry'!I39","v":0},{"$f":"IFERROR(INDEX(Assumptions!$F$41:$F$51,MATCH('Hazard Data Entry'!J39,Levels_of_response,0)),0)","v":0},{"$f":"'Hazard Data Entry'!K39","v":0},{"$f":"'Hazard Data Entry'!L39","v":0}]
[null,null,{"$f":"'Hazard Data Entry'!B40","v":0},{"$f":"'Hazard Data Entry'!C40","v":0},{"$f":"IFERROR(INDEX(Assumptions!$F$15:$F$25,MATCH('Hazard Data Entry'!D40,Exposures,0)),0)","v":0},{"$f":"IFERROR(INDEX(Assumptions!$F$15:$F$25,MATCH('Hazard Data Entry'!E40,Exposures,0)),0)","v":0},{"$f":"IFERROR(INDEX(Assumptions!$F$15:$F$25,MATCH('Hazard Data Entry'!F40,Exposures,0)),0)","v":0},{"$f":"IFERROR(INDEX(Assumptions!$F$15:$F$25,MATCH('Hazard Data Entry'!G40,Exposures,0)),0)","v":0},{"$f":"IFERROR(INDEX(Assumptions!$F$15:$F$25,MATCH('Hazard Data Entry'!H40,Exposures,0)),0)","v":0},{"$f":"'Hazard Data Entry'!I40","v":0},{"$f":"IFERROR(INDEX(Assumptions!$F$41:$F$51,MATCH('Hazard Data Entry'!J40,Levels_of_response,0)),0)","v":0},{"$f":"'Hazard Data Entry'!K40","v":0},{"$f":"'Hazard Data Entry'!L40","v":0}]
[null,null,{"$f":"'Hazard Data Entry'!B41","v":0},{"$f":"'Hazard Data Entry'!C41","v":0},{"$f":"IFERROR(INDEX(Assumptions!$F$15:$F$25,MATCH('Hazard Data Entry'!D41,Exposures,0)),0)","v":0},{"$f":"IFERROR(INDEX(Assumptions!$F$15:$F$25,MATCH('Hazard Data Entry'!E41,Exposures,0)),0)","v":0},{"$f":"IFERROR(INDEX(Assumptions!$F$15:$F$25,MATCH('Hazard Data Entry'!F41,Exposures,0)),0)","v":0},{"$f":"IFERROR(INDEX(Assumptions!$F$15:$F$25,MATCH('Hazard Data Entry'!G41,Exposures,0)),0)","v":0},{"$f":"IFERROR(INDEX(Assumptions!$F$15:$F$25,MATCH('Hazard Data Entry'!H41,Exposures,0)),0)","v":0},{"$f":"'Hazard Data Entry'!I41","v":0},{"$f":"IFERROR(INDEX(Assumptions!$F$41:$F$51,MATCH('Hazard Data Entry'!J41,Levels_of_response,0)),0)","v":0},{"$f":"'Hazard Data Entry'!K41","v":0},{"$f":"'Hazard Data Entry'!L41","v":0}]
[null,null,{"$f":"'Hazard Data Entry'!B42","v":0},{"$f":"'Hazard Data Entry'!C42","v":0},{"$f":"IFERROR(INDEX(Assumptions!$F$15:$F$25,MATCH('Hazard Data Entry'!D42,Exposures,0)),0)","v":0},{"$f":"IFERROR(INDEX(Assumptions!$F$15:$F$25,MATCH('Hazard Data Entry'!E42,Exposures,0)),0)","v":0},{"$f":"IFERROR(INDEX(Assumptions!$F$15:$F$25,MATCH('Hazard Data Entry'!F42,Exposures,0)),0)","v":0},{"$f":"IFERROR(INDEX(Assumptions!$F$15:$F$25,MATCH('Hazard Data Entry'!G42,Exposures,0)),0)","v":0},{"$f":"IFERROR(INDEX(Assumptions!$F$15:$F$25,MATCH('Hazard Data Entry'!H42,Exposures,0)),0)","v":0},{"$f":"'Hazard Data Entry'!I42","v":0},{"$f":"IFERROR(INDEX(Assumptions!$F$41:$F$51,MATCH('Hazard Data Entry'!J42,Levels_of_response,0)),0)","v":0},{"$f":"'Hazard Data Entry'!K42","v":0},{"$f":"'Hazard Data Entry'!L42","v":0}]
[null,{"$f":"'Hazard Data Entry'!$B$43","v":"H7 - Anthropogenic"},{"$f":"'Hazard Data Entry'!B44","v":0},{"$f":"'Hazard Data Entry'!C44","v":0},{"$f":"IFERROR(INDEX(Assumptions!$F$15:$F$25,MATCH('Hazard Data Entry'!D44,Exposures,0)),0)","v":0},{"$f":"IFERROR(INDEX(Assumptions!$F$15:$F$25,MATCH('Hazard Data Entry'!E44,Exposures,0)),0)","v":0},{"$f":"IFERROR(INDEX(Assumptions!$F$15:$F$25,MATCH('Hazard Data Entry'!F44,Exposures,0)),0)","v":0},{"$f":"IFERROR(INDEX(Assumptions!$F$15:$F$25,MATCH('Hazard Data Entry'!G44,Exposures,0)),0)","v":0},{"$f":"IFERROR(INDEX(Assumptions!$F$15:$F$25,MATCH('Hazard Data Entry'!H44,Exposures,0)),0)","v":0},{"$f":"'Hazard Data Entry'!I44","v":0},{"$f":"IFERROR(INDEX(Assumptions!$F$41:$F$51,MATCH('Hazard Data Entry'!J44,Levels_of_response,0)),0)","v":0},{"$f":"'Hazard Data Entry'!K44","v":0},{"$f":"'Hazard Data Entry'!L44","v":0}]
[null,null,{"$f":"'Hazard Data Entry'!B45","v":0},{"$f":"'Hazard Data Entry'!C45","v":0},{"$f":"IFERROR(INDEX(Assumptions!$F$15:$F$25,MATCH('Hazard Data Entry'!D45,Exposures,0)),0)","v":0},{"$f":"IFERROR(INDEX(Assumptions!$F$15:$F$25,MATCH('Hazard Data Entry'!E45,Exposures,0)),0)","v":0},{"$f":"IFERROR(INDEX(Assumptions!$F$15:$F$25,MATCH('Hazard Data Entry'!F45,Exposures,0)),0)","v":0},{"$f":"IFERROR(INDEX(Assumptions!$F$15:$F$25,MATCH('Hazard Data Entry'!G45,Exposures,0)),0)","v":0},{"$f":"IFERROR(INDEX(Assumptions!$F$15:$F$25,MATCH('Hazard Data Entry'!H45,Exposures,0)),0)","v":0},{"$f":"'Hazard Data Entry'!I45","v":0},{"$f":"IFERROR(INDEX(Assumptions!$F$41:$F$51,MATCH('Hazard Data Entry'!J45,Levels_of_response,0)),0)","v":0},{"$f":"'Hazard Data Entry'!K45","v":0},{"$f":"'Hazard Data Entry'!L45","v":0}]
[null,null,{"$f":"'Hazard Data Entry'!B46","v":0},{"$f":"'Hazard Data Entry'!C46","v":0},{"$f":"IFERROR(INDEX(Assumptions!$F$15:$F$25,MATCH('Hazard Data Entry'!D46,Exposures,0)),0)","v":0},{"$f":"IFERROR(INDEX(Assumptions!$F$15:$F$25,MATCH('Hazard Data Entry'!E46,Exposures,0)),0)","v":0},{"$f":"IFERROR(INDEX(Assumptions!$F$15:$F$25,MATCH('Hazard Data Entry'!F46,Exposures,0)),0)","v":0},{"$f":"IFERROR(INDEX(Assumptions!$F$15:$F$25,MATCH('Hazard Data Entry'!G46,Exposures,0)),0)","v":0},{"$f":"IFERROR(INDEX(Assumptions!$F$15:$F$25,MATCH('Hazard Data Entry'!H46,Exposures,0)),0)","v":0},{"$f":"'Hazard Data Entry'!I46","v":0},{"$f":"IFERROR(INDEX(Assumptions!$F$41:$F$51,MATCH('Hazard Data Entry'!J46,Levels_of_response,0)),0)","v":0},{"$f":"'Hazard Data Entry'!K46","v":0},{"$f":"'Hazard Data Entry'!L46","v":0}]
[null,null,{"$f":"'Hazard Data Entry'!B47","v":0},{"$f":"'Hazard Data Entry'!C47","v":0},{"$f":"IFERROR(INDEX(Assumptions!$F$15:$F$25,MATCH('Hazard Data Entry'!D47,Exposures,0)),0)","v":0},{"$f":"IFERROR(INDEX(Assumptions!$F$15:$F$25,MATCH('Hazard Data Entry'!E47,Exposures,0)),0)","v":0},{"$f":"IFERROR(INDEX(Assumptions!$F$15:$F$25,MATCH('Hazard Data Entry'!F47,Exposures,0)),0)","v":0},{"$f":"IFERROR(INDEX(Assumptions!$F$15:$F$25,MATCH('Hazard Data Entry'!G47,Exposures,0)),0)","v":0},{"$f":"IFERROR(INDEX(Assumptions!$F$15:$F$25,MATCH('Hazard Data Entry'!H47,Exposures,0)),0)","v":0},{"$f":"'Hazard Data Entry'!I47","v":0},{"$f":"IFERROR(INDEX(Assumptions!$F$41:$F$51,MATCH('Hazard Data Entry'!J47,Levels_of_response,0)),0)","v":0},{"$f":"'Hazard Data Entry'!K47","v":0},{"$f":"'Hazard Data Entry'!L47","v":0}]
[null,null,{"$f":"'Hazard Data Entry'!B48","v":0},{"$f":"'Hazard Data Entry'!C48","v":0},{"$f":"IFERROR(INDEX(Assumptions!$F$15:$F$25,MATCH('Hazard Data Entry'!D48,Exposures,0)),0)","v":0},{"$f":"IFERROR(INDEX(Assumptions!$F$15:$F$25,MATCH('Hazard Data Entry'!E48,Exposures,0)),0)","v":0},{"$f":"IFERROR(INDEX(Assumptions!$F$15:$F$25,MATCH('Hazard Data Entry'!F48,Exposures,0)),0)","v":0},{"$f":"IFERROR(INDEX(Assumptions!$F$15:$F$25,MATCH('Hazard Data Entry'!G48,Exposures,0)),0)","v":0},{"$f":"IFERROR(INDEX(Assumptions!$F$15:$F$25,MATCH('Hazard Data Entry'!H48,Exposures,0)),0)","v":0},{"$f":"'Hazard Data Entry'!I48","v":0},{"$f":"IFERROR(INDEX(Assumptions!$F$41:$F$51,MATCH('Hazard Data Entry'!J48,Levels_of_response,0)),0)","v":0},{"$f":"'Hazard Data Entry'!K48","v":0},{"$f":"'Hazard Data Entry'!L48","v":0}]
[null,{"$f":"'Hazard Data Entry'!$B$49","v":"H8 - Other (To be completed by User)"},{"$f":"'Hazard Data Entry'!B50","v":0},{"$f":"'Hazard Data Entry'!C50","v":0},{"$f":"IFERROR(INDEX(Assumptions!$F$15:$F$25,MATCH('Hazard Data Entry'!D50,Exposures,0)),0)","v":0},{"$f":"IFERROR(INDEX(Assumptions!$F$15:$F$25,MATCH('Hazard Data Entry'!E50,Exposures,0)),0)","v":0},{"$f":"IFERROR(INDEX(Assumptions!$F$15:$F$25,MATCH('Hazard Data Entry'!F50,Exposures,0)),0)","v":0},{"$f":"IFERROR(INDEX(Assumptions!$F$15:$F$25,MATCH('Hazard Data Entry'!G50,Exposures,0)),0)","v":0},{"$f":"IFERROR(INDEX(Assumptions!$F$15:$F$25,MATCH('Hazard Data Entry'!H50,Exposures,0)),0)","v":0},{"$f":"'Hazard Data Entry'!I50","v":0},{"$f":"IFERROR(INDEX(Assumptions!$F$41:$F$51,MATCH('Hazard Data Entry'!J50,Levels_of_response,0)),0)","v":0},{"$f":"'Hazard Data Entry'!K50","v":0},{"$f":"'Hazard Data Entry'!L50","v":0}]
[null,null,{"$f":"'Hazard Data Entry'!B51","v":0},{"$f":"'Hazard Data Entry'!C51","v":0},{"$f":"IFERROR(INDEX(Assumptions!$F$15:$F$25,MATCH('Hazard Data Entry'!D51,Exposures,0)),0)","v":0},{"$f":"IFERROR(INDEX(Assumptions!$F$15:$F$25,MATCH('Hazard Data Entry'!E51,Exposures,0)),0)","v":0},{"$f":"IFERROR(INDEX(Assumptions!$F$15:$F$25,MATCH('Hazard Data Entry'!F51,Exposures,0)),0)","v":0},{"$f":"IFERROR(INDEX(Assumptions!$F$15:$F$25,MATCH('Hazard Data Entry'!G51,Exposures,0)),0)","v":0},{"$f":"IFERROR(INDEX(Assumptions!$F$15:$F$25,MATCH('Hazard Data Entry'!H51,Exposures,0)),0)","v":0},{"$f":"'Hazard Data Entry'!I51","v":0},{"$f":"IFERROR(INDEX(Assumptions!$F$41:$F$51,MATCH('Hazard Data Entry'!J51,Levels_of_response,0)),0)","v":0},{"$f":"'Hazard Data Entry'!K51","v":0},{"$f":"'Hazard Data Entry'!L51","v":0}]
[null,null,{"$f":"'Hazard Data Entry'!B52","v":0},{"$f":"'Hazard Data Entry'!C52","v":0},{"$f":"IFERROR(INDEX(Assumptions!$F$15:$F$25,MATCH('Hazard Data Entry'!D52,Exposures,0)),0)","v":0},{"$f":"IFERROR(INDEX(Assumptions!$F$15:$F$25,MATCH('Hazard Data Entry'!E52,Exposures,0)),0)","v":0},{"$f":"IFERROR(INDEX(Assumptions!$F$15:$F$25,MATCH('Hazard Data Entry'!F52,Exposures,0)),0)","v":0},{"$f":"IFERROR(INDEX(Assumptions!$F$15:$F$25,MATCH('Hazard Data Entry'!G52,Exposures,0)),0)","v":0},{"$f":"IFERROR(INDEX(Assumptions!$F$15:$F$25,MATCH('Hazard Data Entry'!H52,Exposures,0)),0)","v":0},{"$f":"'Hazard Data Entry'!I52","v":0},{"$f":"IFERROR(INDEX(Assumptions!$F$41:$F$51,MATCH('Hazard Data Entry'!J52,Levels_of_response,0)),0)","v":0},{"$f":"'Hazard Data Entry'!K52","v":0},{"$f":"'Hazard Data Entry'!L52","v":0}]
[null,null,{"$f":"'Hazard Data Entry'!B53","v":0},{"$f":"'Hazard Data Entry'!C53","v":0},{"$f":"IFERROR(INDEX(Assumptions!$F$15:$F$25,MATCH('Hazard Data Entry'!D53,Exposures,0)),0)","v":0},{"$f":"IFERROR(INDEX(Assumptions!$F$15:$F$25,MATCH('Hazard Data Entry'!E53,Exposures,0)),0)","v":0},{"$f":"IFERROR(INDEX(Assumptions!$F$15:$F$25,MATCH('Hazard Data Entry'!F53,Exposures,0)),0)","v":0},{"$f":"IFERROR(INDEX(Assumptions!$F$15:$F$25,MATCH('Hazard Data Entry'!G53,Exposures,0)),0)","v":0},{"$f":"IFERROR(INDEX(Assumptions!$F$15:$F$25,MATCH('Hazard Data Entry'!H53,Exposures,0)),0)","v":0},{"$f":"'Hazard Data Entry'!I53","v":0},{"$f":"IFERROR(INDEX(Assumptions!$F$41:$F$51,MATCH('Hazard Data Entry'!J53,Levels_of_response,0)),0)","v":0},{"$f":"'Hazard Data Entry'!K53","v":0},{"$f":"'Hazard Data Entry'!L53","v":0}]
[null,null,{"$f":"'Hazard Data Entry'!B54","v":0},{"$f":"'Hazard Data Entry'!C54","v":0},{"$f":"IFERROR(INDEX(Assumptions!$F$15:$F$25,MATCH('Hazard Data Entry'!D54,Exposures,0)),0)","v":0},{"$f":"IFERROR(INDEX(Assumptions!$F$15:$F$25,MATCH('Hazard Data Entry'!E54,Exposures,0)),0)","v":0},{"$f":"IFERROR(INDEX(Assumptions!$F$15:$F$25,MATCH('Hazard Data Entry'!F54,Exposures,0)),0)","v":0},{"$f":"IFERROR(INDEX(Assumptions!$F$15:$F$25,MATCH('Hazard Data Entry'!G54,Exposures,0)),0)","v":0},{"$f":"IFERROR(INDEX(Assumptions!$F$15:$F$25,MATCH('Hazard Data Entry'!H54,Exposures,0)),0)","v":0},{"$f":"'Hazard Data Entry'!I54","v":0},{"$f":"IFERROR(INDEX(Assumptions!$F$41:$F$51,MATCH('Hazard Data Entry'!J54,Levels_of_response,0)),0)","v":0},{"$f":"'Hazard Data Entry'!K54","v":0},{"$f":"'Hazard Data Entry'!L54","v":0}]
[]
[]
[null,"End"]

{"sheet":"Risk Summary","index":8,"n_rows":9,"n_cols":3,"rows_kept":9,"cut":false,"hidden":false,"merged":[]}
[null,{"$f":"MdlTle","v":"Quick Risk Estimation (QRE) Tool"}]
[null,{"$f":"MID(CELL(\"filename\",B1),FIND(\"]\",CELL(\"filename\",B1))+1,255)","v":"Risk Summary"}]
[]
[]
[null,{"$f":"Information!C15","v":"Location/Region Name/Title: "},{"$f":"Information!$L$15","v":0}]
[null,{"$f":"Information!C17","v":"Description (including asset(s) under examination): "},{"$f":"Information!$L$17","v":0}]
[null,{"$f":"Information!C20","v":"Assessor (i.e. person completing this risk estimation): "},{"$f":"Information!$L$20","v":0}]
[null,{"$f":"Information!C22","v":"Completion Date: "},{"$f":"TEXT(Information!$L$22,\"DD MMM YYYY\")","v":"00 Jan 1900"}]
[null,{"$f":"Information!C24","v":"Review Date/Version: "},{"$f":"TEXT(Information!$L$24, \"DD MMM YYYY\")","v":"00 Jan 1900"}]

{"sheet":"Vulnerability Report","index":9,"n_rows":55,"n_cols":3,"rows_kept":55,"cut":false,"hidden":false,"merged":[]}
[null,{"$f":"MdlTle","v":"Quick Risk Estimation (QRE) Tool"}]
[null,{"$f":"MID(CELL(\"filename\",B1),FIND(\"]\",CELL(\"filename\",B1))+1,255)","v":"Vulnerability Report"}]
[]
[]
[null,{"$f":"Information!C15","v":"Location/Region Name/Title: "},{"$f":"Information!$L$15","v":0}]
[null,{"$f":"Information!C17","v":"Description (including asset(s) under examination): "},{"$f":"Information!$L$17","v":0}]
[null,{"$f":"Information!C20","v":"Assessor (i.e. person completing this risk estimation): "},{"$f":"Information!$L$20","v":0}]
[null,{"$f":"Information!C22","v":"Completion Date: "},{"$f":"TEXT(Information!$L$22,\"DD MMM YYYY\")","v":"00 Jan 1900"}]
[null,{"$f":"Information!C24","v":"Review Date/Version: "},{"$f":"TEXT(Information!$L$24, \"DD MMM YYYY\")","v":"00 Jan 1900"}]
[]
[]
[]
[]
[]
[]
[]
[]
[]
[]
[]
[]
[]
[]
[]
[]
[]
[]
[]
[]
[]
[]
[]
[]
[]
[]
[]
[]
[]
[]
[]
[]
[]
[]
[]
[]
[]
[]
[]
[]
[]
[]
[]
[]
[null,{"$f":"MdlTle","v":"Quick Risk Estimation (QRE) Tool"}]
[null,{"$f":"MID(CELL(\"filename\",B54),FIND(\"]\",CELL(\"filename\",B54))+1,255)","v":"Vulnerability Report"}]

{"sheet":"Contacts","index":10,"n_rows":9,"n_cols":1,"rows_kept":9,"cut":false,"hidden":false,"merged":[[6,0,6,2]]}
[{"$f":"MdlTle","v":"Quick Risk Estimation (QRE) Tool"}]
[{"$f":"MID(CELL(\"filename\",A1),FIND(\"]\",CELL(\"filename\",A1))+1,255)","v":"Contacts"}]
[]
[]
[]
["Questions?\n\n"]
["Contact our staff and partners in the region nearest you:"]
[]
["https://www.unisdr.org/campaign/resilientcities/about/article/about-the-campaign"]